Workbook

Sheet سلطان
A3: A | B3: =TODAY() -> 2018-03-29 | C3: تاريخ الهجري | F3: 1 | H3: سلطان | P3: الشقق الفارغه | Q3: 12
A4: A | B4: =TODAY() -> 2018-03-29 | C4: الموافق | J4: جوال= | P4: المحلات الفارغه
A5: =IF(D5>0,"A","B") -> A | B5: تأمين | C5: رقم الجوال | D5: عدد أيام تأخير | E5: ملاحظات | F5: المدفوع | G5: تاريخ الانتهاء | H5: تاريخ ابتداءالايجار | I5: طريقة الدفع | J5: الباقي | K5: المطلوب | L5: الإجمالي | M5: ماء | N5: ألأيجار | O5: رقم الشقة | P5: اسم المستأجر | Q5: الرقم
A6: =IF(D6>0,"A","B") -> A | B6: مع المالك | D6: =IF(سلطان!$G6<$B$4,$B$4-سلطان!$G6,0) -> 11 | E6: لم يجدد التعاقد | G6: 2018-03-18 | H6: 2017-09-21 | I6: 6 | J6: =سلطان!$L6-سلطان!$K6 -> 9100 | K6: =(سلطان!$L6/$Q$3)*سلطان!$I6 -> 9100 | L6: =سلطان!$N6+سلطان!$M6 -> 18200 | M6: 1200 | N6: 17000 | O6: 1 | P6: عصام الجمل | Q6: 1 | R6: =O6 -> 1
A7: =IF(D7>0,"A","B") -> B | B7: لا يوجد | D7: =IF(سلطان!$G7<$B$4,$B$4-سلطان!$G7,0) -> 0 | G7: 2018-05-16 | H7: 2018-02-16 | I7: 3 | J7: =سلطان!$L7-سلطان!$K7 -> 8325 | K7: =(سلطان!$L7/$Q$3)*سلطان!$I7 -> 2775 | L7: =سلطان!$N7+سلطان!$M7 -> 11100 | M7: 600 | N7: 10500 | O7: 2 | P7: مبارك حسين | Q7: =Q6+1 -> 2 | R7: =O7 -> 2
A8: A | B8: مع المالك | D8: =IF(سلطان!$G8<$B$4,$B$4-سلطان!$G8,0) -> 70 | G8: 2018-01-18 | H8: 2017-08-23 | I8: 6 | J8: =سلطان!$L8-سلطان!$K8 -> 6300 | K8: =(سلطان!$L8/$Q$3)*سلطان!$I8 -> 6300 | L8: =سلطان!$N8+سلطان!$M8 -> 12600 | M8: 600 | N8: 12000 | O8: 3 | P8: عصام الجمل | Q8: =Q7+1 -> 3 | R8: 3
A9: A | D9: =IF(سلطان!$G9<$B$4,$B$4-سلطان!$G9,0) -> 43188 | J9: =سلطان!$L9-سلطان!$K9 -> 0 | K9: =(سلطان!$L9/$Q$3)*سلطان!$I9 -> 0 | L9: =سلطان!$N9+سلطان!$M9 -> 0 | O9: 4 | P9: فاضي | Q9: 4 | R9: 4
A10: A | B10: مع المالك | D10: =IF(سلطان!$G10<$B$4,$B$4-سلطان!$G10,0) -> 53 | G10: 2018-02-04 | H10: 2017-11-07 | I10: 3 | J10: =سلطان!$L10-سلطان!$K10 -> 13575 | K10: =(سلطان!$L10/$Q$3)*سلطان!$I10 -> 4525 | L10: =سلطان!$N10+سلطان!$M10 -> 18100 | M10: 600 | N10: 17500 | O10: 5 | P10: محمد جليل احمد | Q10: 5 | R10: 5
A11: A | D11: =IF(سلطان!$G11<$B$4,$B$4-سلطان!$G11,0) -> 43188 | J11: =سلطان!$L11-سلطان!$K11 -> 18100 | K11: =(سلطان!$L11/$Q$3)*سلطان!$I11 -> 0 | L11: =سلطان!$N11+سلطان!$M11 -> 18100 | M11: 600 | N11: 17500 | O11: 6 | P11: فاضي | Q11: 6 | R11: 6
A12: B | B12: مع المالك | D12: =IF(سلطان!$G12<$B$4,$B$4-سلطان!$G12,0) -> 0 | G12: 2018-04-15 | I12: 3 | J12: =سلطان!$L12-سلطان!$K12 -> 13125 | K12: =(سلطان!$L12/$Q$3)*سلطان!$I12 -> 4375 | L12: =سلطان!$N12+سلطان!$M12 -> 17500 | N12: 17500 | O12: 7 | P12: خالد رمزي | Q12: 7 | R12: 7
A13: B | B13: مع المالك | D13: =IF(سلطان!$G13<$B$4,$B$4-سلطان!$G13,0) -> 0 | G13: 2018-06-15 | H13: 2017-12-19 | I13: 6 | J13: =سلطان!$L13-سلطان!$K13 -> 8300 | K13: =(سلطان!$L13/$Q$3)*سلطان!$I13 -> 8300 | L13: =سلطان!$N13+سلطان!$M13 -> 16600 | M13: 600 | N13: 16000 | O13: 8 | P13: عبدالجبار خان | Q13: 8 | R13: 8
A14: B | B14: مع المالك | D14: =IF(سلطان!$G14<$B$4,$B$4-سلطان!$G14,0) -> 0 | G14: 2018-05-29 | H14: 2017-12-02 | I14: 6 | J14: =سلطان!$L14-سلطان!$K14 -> 8800 | K14: =(سلطان!$L14/$Q$3)*سلطان!$I14 -> 8800 | L14: =سلطان!$N14+سلطان!$M14 -> 17600 | M14: 600 | N14: 17000 | O14: 9 | P14: كونسيري سوزان | Q14: 9 | R14: 9
A15: A | D15: =IF(سلطان!$G15<$B$4,$B$4-سلطان!$G15,0) -> 43188 | J15: =سلطان!$L15-سلطان!$K15 -> 0 | K15: =(سلطان!$L15/$Q$3)*سلطان!$I15 -> 0 | L15: =سلطان!$N15+سلطان!$M15 -> 0 | O15: 10 | P15: فاضي | Q15: 10 | R15: 10
A16: A | D16: =IF(سلطان!$G16<$B$4,$B$4-سلطان!$G16,0) -> 43188 | J16: =سلطان!$L16-سلطان!$K16 -> 0 | K16: =(سلطان!$L16/$Q$3)*سلطان!$I16 -> 0 | L16: =سلطان!$N16+سلطان!$M16 -> 0 | O16: 11 | P16: فاضي | Q16: 11 | R16: 11
A17: A | B17: مع المالك | D17: =IF(سلطان!$G17<$B$4,$B$4-سلطان!$G17,0) -> 23 | G17: 2018-03-06 | H17: 2017-12-06 | I17: 3 | J17: =سلطان!$L17-سلطان!$K17 -> 12450 | K17: =(سلطان!$L17/$Q$3)*سلطان!$I17 -> 4150 | L17: =سلطان!$N17+سلطان!$M17 -> 16600 | M17: 600 | N17: 16000 | O17: 12 | P17: حماد صالح | Q17: 12 | R17: 12
A18: B | B18: مع المالك | D18: =IF(سلطان!$G18<$B$4,$B$4-سلطان!$G18,0) -> 0 | G18: 2018-06-28 | H18: 2017-07-08 | I18: 6 | J18: =سلطان!$L18-سلطان!$K18 -> 9300 | K18: =(سلطان!$L18/$Q$3)*سلطان!$I18 -> 9300 | L18: =سلطان!$N18+سلطان!$M18 -> 18600 | M18: 600 | N18: 18000 | O18: 13 | P18: وقار جويد محمد | Q18: 13 | R18: 13
A19: A | B19: مع المالك | D19: =IF(سلطان!$G19<$B$4,$B$4-سلطان!$G19,0) -> 41 | E19: باقي 2700 | G19: 2018-02-16 | H19: 2017-08-23 | I19: 3 | J19: =سلطان!$L19-سلطان!$K19 -> 13950 | K19: =(سلطان!$L19/$Q$3)*سلطان!$I19 -> 4650 | L19: =سلطان!$N19+سلطان!$M19 -> 18600 | M19: 600 | N19: 18000 | O19: 14 | P19: شريف السيد متولى عدوى | Q19: 14 | R19: 14
A20: A | B20: مع المالك | D20: =IF(سلطان!$G20<$B$4,$B$4-سلطان!$G20,0) -> 11 | E20: 300 باقي | G20: 2018-03-18 | H20: 2017-03-29 | I20: 6 | J20: =سلطان!$L20-سلطان!$K20 -> 9300 | K20: =(سلطان!$L20/$Q$3)*سلطان!$I20 -> 9300 | L20: =سلطان!$N20+سلطان!$M20 -> 18600 | M20: 600 | N20: 18000 | O20: 15 | P20: مانيش امباداس سونا واني | Q20: 15 | R20: 15
A21: A | B21: مع المالك | D21: =IF(سلطان!$G21<$B$4,$B$4-سلطان!$G21,0) -> 27 | G21: 2018-03-02 | H21: 2017-09-05 | I21: 6 | J21: =سلطان!$L21-سلطان!$K21 -> 9050 | K21: =(سلطان!$L21/$Q$3)*سلطان!$I21 -> 9050 | L21: =سلطان!$N21+سلطان!$M21 -> 18100 | M21: 600 | N21: 17500 | O21: 16 | P21: محمد مزار الدين | Q21: 16 | R21: 16
A22: A | B22: مع المالك | D22: =IF(سلطان!$G22<$B$4,$B$4-سلطان!$G22,0) -> 40 | G22: 2018-02-17 | H22: 2017-11-19 | I22: 3 | J22: =سلطان!$L22-سلطان!$K22 -> 13950 | K22: =(سلطان!$L22/$Q$3)*سلطان!$I22 -> 4650 | L22: =سلطان!$N22+سلطان!$M22 -> 18600 | M22: 600 | N22: 18000 | O22: 17 | P22: اقبال احمد سيد | Q22: 17 | R22: 17
A23: A | D23: =IF(سلطان!$G23<$B$4,$B$4-سلطان!$G23,0) -> 43188 | J23: =سلطان!$L23-سلطان!$K23 -> 0 | K23: =(سلطان!$L23/$Q$3)*سلطان!$I23 -> 0 | L23: =سلطان!$N23+سلطان!$M23 -> 0 | O23: 18 | P23: فاضي | Q23: 18 | R23: 18
A24: A | D24: =IF(سلطان!$G24<$B$4,$B$4-سلطان!$G24,0) -> 43188 | J24: =سلطان!$L24-سلطان!$K24 -> 0 | K24: =(سلطان!$L24/$Q$3)*سلطان!$I24 -> 0 | L24: =سلطان!$N24+سلطان!$M24 -> 0 | O24: 19 | P24: فاضي | Q24: 19 | R24: 19
A25: B | B25: مع المالك | D25: =IF(سلطان!$G25<$B$4,$B$4-سلطان!$G25,0) -> 0 | G25: 29/8/1439 | H25: 29/5/1439 | I25: 3 | J25: =سلطان!$L25-سلطان!$K25 -> 12750 | K25: =(سلطان!$L25/$Q$3)*سلطان!$I25 -> 4250 | L25: =سلطان!$N25+سلطان!$M25 -> 17000 | M25: 0 | N25: 17000 | O25: 20 | P25: محمد امام نضير | Q25: 20 | R25: 20
A26: B | B26: مع المالك | D26: =IF(سلطان!$G26<$B$4,$B$4-سلطان!$G26,0) -> 0 | G26: 2018-04-17 | H26: 2017-10-22 | I26: 6 | J26: =سلطان!$L26-سلطان!$K26 -> 10050 | K26: =(سلطان!$L26/$Q$3)*سلطان!$I26 -> 10050 | L26: =سلطان!$N26+سلطان!$M26 -> 20100 | M26: 600 | N26: 19500 | O26: 21 | P26: البيرتو بال ماريس ديليرا | Q26: 21 | R26: 21
A27: A | D27: =IF(سلطان!$G27<$B$4,$B$4-سلطان!$G27,0) -> 43188 | J27: =سلطان!$L27-سلطان!$K27 -> 0 | K27: =(سلطان!$L27/$Q$3)*سلطان!$I27 -> 0 | L27: =سلطان!$N27+سلطان!$M27 -> 0 | O27: M1 | P27: فاضي | Q27: 22 | R27: M1
A28: B | B28: مع المالك | D28: =IF(سلطان!$G28<$B$4,$B$4-سلطان!$G28,0) -> 0 | G28: 2018-07-28 | H28: 2017-08-07 | I28: 6 | J28: =سلطان!$L28-سلطان!$K28 -> 30000 | K28: =(سلطان!$L28/$Q$3)*سلطان!$I28 -> 30000 | L28: =سلطان!$N28+سلطان!$M28 -> 60000 | N28: 60000 | O28: M2 | P28: بدر خالد القلعي | Q28: 23 | R28: M2
A29: A | B29: مع المالك | D29: =IF(سلطان!$G29<$B$4,$B$4-سلطان!$G29,0) -> 72 | G29: 2018-01-16 | H29: 2017-07-23 | I29: 6 | J29: =سلطان!$L29-سلطان!$K29 -> 30000 | K29: =(سلطان!$L29/$Q$3)*سلطان!$I29 -> 30000 | L29: =سلطان!$N29+سلطان!$M29 -> 60000 | N29: 60000 | O29: M3 | P29: سليمان بن ابراهيم بن محمد الرميخاني | Q29: 24 | R29: M3
A30: A | B30: مع المالك | D30: =IF(سلطان!$G30<$B$4,$B$4-سلطان!$G30,0) -> 100 | G30: 2017-12-19 | H30: 2017-06-25 | I30: 6 | J30: =سلطان!$L30-سلطان!$K30 -> 31000 | K30: =(سلطان!$L30/$Q$3)*سلطان!$I30 -> 31000 | L30: =سلطان!$N30+سلطان!$M30 -> 62000 | M30: 2000 | N30: 60000 | O30: M4 | P30: عصام الجمل | Q30: 25 | R30: M4
A31: A | B31: مع المالك | D31: =IF(سلطان!$G31<$B$4,$B$4-سلطان!$G31,0) -> 72 | G31: 2018-01-16 | H31: 2017-07-23 | I31: 6 | J31: =سلطان!$L31-سلطان!$K31 -> 36000 | K31: =(سلطان!$L31/$Q$3)*سلطان!$I31 -> 36000 | L31: =سلطان!$N31+سلطان!$M31 -> 72000 | M31: 2000 | N31: 70000 | O31: M5 | P31: عبدالعزيز عبدالله الغفيلي | Q31: 26 | R31: M5
A32: A | B32: مع المالك | D32: =IF(سلطان!$G32<$B$4,$B$4-سلطان!$G32,0) -> 12 | G32: 2018-03-17 | H32: 2017-12-17 | I32: 3 | J32: =سلطان!$L32-سلطان!$K32 -> 15000 | K32: =(سلطان!$L32/$Q$3)*سلطان!$I32 -> 5000 | L32: =سلطان!$N32+سلطان!$M32 -> 20000 | N32: 20000 | O32: M6 | P32: علي بن عبدالحميد بن علي المبيوق | Q32: 27 | R32: M6
A33: A | B33: مع المالك | D33: =IF(سلطان!$G33<$B$4,$B$4-سلطان!$G33,0) -> 488 | E33: معلق ايجارة | G33: 2016-11-26 | H33: 2016-08-29 | I33: 3 | J33: =سلطان!$L33-سلطان!$K33 -> 15000 | K33: =(سلطان!$L33/$Q$3)*سلطان!$I33 -> 5000 | L33: =سلطان!$N33+سلطان!$M33 -> 20000 | N33: 20000 | O33: M7 | P33: يوسف عبدالله علي اليوسف | Q33: 28 | R33: M7
A34: A | B34: مع المالك | D34: =IF(سلطان!$G34<$B$4,$B$4-سلطان!$G34,0) -> 72 | E34: باقي1500 | G34: 2018-01-16 | H34: 2017-10-19 | I34: 3 | J34: =سلطان!$L34-سلطان!$K34 -> 15000 | K34: =(سلطان!$L34/$Q$3)*سلطان!$I34 -> 5000 | L34: =سلطان!$N34+سلطان!$M34 -> 20000 | N34: 20000 | O34: M8 | P34: هاشم عبدالله الناصر | Q34: 29 | R34: M8
A35: A | D35: =J35 -> 348425 | J35: =SUBTOTAL(109,سلطان!$J$6:$J$34) -> 348425 | K35: =SUBTOTAL(109,سلطان!$K$6:$K$34) -> 241575 | L35: =SUBTOTAL(109,سلطان!$L$6:$L$34) -> 590000 | M35: =SUBTOTAL(109,سلطان!$M$6:$M$34) -> 13000 | N35: =SUBTOTAL(109,سلطان!$N$6:$N$34) -> 577000 | R35: 0
A36: B
A37: B
A38: B
A39: B
A40: B
A41: B
A42: B
A43: B
A44: B
A45: B
A46: B
A47: B
A48: B

Sheet الجوهرة
A3: A | B3: =TODAY() -> 2018-03-29 | C3: تاريخ الهجري | H3: الجوهرة | P3: الشقق الفارغه | Q3: 12
A4: A | B4: =TODAY() -> 2018-03-29 | C4: الموافق | F4: 2 | J4: جوال= | P4: المحلات الفارغه
A5: =IF(D5>0,"A","B") -> A | B5: تأمين | C5: رقم الجوال | D5: عدد أيام تأخير | E5: ملاحظات | F5: المدفوع | G5: تاريخ الانتهاء | H5: تاريخ ابتداءالايجار | I5: طريقة الدفع | J5: الباقي | K5: المطلوب | L5: الإجمالي | M5: ماء | N5: ألأيجار | O5: رقم الشقة | P5: اسم المستأجر | Q5: الرقم
A6: =IF(D6>0,"A","B") -> B | B6: 1000 | D6: =IF(Table13[[#This Row],[ تاريخ الانتهاء]]<$B$4,$B$4-Table13[[#This Row],[ تاريخ الانتهاء]],0) -> 0 | G6: 2018-07-13 | H6: 2018-01-17 | I6: 6 | J6: =Table13[[#This Row],[الإجمالي]]-Table13[[#This Row],[المطلوب]] -> 13250 | K6: =(Table13[[#This Row],[الإجمالي]]/$Q$3)*Table13[[#This Row],[ طريقة الدفع]] -> 13250 | L6: =Table13[[#This Row],[ ألأيجار]]+Table13[[#This Row],[ماء]] -> 26500 | M6: 500 | N6: 26000 | O6: 101 | P6: محمود سامي كمال هنداوي | Q6: 1
A7: =IF(D7>0,"A","B") -> A | B7: 1000 | D7: =IF(Table13[[#This Row],[ تاريخ الانتهاء]]<$B$4,$B$4-Table13[[#This Row],[ تاريخ الانتهاء]],0) -> 2 | G7: 2018-03-27 | H7: 2017-10-01 | I7: 6 | J7: =Table13[[#This Row],[الإجمالي]]-Table13[[#This Row],[المطلوب]] -> 16250 | K7: =(Table13[[#This Row],[الإجمالي]]/$Q$3)*Table13[[#This Row],[ طريقة الدفع]] -> 16250 | L7: =Table13[[#This Row],[ ألأيجار]]+Table13[[#This Row],[ماء]] -> 32500 | M7: 500 | N7: 32000 | O7: 102 | P7: كريسوبي موريس ريموند تراترات | Q7: =Q6+1 -> 2
A8: B | B8: 1000 | D8: =IF(Table13[[#This Row],[ تاريخ الانتهاء]]<$B$4,$B$4-Table13[[#This Row],[ تاريخ الانتهاء]],0) -> 0 | G8: 2018-07-09 | H8: 2017-07-19 | I8: 6 | J8: =Table13[[#This Row],[الإجمالي]]-Table13[[#This Row],[المطلوب]] -> 16250 | K8: =(Table13[[#This Row],[الإجمالي]]/$Q$3)*Table13[[#This Row],[ طريقة الدفع]] -> 16250 | L8: =Table13[[#This Row],[ ألأيجار]]+Table13[[#This Row],[ماء]] -> 32500 | M8: 500 | N8: 32000 | O8: 103 | P8: وئل فتحي بوغولة | Q8: =Q7+1 -> 3
A9: A | B9: 1000 | D9: =IF(Table13[[#This Row],[ تاريخ الانتهاء]]<$B$4,$B$4-Table13[[#This Row],[ تاريخ الانتهاء]],0) -> 5 | G9: 2018-03-24 | H9: 2017-09-28 | I9: 6 | J9: =Table13[[#This Row],[الإجمالي]]-Table13[[#This Row],[المطلوب]] -> 13250 | K9: =(Table13[[#This Row],[الإجمالي]]/$Q$3)*Table13[[#This Row],[ طريقة الدفع]] -> 13250 | L9: =Table13[[#This Row],[ ألأيجار]]+Table13[[#This Row],[ماء]] -> 26500 | M9: 500 | N9: 26000 | O9: 104 | P9: حافظ بو بكر كشكار | Q9: 4
A10: A | B10: 1000 | D10: =IF(Table13[[#This Row],[ تاريخ الانتهاء]]<$B$4,$B$4-Table13[[#This Row],[ تاريخ الانتهاء]],0) -> 21 | G10: 2018-03-08 | H10: 2017-09-12 | I10: 6 | J10: =Table13[[#This Row],[الإجمالي]]-Table13[[#This Row],[المطلوب]] -> 13250 | K10: =(Table13[[#This Row],[الإجمالي]]/$Q$3)*Table13[[#This Row],[ طريقة الدفع]] -> 13250 | L10: =Table13[[#This Row],[ ألأيجار]]+Table13[[#This Row],[ماء]] -> 26500 | M10: 500 | N10: 26000 | O10: 105 | P10: عادل ابوبكر الحيدري | Q10: 5
A11: B | B11: 1000 | D11: =IF(Table13[[#This Row],[ تاريخ الانتهاء]]<$B$4,$B$4-Table13[[#This Row],[ تاريخ الانتهاء]],0) -> 0 | G11: 2018-06-19 | H11: 2017-10-05 | I11: 6 | J11: =Table13[[#This Row],[الإجمالي]]-Table13[[#This Row],[المطلوب]] -> 16250 | K11: =(Table13[[#This Row],[الإجمالي]]/$Q$3)*Table13[[#This Row],[ طريقة الدفع]] -> 16250 | L11: =Table13[[#This Row],[ ألأيجار]]+Table13[[#This Row],[ماء]] -> 32500 | M11: 500 | N11: 32000 | O11: 106 | P11: ديشان سوجيوانا سامبات وانياراشيج | Q11: 6
A12: A | B12: 1000 | D12: =IF(Table13[[#This Row],[ تاريخ الانتهاء]]<$B$4,$B$4-Table13[[#This Row],[ تاريخ الانتهاء]],0) -> 63 | G12: 2018-01-25 | H12: 2017-08-01 | I12: 6 | J12: =Table13[[#This Row],[الإجمالي]]-Table13[[#This Row],[المطلوب]] -> 16250 | K12: =(Table13[[#This Row],[الإجمالي]]/$Q$3)*Table13[[#This Row],[ طريقة الدفع]] -> 16250 | L12: =Table13[[#This Row],[ ألأيجار]]+Table13[[#This Row],[ماء]] -> 32500 | M12: 500 | N12: 32000 | O12: 107 | P12: سهيل يحي بحمد | Q12: 7
A13: B | B13: 1000 | D13: =IF(Table13[[#This Row],[ تاريخ الانتهاء]]<$B$4,$B$4-Table13[[#This Row],[ تاريخ الانتهاء]],0) -> 0 | G13: 2018-08-24 | H13: 2018-03-01 | I13: 6 | J13: =Table13[[#This Row],[الإجمالي]]-Table13[[#This Row],[المطلوب]] -> 13250 | K13: 13250 | L13: =Table13[[#This Row],[ ألأيجار]]+Table13[[#This Row],[ماء]] -> 26500 | M13: 500 | N13: 26000 | O13: 108 | P13: فتحي سمير محمد فتحي عرفات | Q13: 8
A14: B | B14: 1000 | D14: =IF(Table13[[#This Row],[ تاريخ الانتهاء]]<$B$4,$B$4-Table13[[#This Row],[ تاريخ الانتهاء]],0) -> 0 | G14: 2018-03-31 | H14: 2017-10-05 | I14: 6 | J14: =Table13[[#This Row],[الإجمالي]]-Table13[[#This Row],[المطلوب]] -> 13250 | K14: =(Table13[[#This Row],[الإجمالي]]/$Q$3)*Table13[[#This Row],[ طريقة الدفع]] -> 13250 | L14: =Table13[[#This Row],[ ألأيجار]]+Table13[[#This Row],[ماء]] -> 26500 | M14: 500 | N14: 26000 | O14: 201 | P14: كالانا سامباث جودابيتيا غادباج | Q14: 9
A15: A | D15: =IF(Table13[[#This Row],[ تاريخ الانتهاء]]<$B$4,$B$4-Table13[[#This Row],[ تاريخ الانتهاء]],0) -> 43188 | E15: مع سهيل | I15: 6 | J15: =Table13[[#This Row],[الإجمالي]]-Table13[[#This Row],[المطلوب]] -> 16250 | K15: =(Table13[[#This Row],[الإجمالي]]/$Q$3)*Table13[[#This Row],[ طريقة الدفع]] -> 16250 | L15: =Table13[[#This Row],[ ألأيجار]]+Table13[[#This Row],[ماء]] -> 32500 | M15: 500 | N15: 32000 | O15: 202 | P15: ماريون تيجاني | Q15: 10
A16: A | B16: 1000 | D16: =IF(Table13[[#This Row],[ تاريخ الانتهاء]]<$B$4,$B$4-Table13[[#This Row],[ تاريخ الانتهاء]],0) -> 63 | G16: 2018-01-25 | H16: 2017-08-01 | I16: 6 | J16: =Table13[[#This Row],[الإجمالي]]-Table13[[#This Row],[المطلوب]] -> 16250 | K16: =(Table13[[#This Row],[الإجمالي]]/$Q$3)*Table13[[#This Row],[ طريقة الدفع]] -> 16250 | L16: =Table13[[#This Row],[ ألأيجار]]+Table13[[#This Row],[ماء]] -> 32500 | M16: 500 | N16: 32000 | O16: 203 | P16: طارق دسوقى بكر درويش | Q16: 11
A17: B | B17: 1000 | D17: =IF(Table13[[#This Row],[ تاريخ الانتهاء]]<$B$4,$B$4-Table13[[#This Row],[ تاريخ الانتهاء]],0) -> 0 | G17: 2018-07-27 | H17: 2018-02-01 | I17: 6 | J17: =Table13[[#This Row],[الإجمالي]]-Table13[[#This Row],[المطلوب]] -> 13250 | K17: =(Table13[[#This Row],[الإجمالي]]/$Q$3)*Table13[[#This Row],[ طريقة الدفع]] -> 13250 | L17: =Table13[[#This Row],[ ألأيجار]]+Table13[[#This Row],[ماء]] -> 26500 | M17: 500 | N17: 26000 | O17: 204 | P17: حمدي يونساسماعيل علي | Q17: 12
A18: A | B18: 1000 | D18: =IF(Table13[[#This Row],[ تاريخ الانتهاء]]<$B$4,$B$4-Table13[[#This Row],[ تاريخ الانتهاء]],0) -> 28 | G18: 2018-03-01 | H18: 2017-09-05 | I18: 6 | J18: =Table13[[#This Row],[الإجمالي]]-Table13[[#This Row],[المطلوب]] -> 13250 | K18: =(Table13[[#This Row],[الإجمالي]]/$Q$3)*Table13[[#This Row],[ طريقة الدفع]] -> 13250 | L18: =Table13[[#This Row],[ ألأيجار]]+Table13[[#This Row],[ماء]] -> 26500 | M18: 500 | N18: 26000 | O18: 205 | P18: سالم توفيق علي الخالدي | Q18: 13
A19: B | B19: 1000 | D19: =IF(Table13[[#This Row],[ تاريخ الانتهاء]]<$B$4,$B$4-Table13[[#This Row],[ تاريخ الانتهاء]],0) -> 0 | G19: 2018-08-22 | H19: 2018-02-27 | I19: 6 | J19: =Table13[[#This Row],[الإجمالي]]-Table13[[#This Row],[المطلوب]] -> 16250 | K19: =(Table13[[#This Row],[الإجمالي]]/$Q$3)*Table13[[#This Row],[ طريقة الدفع]] -> 16250 | L19: =Table13[[#This Row],[ ألأيجار]]+Table13[[#This Row],[ماء]] -> 32500 | M19: 500 | N19: 32000 | O19: 206 | P19: ريتشارد فينبلس | Q19: 14
A20: B | B20: 1000 | D20: =IF(Table13[[#This Row],[ تاريخ الانتهاء]]<$B$4,$B$4-Table13[[#This Row],[ تاريخ الانتهاء]],0) -> 0 | G20: 2018-06-30 | H20: 2018-01-03 | I20: 6 | J20: =Table13[[#This Row],[الإجمالي]]-Table13[[#This Row],[المطلوب]] -> 16250 | K20: =(Table13[[#This Row],[الإجمالي]]/$Q$3)*Table13[[#This Row],[ طريقة الدفع]] -> 16250 | L20: =Table13[[#This Row],[ ألأيجار]]+Table13[[#This Row],[ماء]] -> 32500 | M20: 500 | N20: 32000 | O20: 207 | P20: أحمد صلاح حسن سر حان | Q20: 15
A21: A | D21: =IF(Table13[[#This Row],[ تاريخ الانتهاء]]<$B$4,$B$4-Table13[[#This Row],[ تاريخ الانتهاء]],0) -> 43188 | E21: مع سهيل | I21: 6 | J21: =Table13[[#This Row],[الإجمالي]]-Table13[[#This Row],[المطلوب]] -> 13250 | K21: =(Table13[[#This Row],[الإجمالي]]/$Q$3)*Table13[[#This Row],[ طريقة الدفع]] -> 13250 | L21: =Table13[[#This Row],[ ألأيجار]]+Table13[[#This Row],[ماء]] -> 26500 | M21: 500 | N21: 26000 | O21: 208 | P21: اريك فرجر | Q21: 16
A22: B | B22: 1000 | D22: =IF(Table13[[#This Row],[ تاريخ الانتهاء]]<$B$4,$B$4-Table13[[#This Row],[ تاريخ الانتهاء]],0) -> 0 | G22: 2018-06-20 | H22: 2017-12-25 | I22: 6 | J22: =Table13[[#This Row],[الإجمالي]]-Table13[[#This Row],[المطلوب]] -> 13250 | K22: =(Table13[[#This Row],[الإجمالي]]/$Q$3)*Table13[[#This Row],[ طريقة الدفع]] -> 13250 | L22: =Table13[[#This Row],[ ألأيجار]]+Table13[[#This Row],[ماء]] -> 26500 | M22: 500 | N22: 26000 | O22: 301 | P22: نقولا اسكندر شويري | Q22: 17
A23: A | B23: 1000 | D23: =IF(Table13[[#This Row],[ تاريخ الانتهاء]]<$B$4,$B$4-Table13[[#This Row],[ تاريخ الانتهاء]],0) -> 32 | G23: 2018-02-25 | H23: 2017-09-01 | I23: 6 | J23: =Table13[[#This Row],[الإجمالي]]-Table13[[#This Row],[المطلوب]] -> 16250 | K23: =(Table13[[#This Row],[الإجمالي]]/$Q$3)*Table13[[#This Row],[ طريقة الدفع]] -> 16250 | L23: =Table13[[#This Row],[ ألأيجار]]+Table13[[#This Row],[ماء]] -> 32500 | M23: 500 | N23: 32000 | O23: 302 | P23: وليد حمدى حامد عبدالغفار | Q23: 18
A24: A | B24: 1000 | D24: =IF(Table13[[#This Row],[ تاريخ الانتهاء]]<$B$4,$B$4-Table13[[#This Row],[ تاريخ الانتهاء]],0) -> 10 | G24: 2018-03-19 | H24: 2017-09-23 | I24: 6 | J24: =Table13[[#This Row],[الإجمالي]]-Table13[[#This Row],[المطلوب]] -> 16250 | K24: =(Table13[[#This Row],[الإجمالي]]/$Q$3)*Table13[[#This Row],[ طريقة الدفع]] -> 16250 | L24: =Table13[[#This Row],[ ألأيجار]]+Table13[[#This Row],[ماء]] -> 32500 | M24: 500 | N24: 32000 | O24: 303 | P24: عمر ابراهيم عبدالرحمن الجلال | Q24: 19
A25: A | B25: 1000 | D25: =IF(Table13[[#This Row],[ تاريخ الانتهاء]]<$B$4,$B$4-Table13[[#This Row],[ تاريخ الانتهاء]],0) -> 2 | G25: 2018-03-27 | H25: 2017-10-01 | I25: 6 | J25: =Table13[[#This Row],[الإجمالي]]-Table13[[#This Row],[المطلوب]] -> 13250 | K25: =(Table13[[#This Row],[الإجمالي]]/$Q$3)*Table13[[#This Row],[ طريقة الدفع]] -> 13250 | L25: =Table13[[#This Row],[ ألأيجار]]+Table13[[#This Row],[ماء]] -> 26500 | M25: 500 | N25: 26000 | O25: 304 | P25: محمد عباس كندي | Q25: 20
A26: A | D26: =IF(Table13[[#This Row],[ تاريخ الانتهاء]]<$B$4,$B$4-Table13[[#This Row],[ تاريخ الانتهاء]],0) -> 2018-03-29 | J26: =Table13[[#This Row],[الإجمالي]]-Table13[[#This Row],[المطلوب]] -> 0 | K26: =(Table13[[#This Row],[الإجمالي]]/$Q$3)*Table13[[#This Row],[ طريقة الدفع]] -> 0 | L26: =Table13[[#This Row],[ ألأيجار]]+Table13[[#This Row],[ماء]] -> 0 | O26: 305 | P26: فاضي | Q26: 21
A27: A | B27: 1000 | D27: =IF(Table13[[#This Row],[ تاريخ الانتهاء]]<$B$4,$B$4-Table13[[#This Row],[ تاريخ الانتهاء]],0) -> 2 | G27: 2018-03-27 | H27: 2017-10-01 | I27: 6 | J27: =Table13[[#This Row],[الإجمالي]]-Table13[[#This Row],[المطلوب]] -> 16250 | K27: =(Table13[[#This Row],[الإجمالي]]/$Q$3)*Table13[[#This Row],[ طريقة الدفع]] -> 16250 | L27: =Table13[[#This Row],[ ألأيجار]]+Table13[[#This Row],[ماء]] -> 32500 | M27: 500 | N27: 32000 | O27: 306 | P27: حمد علي صالح حمزة | Q27: 22
A28: A | D28: =IF(Table13[[#This Row],[ تاريخ الانتهاء]]<$B$4,$B$4-Table13[[#This Row],[ تاريخ الانتهاء]],0) -> 43188 | H28: 2017-12-25 | I28: 6 | J28: =Table13[[#This Row],[الإجمالي]]-Table13[[#This Row],[المطلوب]] -> 16250 | K28: =(Table13[[#This Row],[الإجمالي]]/$Q$3)*Table13[[#This Row],[ طريقة الدفع]] -> 16250 | L28: =Table13[[#This Row],[ ألأيجار]]+Table13[[#This Row],[ماء]] -> 32500 | M28: 500 | N28: 32000 | O28: 307 | P28: فاضي | Q28: 23
A29: B | B29: 1000 | D29: =IF(Table13[[#This Row],[ تاريخ الانتهاء]]<$B$4,$B$4-Table13[[#This Row],[ تاريخ الانتهاء]],0) -> 0 | G29: 2018-07-14 | H29: 2018-01-17 | I29: 6 | J29: =Table13[[#This Row],[الإجمالي]]-Table13[[#This Row],[المطلوب]] -> 13250 | K29: =(Table13[[#This Row],[الإجمالي]]/$Q$3)*Table13[[#This Row],[ طريقة الدفع]] -> 13250 | L29: =Table13[[#This Row],[ ألأيجار]]+Table13[[#This Row],[ماء]] -> 26500 | M29: 500 | N29: 26000 | O29: 308 | P29: محمد عبد اموجود عبد اغفار العفناوى | Q29: 24
A30: B | B30: 1000 | D30: =IF(Table13[[#This Row],[ تاريخ الانتهاء]]<$B$4,$B$4-Table13[[#This Row],[ تاريخ الانتهاء]],0) -> 0 | G30: 2018-04-25 | H30: 2017-10-30 | I30: 6 | J30: =Table13[[#This Row],[الإجمالي]]-Table13[[#This Row],[المطلوب]] -> 13750 | K30: =(Table13[[#This Row],[الإجمالي]]/$Q$3)*Table13[[#This Row],[ طريقة الدفع]] -> 13750 | L30: =Table13[[#This Row],[ ألأيجار]]+Table13[[#This Row],[ماء]] -> 27500 | M30: 500 | N30: 27000 | O30: 401 | P30: بندر بن رافع بن عبدالله اللا حق القرني | Q30: 25
A31: A | D31: =IF(Table13[[#This Row],[ تاريخ الانتهاء]]<$B$4,$B$4-Table13[[#This Row],[ تاريخ الانتهاء]],0) -> 43188 | E31: مع سهيل | I31: 6 | J31: =Table13[[#This Row],[الإجمالي]]-Table13[[#This Row],[المطلوب]] -> 16000 | K31: =(Table13[[#This Row],[الإجمالي]]/$Q$3)*Table13[[#This Row],[ طريقة الدفع]] -> 16000 | L31: =Table13[[#This Row],[ ألأيجار]]+Table13[[#This Row],[ماء]] -> 32000 | N31: 32000 | O31: 402 | P31: محمد محمود الحاج | Q31: 26
A32: B | B32: 1000 | D32: =IF(Table13[[#This Row],[ تاريخ الانتهاء]]<$B$4,$B$4-Table13[[#This Row],[ تاريخ الانتهاء]],0) -> 0 | G32: 2018-07-28 | H32: 2018-02-01 | I32: 6 | J32: =Table13[[#This Row],[الإجمالي]]-Table13[[#This Row],[المطلوب]] -> 13250 | K32: =(Table13[[#This Row],[الإجمالي]]/$Q$3)*Table13[[#This Row],[ طريقة الدفع]] -> 13250 | L32: =Table13[[#This Row],[ ألأيجار]]+Table13[[#This Row],[ماء]] -> 26500 | M32: 500 | N32: 26000 | O32: 403 | P32: خالد الطاهر قاسمي | Q32: 27
A33: B | B33: 1000 | D33: =IF(Table13[[#This Row],[ تاريخ الانتهاء]]<$B$4,$B$4-Table13[[#This Row],[ تاريخ الانتهاء]],0) -> 0 | G33: 2018-05-15 | H33: 2017-11-19 | I33: 6 | J33: =Table13[[#This Row],[الإجمالي]]-Table13[[#This Row],[المطلوب]] -> 13250 | K33: =(Table13[[#This Row],[الإجمالي]]/$Q$3)*Table13[[#This Row],[ طريقة الدفع]] -> 13250 | L33: =Table13[[#This Row],[ ألأيجار]]+Table13[[#This Row],[ماء]] -> 26500 | M33: 500 | N33: 26000 | O33: 404 | P33: يوسف نقولا متري | Q33: 28
A34: B | B34: 1000 | D34: =IF(Table13[[#This Row],[ تاريخ الانتهاء]]<$B$4,$B$4-Table13[[#This Row],[ تاريخ الانتهاء]],0) -> 0 | G34: 2018-08-24 | H34: 2018-03-01 | I34: 6 | J34: =Table13[[#This Row],[الإجمالي]]-Table13[[#This Row],[المطلوب]] -> 16250 | K34: =(Table13[[#This Row],[الإجمالي]]/$Q$3)*Table13[[#This Row],[ طريقة الدفع]] -> 16250 | L34: =Table13[[#This Row],[ ألأيجار]]+Table13[[#This Row],[ماء]] -> 32500 | M34: 500 | N34: 32000 | O34: 405 | P34: عمر فتح المعالج | Q34: 29
A35: B | B35: 1000 | D35: =IF(Table13[[#This Row],[ تاريخ الانتهاء]]<$B$4,$B$4-Table13[[#This Row],[ تاريخ الانتهاء]],0) -> 0 | G35: 2018-07-21 | H35: 2018-01-25 | I35: 6 | J35: =Table13[[#This Row],[الإجمالي]]-Table13[[#This Row],[المطلوب]] -> 14250 | K35: =(Table13[[#This Row],[الإجمالي]]/$Q$3)*Table13[[#This Row],[ طريقة الدفع]] -> 14250 | L35: =Table13[[#This Row],[ ألأيجار]]+Table13[[#This Row],[ماء]] -> 28500 | M35: 500 | N35: 28000 | O35: 406 | P35: معجب بن محمد القحطاني | Q35: 30
D36: =Table13[[#Totals],[ الباقي]] -> 427500 | J36: =SUBTOTAL(109,Table13[[ الباقي]]) -> 427500 | K36: =SUBTOTAL(109,Table13[المطلوب]) -> 427500 | L36: =SUBTOTAL(109,Table13[الإجمالي]) -> 855000 | M36: =SUBTOTAL(109,Table13[ماء]) -> 14000 | N36: =SUBTOTAL(109,Table13[[ ألأيجار]]) -> 841000

Sheet البايونيه
A3: A | B3: =TODAY() -> 2018-03-29 | C3: تاريخ الهجري | H3: البايونيه | P3: الشقق الفارغه | Q3: 12
A4: A | B4: =TODAY() -> 2018-03-29 | C4: الموافق | F4: 3 | J4: جوال= | P4: المحلات الفارغه
A5: =IF(D5>0,"A","B") -> A | B5: تأمين | C5: رقم الجوال | D5: عدد أيام تأخير | E5: ملاحظات | F5: المدفوع | G5: تاريخ الانتهاء | H5: تاريخ ابتداءالايجار | I5: طريقة الدفع | J5: الباقي | K5: المطلوب | L5: الإجمالي | M5: ماء | N5: ألأيجار | O5: رقم الشقة | P5: اسم المستأجر | Q5: الرقم
A6: =IF(D6>0,"A","B") -> B | B6: بدون تأمين | D6: =IF(Table134[[#This Row],[ تاريخ الانتهاء]]<$B$4,$B$4-Table134[[#This Row],[ تاريخ الانتهاء]],0) -> 0 | E6: باقي 600 | G6: 2018-08-20 | H6: 2017-09-01 | I6: 12 | J6: =Table134[[#This Row],[الإجمالي]]-Table134[[#This Row],[المطلوب]] -> 0 | K6: =(Table134[[#This Row],[الإجمالي]]/$Q$3)*Table134[[#This Row],[ طريقة الدفع]] -> 10600 | L6: =Table134[[#This Row],[ ألأيجار]]+Table134[[#This Row],[ماء]] -> 10600 | M6: 600 | N6: 10000 | O6: 1 | P6: ملوين و التر داليما | Q6: 1
A7: =IF(D7>0,"A","B") -> B | B7: بدون تأمين | D7: =IF(Table134[[#This Row],[ تاريخ الانتهاء]]<$B$4,$B$4-Table134[[#This Row],[ تاريخ الانتهاء]],0) -> 0 | E7: باقي 600 | G7: 2018-10-19 | H7: 2017-10-30 | I7: 12 | J7: =Table134[[#This Row],[الإجمالي]]-Table134[[#This Row],[المطلوب]] -> 0 | K7: =(Table134[[#This Row],[الإجمالي]]/$Q$3)*Table134[[#This Row],[ طريقة الدفع]] -> 10600 | L7: =Table134[[#This Row],[ ألأيجار]]+Table134[[#This Row],[ماء]] -> 10600 | M7: 600 | N7: 10000 | O7: 2 | P7: سيد محمد بانا | Q7: =Q6+1 -> 2
A8: B | B8: بدون تأمين | D8: =IF(Table134[[#This Row],[ تاريخ الانتهاء]]<$B$4,$B$4-Table134[[#This Row],[ تاريخ الانتهاء]],0) -> 0 | G8: 2018-05-14 | I8: 6 | J8: =Table134[[#This Row],[الإجمالي]]-Table134[[#This Row],[المطلوب]] -> 6300 | K8: =(Table134[[#This Row],[الإجمالي]]/$Q$3)*Table134[[#This Row],[ طريقة الدفع]] -> 6300 | L8: =Table134[[#This Row],[ ألأيجار]]+Table134[[#This Row],[ماء]] -> 12600 | M8: 600 | N8: 12000 | O8: 3 | P8: مانوج تايبارامبو سيفاداس | Q8: =Q7+1 -> 3
A9: B | B9: بدون تأمين | D9: =IF(Table134[[#This Row],[ تاريخ الانتهاء]]<$B$4,$B$4-Table134[[#This Row],[ تاريخ الانتهاء]],0) -> 0 | G9: 2018-05-15 | H9: 2017-09-21 | I9: =246.769811320755/30 -> 8.225660377 | J9: =Table134[[#This Row],[الإجمالي]]-Table134[[#This Row],[المطلوب]] -> 3334 | K9: =(Table134[[#This Row],[الإجمالي]]/$Q$3)*Table134[[#This Row],[ طريقة الدفع]] -> 7266 | L9: =Table134[[#This Row],[ ألأيجار]]+Table134[[#This Row],[ماء]] -> 10600 | M9: 600 | N9: 10000 | O9: 4 | P9: مجاهد علي محمد | Q9: 4
A10: A | B10: بدون تأمين | D10: =IF(Table134[[#This Row],[ تاريخ الانتهاء]]<$B$4,$B$4-Table134[[#This Row],[ تاريخ الانتهاء]],0) -> 268 | G10: 2017-07-04 | I10: 12 | J10: =Table134[[#This Row],[الإجمالي]]-Table134[[#This Row],[المطلوب]] -> 0 | K10: =(Table134[[#This Row],[الإجمالي]]/$Q$3)*Table134[[#This Row],[ طريقة الدفع]] -> 13200 | L10: =Table134[[#This Row],[ ألأيجار]]+Table134[[#This Row],[ماء]] -> 13200 | M10: 200 | N10: 13000 | O10: 5 | P10: صديق مباكران | Q10: 5
A11: B | B11: بدون تأمين | D11: =IF(Table134[[#This Row],[ تاريخ الانتهاء]]<$B$4,$B$4-Table134[[#This Row],[ تاريخ الانتهاء]],0) -> 0 | G11: 2018-05-10 | H11: 2017-11-14 | I11: 6 | J11: =Table134[[#This Row],[الإجمالي]]-Table134[[#This Row],[المطلوب]] -> 6300 | K11: =(Table134[[#This Row],[الإجمالي]]/$Q$3)*Table134[[#This Row],[ طريقة الدفع]] -> 6300 | L11: =Table134[[#This Row],[ ألأيجار]]+Table134[[#This Row],[ماء]] -> 12600 | M11: 600 | N11: 12000 | O11: 6 | P11: داس ناريان ناير | Q11: 6
A12: B | B12: بدون تأمين | D12: =IF(Table134[[#This Row],[ تاريخ الانتهاء]]<$B$4,$B$4-Table134[[#This Row],[ تاريخ الانتهاء]],0) -> 0 | G12: 2018-04-24 | H12: 2017-10-29 | I12: 6 | J12: =Table134[[#This Row],[الإجمالي]]-Table134[[#This Row],[المطلوب]] -> 5300 | K12: =(Table134[[#This Row],[الإجمالي]]/$Q$3)*Table134[[#This Row],[ طريقة الدفع]] -> 5300 | L12: =Table134[[#This Row],[ ألأيجار]]+Table134[[#This Row],[ماء]] -> 10600 | M12: 600 | N12: 10000 | O12: 7 | P12: عبدالودود محمد علي | Q12: 7
A13: B | B13: بدون تأمين | D13: =IF(Table134[[#This Row],[ تاريخ الانتهاء]]<$B$4,$B$4-Table134[[#This Row],[ تاريخ الانتهاء]],0) -> 0 | G13: 2018-07-22 | H13: 2018-01-26 | I13: 6 | J13: =Table134[[#This Row],[الإجمالي]]-Table134[[#This Row],[المطلوب]] -> 6300 | K13: =(Table134[[#This Row],[الإجمالي]]/$Q$3)*Table134[[#This Row],[ طريقة الدفع]] -> 6300 | L13: =Table134[[#This Row],[ ألأيجار]]+Table134[[#This Row],[ماء]] -> 12600 | M13: 600 | N13: 12000 | O13: 8 | P13: عبدالقادر حسن باقيس | Q13: 8
A14: A | D14: =IF(Table134[[#This Row],[ تاريخ الانتهاء]]<$B$4,$B$4-Table134[[#This Row],[ تاريخ الانتهاء]],0) -> 43188 | J14: =Table134[[#This Row],[الإجمالي]]-Table134[[#This Row],[المطلوب]] -> 0 | K14: =(Table134[[#This Row],[الإجمالي]]/$Q$3)*Table134[[#This Row],[ طريقة الدفع]] -> 0 | L14: =Table134[[#This Row],[ ألأيجار]]+Table134[[#This Row],[ماء]] -> 0 | O14: M1 | P14: فاضي | Q14: 9
A15: A | D15: =IF(Table134[[#This Row],[ تاريخ الانتهاء]]<$B$4,$B$4-Table134[[#This Row],[ تاريخ الانتهاء]],0) -> 43188 | J15: =Table134[[#This Row],[الإجمالي]]-Table134[[#This Row],[المطلوب]] -> 0 | K15: =(Table134[[#This Row],[الإجمالي]]/$Q$3)*Table134[[#This Row],[ طريقة الدفع]] -> 0 | L15: =Table134[[#This Row],[ ألأيجار]]+Table134[[#This Row],[ماء]] -> 0 | O15: M2 | P15: فاضي | Q15: 10
A16: A | B16: بدون تأمين | D16: =IF(Table134[[#This Row],[ تاريخ الانتهاء]]<$B$4,$B$4-Table134[[#This Row],[ تاريخ الانتهاء]],0) -> 28 | E16: يتحمل جميع الخدمات | G16: 2018-03-01 | H16: 2017-09-01 | I16: 6 | J16: =Table134[[#This Row],[الإجمالي]]-Table134[[#This Row],[المطلوب]] -> 78000 | K16: =(Table134[[#This Row],[الإجمالي]]/$Q$3)*Table134[[#This Row],[ طريقة الدفع]] -> 78000 | L16: =Table134[[#This Row],[ ألأيجار]]+Table134[[#This Row],[ماء]] -> 156000 | N16: 156000 | O16: الثقبه | P16: شركة سارة المتحدة(يحيي السخاوي) | Q16: 11
A17: A | D17: =Table134[[#Totals],[المطلوب]] -> 143866 | K17: =SUBTOTAL(109,Table134[المطلوب]) -> 143866 | L17: =SUBTOTAL(109,Table134[الإجمالي]) -> 249400 | M17: =SUBTOTAL(109,Table134[ماء]) -> 4400 | N17: =SUBTOTAL(109,Table134[[ ألأيجار]]) -> 245000
A18: B
A19: B
A20: B
A21: B
A22: B
A23: B
A24: B
A25: B
A26: B
A27: B
A28: B
A29: B
A30: B
A31: B
A32: B
A33: B
A34: B
A35: B

Sheet الراكه
A3: A | B3: =TODAY() -> 2018-03-29 | C3: تاريخ الهجري | H3: الراكه | P3: الشقق الفارغه | Q3: 12
A4: A | B4: =TODAY() -> 2018-03-29 | C4: الموافق | F4: 3 | J4: جوال= | P4: المحلات الفارغه
A5: =IF(D5>0,"A","B") -> A | B5: تأمين | C5: رقم الجوال | D5: عدد أيام تأخير | E5: ملاحظات | F5: المدفوع | G5: تاريخ الانتهاء | H5: تاريخ ابتداءالايجار | I5: طريقة الدفع | J5: الباقي | K5: المطلوب | L5: الإجمالي | M5: ماء | N5: ألأيجار | O5: رقم الشقة | P5: اسم المستأجر | Q5: الرقم
A6: =IF(D6>0,"A","B") -> A | D6: =IF(Table13412[[#This Row],[ تاريخ الانتهاء]]<$B$4,$B$4-Table13412[[#This Row],[ تاريخ الانتهاء]],0) -> 28 | G6: 2018-03-01 | I6: 12 | J6: =Table13412[[#This Row],[الإجمالي]]-Table13412[[#This Row],[المطلوب]] -> 0 | K6: =(Table13412[[#This Row],[الإجمالي]]/$Q$3)*Table13412[[#This Row],[ طريقة الدفع]] -> 22600 | L6: =Table13412[[#This Row],[ ألأيجار]]+Table13412[[#This Row],[ماء]] -> 22600 | M6: 600 | N6: 22000 | O6: 1 | P6: إبراهيم المهنا | Q6: 1
A7: =IF(D7>0,"A","B") -> B | D7: =IF(Table13412[[#This Row],[ تاريخ الانتهاء]]<$B$4,$B$4-Table13412[[#This Row],[ تاريخ الانتهاء]],0) -> 0 | G7: 2018-05-24 | I7: 6 | J7: =Table13412[[#This Row],[الإجمالي]]-Table13412[[#This Row],[المطلوب]] -> 10300 | K7: =(Table13412[[#This Row],[الإجمالي]]/$Q$3)*Table13412[[#This Row],[ طريقة الدفع]] -> 10300 | L7: =Table13412[[#This Row],[ ألأيجار]]+Table13412[[#This Row],[ماء]] -> 20600 | M7: 600 | N7: 20000 | O7: 2 | P7: محمد | Q7: =Q6+1 -> 2
A8: B | D8: =IF(Table13412[[#This Row],[ تاريخ الانتهاء]]<$B$4,$B$4-Table13412[[#This Row],[ تاريخ الانتهاء]],0) -> 0 | E8: يتحمل كهرباء الماتور | G8: 2018-06-17 | I8: 6 | J8: =Table13412[[#This Row],[الإجمالي]]-Table13412[[#This Row],[المطلوب]] -> 10000 | K8: =(Table13412[[#This Row],[الإجمالي]]/$Q$3)*Table13412[[#This Row],[ طريقة الدفع]] -> 10000 | L8: =Table13412[[#This Row],[ ألأيجار]]+Table13412[[#This Row],[ماء]] -> 20000 | N8: 20000 | O8: 3 | P8: مازن وهيب حمزه | Q8: =Q7+1 -> 3
A9: A | D9: =IF(Table13412[[#This Row],[ تاريخ الانتهاء]]<$B$4,$B$4-Table13412[[#This Row],[ تاريخ الانتهاء]],0) -> 71 | G9: 2018-01-17 | I9: 12 | J9: =Table13412[[#This Row],[الإجمالي]]-Table13412[[#This Row],[المطلوب]] -> 0 | K9: =(Table13412[[#This Row],[الإجمالي]]/$Q$3)*Table13412[[#This Row],[ طريقة الدفع]] -> 23300 | L9: =Table13412[[#This Row],[ ألأيجار]]+Table13412[[#This Row],[ماء]] -> 23300 | M9: 300 | N9: 23000 | O9: 4 | P9: ناصر مروان حمود | Q9: 4
A10: B | B10: 1000 | D10: =IF(Table13412[[#This Row],[ تاريخ الانتهاء]]<$B$4,$B$4-Table13412[[#This Row],[ تاريخ الانتهاء]],0) -> 0 | G10: 2018-04-25 | I10: 6 | J10: =Table13412[[#This Row],[الإجمالي]]-Table13412[[#This Row],[المطلوب]] -> 10300 | K10: =(Table13412[[#This Row],[الإجمالي]]/$Q$3)*Table13412[[#This Row],[ طريقة الدفع]] -> 10300 | L10: =Table13412[[#This Row],[ ألأيجار]]+Table13412[[#This Row],[ماء]] -> 20600 | M10: 600 | N10: 20000 | O10: 5 | P10: ارشاد علي محمد عثمان | Q10: 5
A11: A | D11: =IF(Table13412[[#This Row],[ تاريخ الانتهاء]]<$B$4,$B$4-Table13412[[#This Row],[ تاريخ الانتهاء]],0) -> 12 | G11: 2018-03-17 | I11: 6 | J11: =Table13412[[#This Row],[الإجمالي]]-Table13412[[#This Row],[المطلوب]] -> 10300 | K11: =(Table13412[[#This Row],[الإجمالي]]/$Q$3)*Table13412[[#This Row],[ طريقة الدفع]] -> 10300 | L11: =Table13412[[#This Row],[ ألأيجار]]+Table13412[[#This Row],[ماء]] -> 20600 | M11: 600 | N11: 20000 | O11: 6 | P11: رانجيت ناير | Q11: 6
A12: B | D12: =IF(Table13412[[#This Row],[ تاريخ الانتهاء]]<$B$4,$B$4-Table13412[[#This Row],[ تاريخ الانتهاء]],0) -> 0 | G12: 2018-08-11 | I12: 6 | J12: =Table13412[[#This Row],[الإجمالي]]-Table13412[[#This Row],[المطلوب]] -> 10300 | K12: =(Table13412[[#This Row],[الإجمالي]]/$Q$3)*Table13412[[#This Row],[ طريقة الدفع]] -> 10300 | L12: =Table13412[[#This Row],[ ألأيجار]]+Table13412[[#This Row],[ماء]] -> 20600 | M12: 600 | N12: 20000 | O12: 7 | P12: نزار مهدى خان | Q12: 7
A13: A | B13: 1000 | D13: =IF(Table13412[[#This Row],[ تاريخ الانتهاء]]<$B$4,$B$4-Table13412[[#This Row],[ تاريخ الانتهاء]],0) -> 1 | G13: 2018-03-28 | I13: 6 | J13: =Table13412[[#This Row],[الإجمالي]]-Table13412[[#This Row],[المطلوب]] -> 10300 | K13: =(Table13412[[#This Row],[الإجمالي]]/$Q$3)*Table13412[[#This Row],[ طريقة الدفع]] -> 10300 | L13: =Table13412[[#This Row],[ ألأيجار]]+Table13412[[#This Row],[ماء]] -> 20600 | M13: 600 | N13: 20000 | O13: 8 | P13: اوفايل كاروناي فاروق | Q13: 8
A14: B | D14: =IF(Table13412[[#This Row],[ تاريخ الانتهاء]]<$B$4,$B$4-Table13412[[#This Row],[ تاريخ الانتهاء]],0) -> 0 | E14: باقي 500 | G14: 2018-04-28 | I14: 6 | J14: =Table13412[[#This Row],[الإجمالي]]-Table13412[[#This Row],[المطلوب]] -> 5250 | K14: =(Table13412[[#This Row],[الإجمالي]]/$Q$3)*Table13412[[#This Row],[ طريقة الدفع]] -> 5250 | L14: =Table13412[[#This Row],[ ألأيجار]]+Table13412[[#This Row],[ماء]] -> 10500 | M14: 500 | N14: 10000 | O14: 9 | P14: محمد قاسم شيخ علي | Q14: 9
A15: A | D15: =IF(Table13412[[#This Row],[ تاريخ الانتهاء]]<$B$4,$B$4-Table13412[[#This Row],[ تاريخ الانتهاء]],0) -> 43188 | J15: =Table13412[[#This Row],[الإجمالي]]-Table13412[[#This Row],[المطلوب]] -> 0 | K15: =(Table13412[[#This Row],[الإجمالي]]/$Q$3)*Table13412[[#This Row],[ طريقة الدفع]] -> 0 | L15: =Table13412[[#This Row],[ ألأيجار]]+Table13412[[#This Row],[ماء]] -> 0 | Q15: 10
A16: A | D16: =IF(Table13412[[#This Row],[ تاريخ الانتهاء]]<$B$4,$B$4-Table13412[[#This Row],[ تاريخ الانتهاء]],0) -> 43188 | J16: =Table13412[[#This Row],[الإجمالي]]-Table13412[[#This Row],[المطلوب]] -> 0 | K16: =(Table13412[[#This Row],[الإجمالي]]/$Q$3)*Table13412[[#This Row],[ طريقة الدفع]] -> 0 | L16: =Table13412[[#This Row],[ ألأيجار]]+Table13412[[#This Row],[ماء]] -> 0 | Q16: 11
A17: A | D17: =Table13412[[#Totals],[المطلوب]] -> 112650 | K17: =SUBTOTAL(109,Table13412[المطلوب]) -> 112650 | L17: =SUBTOTAL(109,Table13412[الإجمالي]) -> 179400 | M17: =SUBTOTAL(109,Table13412[ماء]) -> 4400 | N17: =SUBTOTAL(109,Table13412[[ ألأيجار]]) -> 175000 | AA17: ='سند قبض'!G18 -> 0
A18: B | AA18: ='سند قبض'!G19 -> 0
A19: B | AA19: ='سند قبض'!G20 -> 0
A20: B | AA20: ='سند قبض'!G21 -> 0
A21: B | AA21: ='سند قبض'!G22 -> 0
A22: B | AA22: ='سند قبض'!G23 -> 0
A23: B | AA23: ='سند قبض'!G24 -> 0
A24: B | AA24: ='سند قبض'!G25 -> 0
A25: B | AA25: ='سند قبض'!G26 -> 0
A26: B | AA26: ='سند قبض'!G27 -> 0
A27: B | AA27: ='سند قبض'!G28 -> 0
A28: B | AA28: ='سند قبض'!G29 -> 0
A29: B
A30: B
A31: B
A32: B
A33: B
A34: B
A35: B

Sheet سعد
A3: A | B3: =TODAY() -> 2018-03-29 | C3: تاريخ الهجري | H3: سعد | P3: الشقق الفارغه | Q3: 12
A4: A | B4: =TODAY() -> 2018-03-29 | C4: الموافق | F4: 5 | J4: جوال= | P4: المحلات الفارغه
A5: =IF(D5>0,"A","B") -> A | B5: تأمين | C5: رقم الجوال | D5: عدد أيام تأخير | E5: ملاحظات | F5: المدفوع | G5: تاريخ الانتهاء | H5: تاريخ ابتداءالايجار | I5: طريقة الدفع | J5: الباقي | K5: المطلوب | L5: الإجمالي | M5: ماء | N5: ألأيجار | O5: رقم الشقة | P5: اسم المستأجر | Q5: الرقم
A6: =IF(D6>0,"A","B") -> A | B6: 1000 | D6: =IF(Table1348910[[#This Row],[ تاريخ الانتهاء]]<$B$4,$B$4-Table1348910[[#This Row],[ تاريخ الانتهاء]],0) -> 32 | G6: 2018-02-25 | H6: 2017-11-28 | I6: 3 | J6: =Table1348910[[#This Row],[الإجمالي]]-Table1348910[[#This Row],[المطلوب]] -> 9975 | K6: =(Table1348910[[#This Row],[الإجمالي]]/$Q$3)*Table1348910[[#This Row],[ طريقة الدفع]] -> 3325 | L6: =Table1348910[[#This Row],[ ألأيجار]]+Table1348910[[#This Row],[ماء]] -> 13300 | M6: 300 | N6: 13000 | O6: 101 | P6: ابنوسيدبين مسحليحات | Q6: 1
A7: =IF(D7>0,"A","B") -> A | D7: =IF(Table1348910[[#This Row],[ تاريخ الانتهاء]]<$B$4,$B$4-Table1348910[[#This Row],[ تاريخ الانتهاء]],0) -> 18 | G7: 2018-03-11 | H7: 2017-03-23 | I7: 12 | J7: =Table1348910[[#This Row],[الإجمالي]]-Table1348910[[#This Row],[المطلوب]] -> 0 | K7: =(Table1348910[[#This Row],[الإجمالي]]/$Q$3)*Table1348910[[#This Row],[ طريقة الدفع]] -> 17000 | L7: =Table1348910[[#This Row],[ ألأيجار]]+Table1348910[[#This Row],[ماء]] -> 17000 | N7: 17000 | O7: 102 | P7: احمد عبد الرحيم | Q7: =Q6+1 -> 2
A8: A | B8: 1000 | D8: =IF(Table1348910[[#This Row],[ تاريخ الانتهاء]]<$B$4,$B$4-Table1348910[[#This Row],[ تاريخ الانتهاء]],0) -> 23 | G8: 2018-03-06 | H8: 2017-12-07 | I8: 3 | J8: =Table1348910[[#This Row],[الإجمالي]]-Table1348910[[#This Row],[المطلوب]] -> 16125 | K8: =(Table1348910[[#This Row],[الإجمالي]]/$Q$3)*Table1348910[[#This Row],[ طريقة الدفع]] -> 5375 | L8: =Table1348910[[#This Row],[ ألأيجار]]+Table1348910[[#This Row],[ماء]] -> 21500 | M8: 500 | N8: 21000 | O8: 103 | P8: المريت ديلا نافاريت | Q8: =Q7+1 -> 3
A9: A | B9: 1000 | D9: =IF(Table1348910[[#This Row],[ تاريخ الانتهاء]]<$B$4,$B$4-Table1348910[[#This Row],[ تاريخ الانتهاء]],0) -> 49 | G9: 2018-02-08 | H9: 2017-11-11 | I9: 3 | J9: =Table1348910[[#This Row],[الإجمالي]]-Table1348910[[#This Row],[المطلوب]] -> 10500 | K9: =(Table1348910[[#This Row],[الإجمالي]]/$Q$3)*Table1348910[[#This Row],[ طريقة الدفع]] -> 3500 | L9: =Table1348910[[#This Row],[ ألأيجار]]+Table1348910[[#This Row],[ماء]] -> 14000 | N9: 14000 | O9: 104 | P9: فيسينت مير جاميو | Q9: 4
A10: B | B10: 1000 | D10: =IF(Table1348910[[#This Row],[ تاريخ الانتهاء]]<$B$4,$B$4-Table1348910[[#This Row],[ تاريخ الانتهاء]],0) -> 0 | E10: له 250 | G10: 2018-07-03 | H10: 2017-07-13 | I10: 6 | J10: =Table1348910[[#This Row],[الإجمالي]]-Table1348910[[#This Row],[المطلوب]] -> 5125 | K10: =(Table1348910[[#This Row],[الإجمالي]]/$Q$3)*Table1348910[[#This Row],[ طريقة الدفع]] -> 5125 | L10: =Table1348910[[#This Row],[ ألأيجار]]+Table1348910[[#This Row],[ماء]] -> 10250 | M10: 250 | N10: 10000 | O10: 105 | P10: عبيداوي ابو لا كاندي | Q10: 5
A11: B | D11: =IF(Table1348910[[#This Row],[ تاريخ الانتهاء]]<$B$4,$B$4-Table1348910[[#This Row],[ تاريخ الانتهاء]],0) -> 0 | G11: 2018-07-03 | H11: 2017-07-13 | I11: 6 | J11: =Table1348910[[#This Row],[الإجمالي]]-Table1348910[[#This Row],[المطلوب]] -> 7625 | K11: =(Table1348910[[#This Row],[الإجمالي]]/$Q$3)*Table1348910[[#This Row],[ طريقة الدفع]] -> 7625 | L11: =Table1348910[[#This Row],[ ألأيجار]]+Table1348910[[#This Row],[ماء]] -> 15250 | M11: 250 | N11: 15000 | O11: 106 | P11: عبيداوي ابو لا كاندي | Q11: 6
A12: B | B12: 1000 | D12: =IF(Table1348910[[#This Row],[ تاريخ الانتهاء]]<$B$4,$B$4-Table1348910[[#This Row],[ تاريخ الانتهاء]],0) -> 0 | E12: باقي 2750 | G12: 2018-06-20 | H12: 2017-09-26 | I12: 6 | J12: =Table1348910[[#This Row],[الإجمالي]]-Table1348910[[#This Row],[المطلوب]] -> 8625 | K12: =(Table1348910[[#This Row],[الإجمالي]]/$Q$3)*Table1348910[[#This Row],[ طريقة الدفع]] -> 8625 | L12: =Table1348910[[#This Row],[ ألأيجار]]+Table1348910[[#This Row],[ماء]] -> 17250 | M12: 250 | N12: 17000 | O12: 107 | P12: حسين صديق | Q12: 7
A13: B | D13: =IF(Table1348910[[#This Row],[ تاريخ الانتهاء]]<$B$4,$B$4-Table1348910[[#This Row],[ تاريخ الانتهاء]],0) -> 0 | G13: 2018-06-20 | H13: 2017-09-26 | I13: 6 | J13: =Table1348910[[#This Row],[الإجمالي]]-Table1348910[[#This Row],[المطلوب]] -> 4125 | K13: =(Table1348910[[#This Row],[الإجمالي]]/$Q$3)*Table1348910[[#This Row],[ طريقة الدفع]] -> 4125 | L13: =Table1348910[[#This Row],[ ألأيجار]]+Table1348910[[#This Row],[ماء]] -> 8250 | M13: 250 | N13: 8000 | O13: 108 | P13: حسين صديق | Q13: 8
A14: B | B14: 2000 | D14: =IF(Table1348910[[#This Row],[ تاريخ الانتهاء]]<$B$4,$B$4-Table1348910[[#This Row],[ تاريخ الانتهاء]],0) -> 0 | G14: 2019-01-15 | H14: 2018-01-27 | I14: 12 | J14: =Table1348910[[#This Row],[الإجمالي]]-Table1348910[[#This Row],[المطلوب]] -> 0 | K14: =(Table1348910[[#This Row],[الإجمالي]]/$Q$3)*Table1348910[[#This Row],[ طريقة الدفع]] -> 36500 | L14: =Table1348910[[#This Row],[ ألأيجار]]+Table1348910[[#This Row],[ماء]] -> 36500 | M14: 500 | N14: 36000 | O14: 201 | P14: l b c express | Q14: 9
A15: A | D15: =IF(Table1348910[[#This Row],[ تاريخ الانتهاء]]<$B$4,$B$4-Table1348910[[#This Row],[ تاريخ الانتهاء]],0) -> 43188 | J15: =Table1348910[[#This Row],[الإجمالي]]-Table1348910[[#This Row],[المطلوب]] -> 0 | K15: =(Table1348910[[#This Row],[الإجمالي]]/$Q$3)*Table1348910[[#This Row],[ طريقة الدفع]] -> 0 | L15: =Table1348910[[#This Row],[ ألأيجار]]+Table1348910[[#This Row],[ماء]] -> 0 | O15: 202 | P15: l b c express | Q15: 10
A16: A | D16: =IF(Table1348910[[#This Row],[ تاريخ الانتهاء]]<$B$4,$B$4-Table1348910[[#This Row],[ تاريخ الانتهاء]],0) -> 43188 | J16: =Table1348910[[#This Row],[الإجمالي]]-Table1348910[[#This Row],[المطلوب]] -> 0 | K16: =(Table1348910[[#This Row],[الإجمالي]]/$Q$3)*Table1348910[[#This Row],[ طريقة الدفع]] -> 0 | L16: =Table1348910[[#This Row],[ ألأيجار]]+Table1348910[[#This Row],[ماء]] -> 0 | O16: 203 | P16: فاضي | Q16: 11
A17: A | B17: 500 | D17: =IF(Table1348910[[#This Row],[ تاريخ الانتهاء]]<$B$4,$B$4-Table1348910[[#This Row],[ تاريخ الانتهاء]],0) -> 18 | G17: 2018-03-11 | H17: 2017-09-14 | I17: 3 | J17: =Table1348910[[#This Row],[الإجمالي]]-Table1348910[[#This Row],[المطلوب]] -> 7650 | K17: =(Table1348910[[#This Row],[الإجمالي]]/$Q$3)*Table1348910[[#This Row],[ طريقة الدفع]] -> 2550 | L17: =Table1348910[[#This Row],[ ألأيجار]]+Table1348910[[#This Row],[ماء]] -> 10200 | M17: 200 | N17: 10000 | O17: 204 | P17: جاريل ماني كادو استاسيو | Q17: 12
A18: B | B18: 500 | D18: =IF(Table1348910[[#This Row],[ تاريخ الانتهاء]]<$B$4,$B$4-Table1348910[[#This Row],[ تاريخ الانتهاء]],0) -> 0 | G18: 2018-03-31 | H18: 2017-12-03 | I18: 4 | J18: =Table1348910[[#This Row],[الإجمالي]]-Table1348910[[#This Row],[المطلوب]] -> 6866.666667 | K18: =(Table1348910[[#This Row],[الإجمالي]]/$Q$3)*Table1348910[[#This Row],[ طريقة الدفع]] -> 3433.333333 | L18: =Table1348910[[#This Row],[ ألأيجار]]+Table1348910[[#This Row],[ماء]] -> 10300 | M18: 300 | N18: 10000 | O18: 205 | P18: عبدالسلام كوتيكودين | Q18: 13
A19: A | D19: =IF(Table1348910[[#This Row],[ تاريخ الانتهاء]]<$B$4,$B$4-Table1348910[[#This Row],[ تاريخ الانتهاء]],0) -> 43188 | I19: 3 | J19: =Table1348910[[#This Row],[الإجمالي]]-Table1348910[[#This Row],[المطلوب]] -> 0 | K19: =(Table1348910[[#This Row],[الإجمالي]]/$Q$3)*Table1348910[[#This Row],[ طريقة الدفع]] -> 0 | L19: =Table1348910[[#This Row],[ ألأيجار]]+Table1348910[[#This Row],[ماء]] -> 0 | O19: 206 | P19: فاضي | Q19: 14
A20: A | D20: =IF(Table1348910[[#This Row],[ تاريخ الانتهاء]]<$B$4,$B$4-Table1348910[[#This Row],[ تاريخ الانتهاء]],0) -> 18 | G20: 2018-03-11 | H20: 2017-03-23 | I20: 12 | J20: =Table1348910[[#This Row],[الإجمالي]]-Table1348910[[#This Row],[المطلوب]] -> 0 | K20: =(Table1348910[[#This Row],[الإجمالي]]/$Q$3)*Table1348910[[#This Row],[ طريقة الدفع]] -> 17000 | L20: =Table1348910[[#This Row],[ ألأيجار]]+Table1348910[[#This Row],[ماء]] -> 17000 | M20: 0 | N20: 17000 | O20: 207 | P20: احمد عبد الرحيم | Q20: 15
A21: A | B21: 500 | D21: =IF(Table1348910[[#This Row],[ تاريخ الانتهاء]]<$B$4,$B$4-Table1348910[[#This Row],[ تاريخ الانتهاء]],0) -> 5 | G21: 2018-03-24 | H21: 2017-12-26 | I21: 3 | J21: =Table1348910[[#This Row],[الإجمالي]]-Table1348910[[#This Row],[المطلوب]] -> 7725 | K21: =(Table1348910[[#This Row],[الإجمالي]]/$Q$3)*Table1348910[[#This Row],[ طريقة الدفع]] -> 2575 | L21: =Table1348910[[#This Row],[ ألأيجار]]+Table1348910[[#This Row],[ماء]] -> 10300 | M21: 300 | N21: 10000 | O21: 208 | P21: حمزة صابر محمد صابر | Q21: 16
A22: A | D22: =IF(Table1348910[[#This Row],[ تاريخ الانتهاء]]<$B$4,$B$4-Table1348910[[#This Row],[ تاريخ الانتهاء]],0) -> 43188 | J22: =Table1348910[[#This Row],[الإجمالي]]-Table1348910[[#This Row],[المطلوب]] -> 0 | K22: =(Table1348910[[#This Row],[الإجمالي]]/$Q$3)*Table1348910[[#This Row],[ طريقة الدفع]] -> 0 | L22: =Table1348910[[#This Row],[ ألأيجار]]+Table1348910[[#This Row],[ماء]] -> 0 | M22: 0 | O22: 301 | P22: فاضي | Q22: 17
A23: A | D23: =IF(Table1348910[[#This Row],[ تاريخ الانتهاء]]<$B$4,$B$4-Table1348910[[#This Row],[ تاريخ الانتهاء]],0) -> 111 | G23: 2017-12-08 | H23: 2017-09-11 | I23: 3 | J23: =Table1348910[[#This Row],[الإجمالي]]-Table1348910[[#This Row],[المطلوب]] -> 9225 | K23: =(Table1348910[[#This Row],[الإجمالي]]/$Q$3)*Table1348910[[#This Row],[ طريقة الدفع]] -> 3075 | L23: =Table1348910[[#This Row],[ ألأيجار]]+Table1348910[[#This Row],[ماء]] -> 12300 | M23: 300 | N23: 12000 | O23: 302 | P23: راشد غفور | Q23: 18
A24: A | D24: =Table1348910[[#Totals],[المطلوب]] -> 119833.3333 | K24: =SUBTOTAL(109,Table1348910[المطلوب]) -> 119833.3333 | L24: =SUBTOTAL(109,Table1348910[الإجمالي]) -> 213400 | M24: =SUBTOTAL(109,Table1348910[ماء]) -> 3400 | N24: =SUBTOTAL(109,Table1348910[[ ألأيجار]]) -> 210000
A25: B
A26: B
A27: B
A28: B
A29: B
A30: B
A31: B
A32: B
A33: B
A34: B
A35: B

Sheet نايف
A3: A | B3: =TODAY() -> 2018-03-29 | C3: تاريخ الهجري | H3: نايف | P3: الشقق الفارغه | Q3: 12
A4: A | B4: =TODAY() -> 2018-03-29 | C4: الموافق | F4: 6 | J4: جوال= | P4: المحلات الفارغه
A5: =IF(D5>0,"A","B") -> A | B5: تأمين | C5: رقم الجوال | D5: عدد أيام تأخير | E5: ملاحظات | F5: المدفوع | G5: تاريخ الانتهاء | H5: تاريخ ابتداءالايجار | I5: طريقة الدفع | J5: الباقي | K5: المطلوب | L5: الإجمالي | M5: ماء | N5: ألأيجار | O5: رقم الشقة | P5: اسم المستأجر | Q5: الرقم
A6: =IF(D6>0,"A","B") -> A | D6: =IF(Table13489[[#This Row],[ تاريخ الانتهاء]]<$B$4,$B$4-Table13489[[#This Row],[ تاريخ الانتهاء]],0) -> 4 | G6: 2018-03-25 | H6: 2017-12-26 | I6: 3 | J6: =Table13489[[#This Row],[الإجمالي]]-Table13489[[#This Row],[المطلوب]] -> 4200 | K6: =(Table13489[[#This Row],[الإجمالي]]/$Q$3)*Table13489[[#This Row],[ طريقة الدفع]] -> 1400 | L6: =Table13489[[#This Row],[ ألأيجار]]+Table13489[[#This Row],[ماء]] -> 5600 | N6: 5600 | O6: 1 | P6: جويل سار اندينا | Q6: 1
A7: =IF(D7>0,"A","B") -> B | D7: =IF(Table13489[[#This Row],[ تاريخ الانتهاء]]<$B$4,$B$4-Table13489[[#This Row],[ تاريخ الانتهاء]],0) -> 0 | G7: 2018-05-01 | H7: 2017-08-01 | I7: 1 | J7: =Table13489[[#This Row],[الإجمالي]]-Table13489[[#This Row],[المطلوب]] -> 16500 | K7: =(Table13489[[#This Row],[الإجمالي]]/$Q$3)*Table13489[[#This Row],[ طريقة الدفع]] -> 1500 | L7: =Table13489[[#This Row],[ ألأيجار]]+Table13489[[#This Row],[ماء]] -> 18000 | N7: 18000 | O7: 2 | P7: غوبال كريشنان ناير | Q7: =Q6+1 -> 2
A8: A | D8: =IF(Table13489[[#This Row],[ تاريخ الانتهاء]]<$B$4,$B$4-Table13489[[#This Row],[ تاريخ الانتهاء]],0) -> 66 | E8: باقي 300 | G8: 2018-01-22 | H8: 2017-09-25 | I8: 1 | J8: =Table13489[[#This Row],[الإجمالي]]-Table13489[[#This Row],[المطلوب]] -> 7150 | K8: =(Table13489[[#This Row],[الإجمالي]]/$Q$3)*Table13489[[#This Row],[ طريقة الدفع]] -> 650 | L8: =Table13489[[#This Row],[ ألأيجار]]+Table13489[[#This Row],[ماء]] -> 7800 | N8: 7800 | O8: 3 | P8: دبيدار زايد | Q8: =Q7+1 -> 3
A9: A | D9: =IF(Table13489[[#This Row],[ تاريخ الانتهاء]]<$B$4,$B$4-Table13489[[#This Row],[ تاريخ الانتهاء]],0) -> 22 | G9: 2018-03-07 | H9: 2018-02-05 | I9: 1 | J9: =Table13489[[#This Row],[الإجمالي]]-Table13489[[#This Row],[المطلوب]] -> 7700 | K9: =(Table13489[[#This Row],[الإجمالي]]/$Q$3)*Table13489[[#This Row],[ طريقة الدفع]] -> 700 | L9: =Table13489[[#This Row],[ ألأيجار]]+Table13489[[#This Row],[ماء]] -> 8400 | N9: 8400 | O9: 4 | P9: محمد عقيل ناشر | Q9: 4
A10: A | D10: =IF(Table13489[[#This Row],[ تاريخ الانتهاء]]<$B$4,$B$4-Table13489[[#This Row],[ تاريخ الانتهاء]],0) -> 53 | G10: 2018-02-04 | H10: 2018-01-05 | I10: 1 | J10: =Table13489[[#This Row],[الإجمالي]]-Table13489[[#This Row],[المطلوب]] -> 8800 | K10: =(Table13489[[#This Row],[الإجمالي]]/$Q$3)*Table13489[[#This Row],[ طريقة الدفع]] -> 800 | L10: =Table13489[[#This Row],[ ألأيجار]]+Table13489[[#This Row],[ماء]] -> 9600 | N10: 9600 | O10: 5 | P10: حنيف الله سيد جان | Q10: 5
A11: A | D11: =IF(Table13489[[#This Row],[ تاريخ الانتهاء]]<$B$4,$B$4-Table13489[[#This Row],[ تاريخ الانتهاء]],0) -> 11 | E11: بدون كهرباء | G11: 2018-03-18 | H11: 2018-01-18 | I11: 1 | J11: =Table13489[[#This Row],[الإجمالي]]-Table13489[[#This Row],[المطلوب]] -> 6600 | K11: =(Table13489[[#This Row],[الإجمالي]]/$Q$3)*Table13489[[#This Row],[ طريقة الدفع]] -> 600 | L11: =Table13489[[#This Row],[ ألأيجار]]+Table13489[[#This Row],[ماء]] -> 7200 | N11: 7200 | O11: 6 | P11: باتيل عبدالمجيد بهايجي | Q11: 6
A12: B | D12: =IF(Table13489[[#This Row],[ تاريخ الانتهاء]]<$B$4,$B$4-Table13489[[#This Row],[ تاريخ الانتهاء]],0) -> 0 | E12: بدون كهرباء | G12: 2018-06-30 | H12: 2018-01-03 | I12: 6 | J12: =Table13489[[#This Row],[الإجمالي]]-Table13489[[#This Row],[المطلوب]] -> 3560 | K12: =(Table13489[[#This Row],[الإجمالي]]/$Q$3)*Table13489[[#This Row],[ طريقة الدفع]] -> 3560 | L12: =Table13489[[#This Row],[ ألأيجار]]+Table13489[[#This Row],[ماء]] -> 7120 | N12: 7120 | O12: 7 | P12: محمد ارشد | Q12: 7
A13: B | D13: =IF(Table13489[[#This Row],[ تاريخ الانتهاء]]<$B$4,$B$4-Table13489[[#This Row],[ تاريخ الانتهاء]],0) -> 0 | I13: 1 | J13: =Table13489[[#This Row],[الإجمالي]]-Table13489[[#This Row],[المطلوب]] -> 5500 | K13: =(Table13489[[#This Row],[الإجمالي]]/$Q$3)*Table13489[[#This Row],[ طريقة الدفع]] -> 500 | L13: =Table13489[[#This Row],[ ألأيجار]]+Table13489[[#This Row],[ماء]] -> 6000 | N13: 6000 | O13: 8 | P13: فاضي | Q13: 8
A14: A | D14: =IF(Table13489[[#This Row],[ تاريخ الانتهاء]]<$B$4,$B$4-Table13489[[#This Row],[ تاريخ الانتهاء]],0) -> 29 | G14: 2018-02-28 | H14: 2018-01-30 | I14: 1 | J14: =Table13489[[#This Row],[الإجمالي]]-Table13489[[#This Row],[المطلوب]] -> 7700 | K14: =(Table13489[[#This Row],[الإجمالي]]/$Q$3)*Table13489[[#This Row],[ طريقة الدفع]] -> 700 | L14: =Table13489[[#This Row],[ ألأيجار]]+Table13489[[#This Row],[ماء]] -> 8400 | N14: 8400 | O14: 9 | P14: علوي محمد حسن مديحج | Q14: 9
A15: A | D15: =IF(Table13489[[#This Row],[ تاريخ الانتهاء]]<$B$4,$B$4-Table13489[[#This Row],[ تاريخ الانتهاء]],0) -> 43188 | I15: 1 | J15: =Table13489[[#This Row],[الإجمالي]]-Table13489[[#This Row],[المطلوب]] -> 7700 | K15: =(Table13489[[#This Row],[الإجمالي]]/$Q$3)*Table13489[[#This Row],[ طريقة الدفع]] -> 700 | L15: =Table13489[[#This Row],[ ألأيجار]]+Table13489[[#This Row],[ماء]] -> 8400 | N15: 8400 | O15: 10 | P15: فاضي | Q15: 10
A16: B | D16: =IF(Table13489[[#This Row],[ تاريخ الانتهاء]]<$B$4,$B$4-Table13489[[#This Row],[ تاريخ الانتهاء]],0) -> 0 | I16: 1 | J16: =Table13489[[#This Row],[الإجمالي]]-Table13489[[#This Row],[المطلوب]] -> 8800 | K16: =(Table13489[[#This Row],[الإجمالي]]/$Q$3)*Table13489[[#This Row],[ طريقة الدفع]] -> 800 | L16: =Table13489[[#This Row],[ ألأيجار]]+Table13489[[#This Row],[ماء]] -> 9600 | N16: 9600 | O16: 11 | P16: فاضي | Q16: 11
A17: A | D17: =IF(Table13489[[#This Row],[ تاريخ الانتهاء]]<$B$4,$B$4-Table13489[[#This Row],[ تاريخ الانتهاء]],0) -> 70 | G17: 2018-01-18 | H17: 2017-10-21 | I17: 3 | J17: =Table13489[[#This Row],[الإجمالي]]-Table13489[[#This Row],[المطلوب]] -> 5400 | K17: =(Table13489[[#This Row],[الإجمالي]]/$Q$3)*Table13489[[#This Row],[ طريقة الدفع]] -> 1800 | L17: =Table13489[[#This Row],[ ألأيجار]]+Table13489[[#This Row],[ماء]] -> 7200 | N17: 7200 | O17: 12 | P17: تانوير عباس | Q17: 12
A18: B | D18: =IF(Table13489[[#This Row],[ تاريخ الانتهاء]]<$B$4,$B$4-Table13489[[#This Row],[ تاريخ الانتهاء]],0) -> 0 | I18: 1 | J18: =Table13489[[#This Row],[الإجمالي]]-Table13489[[#This Row],[المطلوب]] -> 6600 | K18: =(Table13489[[#This Row],[الإجمالي]]/$Q$3)*Table13489[[#This Row],[ طريقة الدفع]] -> 600 | L18: =Table13489[[#This Row],[ ألأيجار]]+Table13489[[#This Row],[ماء]] -> 7200 | N18: 7200 | O18: 13 | P18: فاضي | Q18: 13
A19: B | D19: =IF(Table13489[[#This Row],[ تاريخ الانتهاء]]<$B$4,$B$4-Table13489[[#This Row],[ تاريخ الانتهاء]],0) -> 0 | I19: 1 | J19: =Table13489[[#This Row],[الإجمالي]]-Table13489[[#This Row],[المطلوب]] -> 6600 | K19: =(Table13489[[#This Row],[الإجمالي]]/$Q$3)*Table13489[[#This Row],[ طريقة الدفع]] -> 600 | L19: =Table13489[[#This Row],[ ألأيجار]]+Table13489[[#This Row],[ماء]] -> 7200 | N19: 7200 | O19: 14 | P19: فاضي | Q19: 14
A20: B | D20: =IF(Table13489[[#This Row],[ تاريخ الانتهاء]]<$B$4,$B$4-Table13489[[#This Row],[ تاريخ الانتهاء]],0) -> 0 | I20: 1 | J20: =Table13489[[#This Row],[الإجمالي]]-Table13489[[#This Row],[المطلوب]] -> 6600 | K20: =(Table13489[[#This Row],[الإجمالي]]/$Q$3)*Table13489[[#This Row],[ طريقة الدفع]] -> 600 | L20: =Table13489[[#This Row],[ ألأيجار]]+Table13489[[#This Row],[ماء]] -> 7200 | N20: 7200 | O20: 15 | P20: فاضي | Q20: 15
A21: B | D21: =IF(Table13489[[#This Row],[ تاريخ الانتهاء]]<$B$4,$B$4-Table13489[[#This Row],[ تاريخ الانتهاء]],0) -> 0 | I21: 1 | J21: =Table13489[[#This Row],[الإجمالي]]-Table13489[[#This Row],[المطلوب]] -> 8800 | K21: =(Table13489[[#This Row],[الإجمالي]]/$Q$3)*Table13489[[#This Row],[ طريقة الدفع]] -> 800 | L21: =Table13489[[#This Row],[ ألأيجار]]+Table13489[[#This Row],[ماء]] -> 9600 | N21: 9600 | O21: 16 | P21: فاضي | Q21: 16
A22: A | D22: =IF(Table13489[[#This Row],[ تاريخ الانتهاء]]<$B$4,$B$4-Table13489[[#This Row],[ تاريخ الانتهاء]],0) -> 25 | G22: 2018-03-04 | H22: 2018-02-02 | I22: 1 | J22: =Table13489[[#This Row],[الإجمالي]]-Table13489[[#This Row],[المطلوب]] -> 4950 | K22: =(Table13489[[#This Row],[الإجمالي]]/$Q$3)*Table13489[[#This Row],[ طريقة الدفع]] -> 450 | L22: =Table13489[[#This Row],[ ألأيجار]]+Table13489[[#This Row],[ماء]] -> 5400 | N22: 5400 | O22: 17 | P22: محمد عوض القرادي | Q22: 17
A23: A | D23: =IF(Table13489[[#This Row],[ تاريخ الانتهاء]]<$B$4,$B$4-Table13489[[#This Row],[ تاريخ الانتهاء]],0) -> 40 | G23: 2018-02-17 | H23: 2018-01-18 | I23: 1 | J23: =Table13489[[#This Row],[الإجمالي]]-Table13489[[#This Row],[المطلوب]] -> 8800 | K23: =(Table13489[[#This Row],[الإجمالي]]/$Q$3)*Table13489[[#This Row],[ طريقة الدفع]] -> 800 | L23: =Table13489[[#This Row],[ ألأيجار]]+Table13489[[#This Row],[ماء]] -> 9600 | N23: 9600 | O23: 18 | P23: سيرتين بيرتين جان سيروموني | Q23: 18
A24: A | D24: =IF(Table13489[[#This Row],[ تاريخ الانتهاء]]<$B$4,$B$4-Table13489[[#This Row],[ تاريخ الانتهاء]],0) -> 55 | E24: بدون كهرباء | G24: 2018-02-02 | H24: 2018-01-03 | I24: 1 | J24: =Table13489[[#This Row],[الإجمالي]]-Table13489[[#This Row],[المطلوب]] -> 9900 | K24: =(Table13489[[#This Row],[الإجمالي]]/$Q$3)*Table13489[[#This Row],[ طريقة الدفع]] -> 900 | L24: =Table13489[[#This Row],[ ألأيجار]]+Table13489[[#This Row],[ماء]] -> 10800 | N24: 10800 | O24: 19 | P24: جوني جوزيف راج | Q24: 19
A25: A | D25: =IF(Table13489[[#This Row],[ تاريخ الانتهاء]]<$B$4,$B$4-Table13489[[#This Row],[ تاريخ الانتهاء]],0) -> 30 | E25: بدون كهرباء | F25: 750 شهريا | G25: 2018-02-27 | H25: 2017-12-28 | I25: 1 | J25: =Table13489[[#This Row],[الإجمالي]]-Table13489[[#This Row],[المطلوب]] -> 8800 | K25: =(Table13489[[#This Row],[الإجمالي]]/$Q$3)*Table13489[[#This Row],[ طريقة الدفع]] -> 800 | L25: =Table13489[[#This Row],[ ألأيجار]]+Table13489[[#This Row],[ماء]] -> 9600 | N25: 9600 | O25: 20 | P25: جوس راجبان راجبان | Q25: 20
A26: A | D26: =IF(Table13489[[#This Row],[ تاريخ الانتهاء]]<$B$4,$B$4-Table13489[[#This Row],[ تاريخ الانتهاء]],0) -> 40 | G26: 2018-02-17 | H26: 2017-10-29 | I26: 1 | J26: =Table13489[[#This Row],[الإجمالي]]-Table13489[[#This Row],[المطلوب]] -> 5500 | K26: =(Table13489[[#This Row],[الإجمالي]]/$Q$3)*Table13489[[#This Row],[ طريقة الدفع]] -> 500 | L26: =Table13489[[#This Row],[ ألأيجار]]+Table13489[[#This Row],[ماء]] -> 6000 | N26: 6000 | O26: 21 | P26: عوض الله بن مرزوق | Q26: 21
A27: A | D27: =IF(Table13489[[#This Row],[ تاريخ الانتهاء]]<$B$4,$B$4-Table13489[[#This Row],[ تاريخ الانتهاء]],0) -> 85 | G27: 2018-01-03 | H27: 2017-12-04 | I27: 1 | J27: =Table13489[[#This Row],[الإجمالي]]-Table13489[[#This Row],[المطلوب]] -> 5500 | K27: =(Table13489[[#This Row],[الإجمالي]]/$Q$3)*Table13489[[#This Row],[ طريقة الدفع]] -> 500 | L27: =Table13489[[#This Row],[ ألأيجار]]+Table13489[[#This Row],[ماء]] -> 6000 | N27: 6000 | O27: 22 | P27: محمد بن مزين غنام السبيعي | Q27: 22
A28: A | D28: =IF(Table13489[[#This Row],[ تاريخ الانتهاء]]<$B$4,$B$4-Table13489[[#This Row],[ تاريخ الانتهاء]],0) -> 306 | G28: 2017-05-27 | H28: 2017-04-27 | I28: 1 | J28: =Table13489[[#This Row],[الإجمالي]]-Table13489[[#This Row],[المطلوب]] -> 8800 | K28: =(Table13489[[#This Row],[الإجمالي]]/$Q$3)*Table13489[[#This Row],[ طريقة الدفع]] -> 800 | L28: =Table13489[[#This Row],[ ألأيجار]]+Table13489[[#This Row],[ماء]] -> 9600 | N28: 9600 | O28: 23 | P28: حلمي عبدالقوي صالح بن هرهره | Q28: 23
A29: A | D29: =IF(Table13489[[#This Row],[ تاريخ الانتهاء]]<$B$4,$B$4-Table13489[[#This Row],[ تاريخ الانتهاء]],0) -> 121 | E29: باقي 220 | G29: 2017-11-28 | H29: 2017-10-30 | I29: 1 | J29: =Table13489[[#This Row],[الإجمالي]]-Table13489[[#This Row],[المطلوب]] -> 12833.33333 | K29: =(Table13489[[#This Row],[الإجمالي]]/$Q$3)*Table13489[[#This Row],[ طريقة الدفع]] -> 1166.666667 | L29: =Table13489[[#This Row],[ ألأيجار]]+Table13489[[#This Row],[ماء]] -> 14000 | N29: 14000 | O29: M1 | P29: علي بن مشلح بن مقحم الصعيري المطيري | Q29: 24
A30: B | D30: =IF(Table13489[[#This Row],[ تاريخ الانتهاء]]<$B$4,$B$4-Table13489[[#This Row],[ تاريخ الانتهاء]],0) -> 0 | G30: 2018-05-03 | H30: 2017-11-06 | I30: 3 | J30: =Table13489[[#This Row],[الإجمالي]]-Table13489[[#This Row],[المطلوب]] -> 9000 | K30: =(Table13489[[#This Row],[الإجمالي]]/$Q$3)*Table13489[[#This Row],[ طريقة الدفع]] -> 3000 | L30: =Table13489[[#This Row],[ ألأيجار]]+Table13489[[#This Row],[ماء]] -> 12000 | N30: 12000 | O30: M2 | P30: عبدالعزيز ابراهيم عبدالمحس | Q30: 25
A31: B | D31: =IF(Table13489[[#This Row],[ تاريخ الانتهاء]]<$B$4,$B$4-Table13489[[#This Row],[ تاريخ الانتهاء]],0) -> 0 | E31: باقي 1900 | G31: 2018-05-16 | H31: 2017-11-19 | I31: 6 | J31: =Table13489[[#This Row],[الإجمالي]]-Table13489[[#This Row],[المطلوب]] -> 5500 | K31: =(Table13489[[#This Row],[الإجمالي]]/$Q$3)*Table13489[[#This Row],[ طريقة الدفع]] -> 5500 | L31: =Table13489[[#This Row],[ ألأيجار]]+Table13489[[#This Row],[ماء]] -> 11000 | N31: 11000 | O31: M3 | P31: سارة بنت عبدالحميد بن المبيوق | Q31: 26
A32: A | D32: =Table13489[[#Totals],[المطلوب]] -> 30726.66667 | K32: =SUBTOTAL(109,Table13489[المطلوب]) -> 30726.66667 | L32: =SUBTOTAL(109,Table13489[الإجمالي]) -> 228520 | M32: =SUBTOTAL(109,Table13489[ماء]) -> 0 | N32: =SUBTOTAL(109,Table13489[[ ألأيجار]]) -> 228520
A33: B
A34: B
A35: B

Sheet ناصر
A3: A | B3: =TODAY() -> 2018-03-29 | C3: تاريخ الهجري | H3: ناصر | P3: الشقق الفارغه | Q3: 12
A4: A | B4: =TODAY() -> 2018-03-29 | C4: الموافق | F4: 9 | J4: جوال= | P4: المحلات الفارغه
A5: =IF(D5>0,"A","B") -> A | B5: تأمين | C5: رقم الجوال | D5: عدد أيام تأخير | E5: ملاحظات | F5: المدفوع | G5: تاريخ الانتهاء | H5: تاريخ ابتداءالايجار | I5: طريقة الدفع | J5: الباقي | K5: المطلوب | L5: الإجمالي | M5: ماء | N5: ألأيجار | O5: رقم الشقة | P5: اسم المستأجر | Q5: الرقم
A6: =IF(D6>0,"A","B") -> A | B6: 1000 | D6: =IF(Table13489567[[#This Row],[ تاريخ الانتهاء]]<$B$4,$B$4-Table13489567[[#This Row],[ تاريخ الانتهاء]],0) -> 47 | G6: 2018-02-10 | H6: 2017-08-16 | I6: 6 | J6: =Table13489567[[#This Row],[الإجمالي]]-Table13489567[[#This Row],[المطلوب]] -> 10250 | K6: =(Table13489567[[#This Row],[الإجمالي]]/$Q$3)*Table13489567[[#This Row],[ طريقة الدفع]] -> 10250 | L6: =Table13489567[[#This Row],[ ألأيجار]]+Table13489567[[#This Row],[ماء]] -> 20500 | M6: 500 | N6: 20000 | O6: 1 | P6: فيجا يا كومارسوبر اما نيان | Q6: 1
A7: =IF(D7>0,"A","B") -> A | B7: 1000 | D7: =IF(Table13489567[[#This Row],[ تاريخ الانتهاء]]<$B$4,$B$4-Table13489567[[#This Row],[ تاريخ الانتهاء]],0) -> 10 | G7: 2018-03-19 | H7: 2017-09-22 | I7: 6 | J7: =Table13489567[[#This Row],[الإجمالي]]-Table13489567[[#This Row],[المطلوب]] -> 11500 | K7: =(Table13489567[[#This Row],[الإجمالي]]/$Q$3)*Table13489567[[#This Row],[ طريقة الدفع]] -> 11500 | L7: =Table13489567[[#This Row],[ ألأيجار]]+Table13489567[[#This Row],[ماء]] -> 23000 | M7: 500 | N7: 22500 | O7: 2 | P7: فينكاتيسوارلو فيماساني | Q7: =Q6+1 -> 2
A8: B | B8: 1000 | D8: =IF(Table13489567[[#This Row],[ تاريخ الانتهاء]]<$B$4,$B$4-Table13489567[[#This Row],[ تاريخ الانتهاء]],0) -> 0 | G8: 2019-02-07 | H8: 2018-02-17 | I8: 12 | J8: =Table13489567[[#This Row],[الإجمالي]]-Table13489567[[#This Row],[المطلوب]] -> 0 | K8: =(Table13489567[[#This Row],[الإجمالي]]/$Q$3)*Table13489567[[#This Row],[ طريقة الدفع]] -> 18600 | L8: =Table13489567[[#This Row],[ ألأيجار]]+Table13489567[[#This Row],[ماء]] -> 18600 | M8: 600 | N8: 18000 | O8: 3 | P8: نيليش كيشور ايلاني | Q8: =Q7+1 -> 3
A9: A | B9: 1000 | D9: =IF(Table13489567[[#This Row],[ تاريخ الانتهاء]]<$B$4,$B$4-Table13489567[[#This Row],[ تاريخ الانتهاء]],0) -> 49 | G9: 2018-02-08 | H9: 2017-08-14 | I9: 6 | J9: =Table13489567[[#This Row],[الإجمالي]]-Table13489567[[#This Row],[المطلوب]] -> 8750 | K9: =(Table13489567[[#This Row],[الإجمالي]]/$Q$3)*Table13489567[[#This Row],[ طريقة الدفع]] -> 8750 | L9: =Table13489567[[#This Row],[ ألأيجار]]+Table13489567[[#This Row],[ماء]] -> 17500 | M9: 500 | N9: 17000 | O9: 4 | P9: سوبراتو ادهيكاري | Q9: 4
A10: A | B10: 1000 | D10: =IF(Table13489567[[#This Row],[ تاريخ الانتهاء]]<$B$4,$B$4-Table13489567[[#This Row],[ تاريخ الانتهاء]],0) -> 37 | G10: 2018-02-20 | H10: 2017-08-26 | I10: 6 | J10: =Table13489567[[#This Row],[الإجمالي]]-Table13489567[[#This Row],[المطلوب]] -> 10250 | K10: =(Table13489567[[#This Row],[الإجمالي]]/$Q$3)*Table13489567[[#This Row],[ طريقة الدفع]] -> 10250 | L10: =Table13489567[[#This Row],[ ألأيجار]]+Table13489567[[#This Row],[ماء]] -> 20500 | M10: 500 | N10: 20000 | O10: 5 | P10: نيهرو سيغالي نيتاجي | Q10: 5
A11: A | D11: =IF(Table13489567[[#This Row],[ تاريخ الانتهاء]]<$B$4,$B$4-Table13489567[[#This Row],[ تاريخ الانتهاء]],0) -> 43188 | J11: =Table13489567[[#This Row],[الإجمالي]]-Table13489567[[#This Row],[المطلوب]] -> 0 | K11: =(Table13489567[[#This Row],[الإجمالي]]/$Q$3)*Table13489567[[#This Row],[ طريقة الدفع]] -> 0 | L11: =Table13489567[[#This Row],[ ألأيجار]]+Table13489567[[#This Row],[ماء]] -> 0 | O11: 6 | P11: فاضي | Q11: 6
A12: A | B12: 1000 | D12: =IF(Table13489567[[#This Row],[ تاريخ الانتهاء]]<$B$4,$B$4-Table13489567[[#This Row],[ تاريخ الانتهاء]],0) -> 47 | G12: 2018-02-10 | H12: 2017-08-16 | I12: 6 | J12: =Table13489567[[#This Row],[الإجمالي]]-Table13489567[[#This Row],[المطلوب]] -> 11250 | K12: =(Table13489567[[#This Row],[الإجمالي]]/$Q$3)*Table13489567[[#This Row],[ طريقة الدفع]] -> 11250 | L12: =Table13489567[[#This Row],[ ألأيجار]]+Table13489567[[#This Row],[ماء]] -> 22500 | M12: 500 | N12: 22000 | O12: 7 | P12: جيش غوبتا سومش | Q12: 7
A13: A | D13: =IF(Table13489567[[#This Row],[ تاريخ الانتهاء]]<$B$4,$B$4-Table13489567[[#This Row],[ تاريخ الانتهاء]],0) -> 43188 | J13: =Table13489567[[#This Row],[الإجمالي]]-Table13489567[[#This Row],[المطلوب]] -> 500 | K13: =(Table13489567[[#This Row],[الإجمالي]]/$Q$3)*Table13489567[[#This Row],[ طريقة الدفع]] -> 0 | L13: =Table13489567[[#This Row],[ ألأيجار]]+Table13489567[[#This Row],[ماء]] -> 500 | M13: 500 | O13: 8 | P13: فاضي | Q13: 8
A14: A | D14: =IF(Table13489567[[#This Row],[ تاريخ الانتهاء]]<$B$4,$B$4-Table13489567[[#This Row],[ تاريخ الانتهاء]],0) -> 1 | E14: دفع 6000 باقي 5750 | G14: 2018-03-28 | H14: 2017-10-01 | I14: 6 | J14: =Table13489567[[#This Row],[الإجمالي]]-Table13489567[[#This Row],[المطلوب]] -> 11750 | K14: =(Table13489567[[#This Row],[الإجمالي]]/$Q$3)*Table13489567[[#This Row],[ طريقة الدفع]] -> 11750 | L14: =Table13489567[[#This Row],[ ألأيجار]]+Table13489567[[#This Row],[ماء]] -> 23500 | M14: 500 | N14: 23000 | O14: 9 | P14: ابراهيم محمد الشافعي | Q14: 9
A15: A | D15: =IF(Table13489567[[#This Row],[ تاريخ الانتهاء]]<$B$4,$B$4-Table13489567[[#This Row],[ تاريخ الانتهاء]],0) -> 43188 | J15: =Table13489567[[#This Row],[الإجمالي]]-Table13489567[[#This Row],[المطلوب]] -> 0 | K15: =(Table13489567[[#This Row],[الإجمالي]]/$Q$3)*Table13489567[[#This Row],[ طريقة الدفع]] -> 0 | L15: =Table13489567[[#This Row],[ ألأيجار]]+Table13489567[[#This Row],[ماء]] -> 0 | O15: 9 | P15: فاضي | Q15: 10
A16: A | D16: =IF(Table13489567[[#This Row],[ تاريخ الانتهاء]]<$B$4,$B$4-Table13489567[[#This Row],[ تاريخ الانتهاء]],0) -> 43188 | J16: =Table13489567[[#This Row],[الإجمالي]]-Table13489567[[#This Row],[المطلوب]] -> 0 | K16: =(Table13489567[[#This Row],[الإجمالي]]/$Q$3)*Table13489567[[#This Row],[ طريقة الدفع]] -> 0 | L16: =Table13489567[[#This Row],[ ألأيجار]]+Table13489567[[#This Row],[ماء]] -> 0 | O16: 10 | P16: فاضي | Q16: 11
A17: B | D17: =IF(Table13489567[[#This Row],[ تاريخ الانتهاء]]<$B$4,$B$4-Table13489567[[#This Row],[ تاريخ الانتهاء]],0) -> 0 | G17: 2018-04-21 | H17: 2018-01-21 | J17: =Table13489567[[#This Row],[الإجمالي]]-Table13489567[[#This Row],[المطلوب]] -> 20500 | K17: =(Table13489567[[#This Row],[الإجمالي]]/$Q$3)*Table13489567[[#This Row],[ طريقة الدفع]] -> 0 | L17: =Table13489567[[#This Row],[ ألأيجار]]+Table13489567[[#This Row],[ماء]] -> 20500 | M17: 500 | N17: 20000 | O17: 12 | P17: ناجي مسعد احمد المضرحي | Q17: 12
A18: A | B18: بدون | D18: =IF(Table13489567[[#This Row],[ تاريخ الانتهاء]]<$B$4,$B$4-Table13489567[[#This Row],[ تاريخ الانتهاء]],0) -> 70 | G18: 2018-01-18 | H18: 2017-07-24 | I18: 6 | J18: =Table13489567[[#This Row],[الإجمالي]]-Table13489567[[#This Row],[المطلوب]] -> 20000 | K18: =(Table13489567[[#This Row],[الإجمالي]]/$Q$3)*Table13489567[[#This Row],[ طريقة الدفع]] -> 20000 | L18: =Table13489567[[#This Row],[ ألأيجار]]+Table13489567[[#This Row],[ماء]] -> 40000 | M18: 0 | N18: 40000 | O18: M1 | P18: محمودعبدالله الحجازي | Q18: 13
A19: A | D19: =IF(Table13489567[[#This Row],[ تاريخ الانتهاء]]<$B$4,$B$4-Table13489567[[#This Row],[ تاريخ الانتهاء]],0) -> 43188 | J19: =Table13489567[[#This Row],[الإجمالي]]-Table13489567[[#This Row],[المطلوب]] -> 0 | K19: =(Table13489567[[#This Row],[الإجمالي]]/$Q$3)*Table13489567[[#This Row],[ طريقة الدفع]] -> 0 | L19: =Table13489567[[#This Row],[ ألأيجار]]+Table13489567[[#This Row],[ماء]] -> 0 | O19: M2 | P19: فاضي | Q19: 14
A20: A | D20: =IF(Table13489567[[#This Row],[ تاريخ الانتهاء]]<$B$4,$B$4-Table13489567[[#This Row],[ تاريخ الانتهاء]],0) -> 43188 | J20: =Table13489567[[#This Row],[الإجمالي]]-Table13489567[[#This Row],[المطلوب]] -> 0 | K20: =(Table13489567[[#This Row],[الإجمالي]]/$Q$3)*Table13489567[[#This Row],[ طريقة الدفع]] -> 0 | L20: =Table13489567[[#This Row],[ ألأيجار]]+Table13489567[[#This Row],[ماء]] -> 0 | O20: M3 | P20: فاضي | Q20: 15
A21: A | D21: =IF(Table13489567[[#This Row],[ تاريخ الانتهاء]]<$B$4,$B$4-Table13489567[[#This Row],[ تاريخ الانتهاء]],0) -> 43188 | J21: =Table13489567[[#This Row],[الإجمالي]]-Table13489567[[#This Row],[المطلوب]] -> 0 | K21: =(Table13489567[[#This Row],[الإجمالي]]/$Q$3)*Table13489567[[#This Row],[ طريقة الدفع]] -> 0 | L21: =Table13489567[[#This Row],[ ألأيجار]]+Table13489567[[#This Row],[ماء]] -> 0 | O21: M4 | P21: فاضي | Q21: 16
A22: A | D22: =IF(Table13489567[[#This Row],[ تاريخ الانتهاء]]<$B$4,$B$4-Table13489567[[#This Row],[ تاريخ الانتهاء]],0) -> 189 | G22: 2017-09-21 | H22: 2017-03-28 | I22: 6 | J22: =Table13489567[[#This Row],[الإجمالي]]-Table13489567[[#This Row],[المطلوب]] -> 17500 | K22: =(Table13489567[[#This Row],[الإجمالي]]/$Q$3)*Table13489567[[#This Row],[ طريقة الدفع]] -> 17500 | L22: =Table13489567[[#This Row],[ ألأيجار]]+Table13489567[[#This Row],[ماء]] -> 35000 | M22: 0 | N22: 35000 | O22: M5 | P22: أحمد محمد العميري | Q22: 17
A23: A | D23: =Table13489567[[#Totals],[المطلوب]] -> 119850 | K23: =SUBTOTAL(109,Table13489567[المطلوب]) -> 119850 | L23: =SUBTOTAL(109,Table13489567[الإجمالي]) -> 242100 | M23: =SUBTOTAL(109,Table13489567[ماء]) -> 4600 | N23: =SUBTOTAL(109,Table13489567[[ ألأيجار]]) -> 237500
A24: B
A25: B
A26: B
A27: B
A28: B
A29: B
A30: B
A31: B
A32: B
A33: B
A34: B
A35: B

Sheet سند قبض
D1: سند قبض
D3: Receipt Vouchrt | H3: =TODAY() -> 2018-03-29 | J3: تاريخ السند | P3: سلطان | Q3: 1
H4: =H3 -> 2018-03-29 | J4: الموافق | P4: الجوهرة | Q4: 2
D5: 1 | G5: 0 | J5: الرقم الضريبي | P5: البايونيه | Q5: 3
P6: الراكه | Q6: 4
A7: الراكه | B7: عقار | C7: 1 | D7: شقه رقم | E7: =B28 -> 0 | F7: جوال | G7: =O28 -> إبراهيم المهنا | J7: استلمنا من : | M7: =M28 -> 22000 | N7: ايجار سنوي | P7: سعد | Q7: 5 | S7: =IFERROR(VLOOKUP(A7,P3:Q12,2,),0) -> 4
A8: البيان Description | G8: النوع Type | I8: المبلغ Amount | M8: =M7/12 -> 1833.333333 | N8: شهري | P8: نايف | Q8: 6
A9: =M28 -> 22000 | B9: الايجار السنوي | C9: دفعه من الايجار | G9: الايجار | I9: 5000 | M9: =M7/366 -> 60.10928962 | N9: يومي
A10: =DATE(YEAR(D10)+M11,MONTH(D10)+M12,DAY(D10)+M13) -> 2018-05-17 | B10: الي تاريخ | D10: =F28 -> 2018-03-01 | E10: وذلك للفترة من تاريخ | M10: =I9/M9 -> 83.18181818 | N10: باليوم
A11: =A10 -> 2018-05-17 | B11: الموافق | D11: =D10 -> 2018-03-01 | E11: الموافق | L11: =M7*M11 -> 0 | M11: =DATEDIF(1,M10,"y") -> 0 | N11: سنه | P11: ناصر | Q11: 9
A12: المياة | G12: المياة | I12: 250 | L12: =M8*M12 -> 3666.666667 | M12: =DATEDIF(1,M10,"yM") -> 2 | N12: شهر
A13: التأمين | G13: قبض التأمين | I13: 0 | L13: =M9*M13 -> 961.7486339 | M13: =DATEDIF(1,M10,"MD")+O13 -> 16 | N13: يوم | O13: -6
A14: اتعاب المكتب | G14: السعي | I14: 0 | L14: =SUM(L11:L13) -> 4628.415301
A15: صيانه | G15: صيانه | I15: 0 | L15: =L14-I9 -> -371.5846995
A16: مبلغ الضريبة | G16: القيمه المضافه | I16: 0
A17: =IF(I17=0,"",CONCATENATE("فقط"," ",sformatnumber(I17)," ريالاً ",IF(ISERROR(FIND(".",I17))," ","و"),IF(ISERROR(FIND(".",I17))," ",CONCATENATE(sformatnumber(IF(LEN(RIGHT(I17,LEN(I17)-FIND(".",I17)))=1,RIGHT(I17,LEN(I17)-FIND(".",I17))*10,RIGHT(I17,LEN(I17)-FIND(".",I17))))," هللة "))," لا غیر")) -> فقط خمسة الاف ومئتان وخمسون ريالاً لا غیر | G17: المجموع Total | I17: =SUM(I9:J16) -> 5250
B19: التوقيع Sign | I19: الختم
K23: =CONCATENATE("'",A7,"'","!","A1:IQ9999") -> 'الراكه'!A1:IQ9999 | M23: النطاق
K24: =MATCH(C7,INDEX(INDIRECT(K23),,15),0) -> 6 | M24: الصف
K25: =MATCH(H4,INDEX(INDIRECT(K23),15,),0) -> 4 | M25: العمود
K26: =ADDRESS(K24,K25,4) -> D6
A28: =INDEX(INDIRECT($K$23),$K$24,COLUMN()+$K$25-3) -> 0 | B28: 0 | C28: =INDEX(INDIRECT($K$23),$K$24,COLUMN()+$K$25-3) -> 28 | D28: =INDEX(INDIRECT($K$23),$K$24,COLUMN()+$K$25-3) -> 0 | E28: 0 | F28: 2018-03-01 | G28: 00:00:00 | H28: 12 | I28: 0 | J28: 22600 | K28: =INDEX(INDIRECT($K$23),$K$24,COLUMN()+$K$25-3) -> 22600 | L28: 600 | M28: 22000 | N28: 1 | O28: =INDEX(INDIRECT($K$23),$K$24,COLUMN()+$K$25-3) -> إبراهيم المهنا

Sheet سندات القبض
A1: الرقم | B1: التاريخ | C1: رقم السند | D1: المستأجر | E1: رقم الجوال | F1: رقم الشقه | G1: البنايه | H1: الفترة من | I1: الفترة الي | J1: المبلغ | K1: المياة | L1: التأمين | M1: اتعاب المكتب | N1: صيانه | O1: مبلغ الضريبة | P1: اسم العميل | Q1: الحاله
A2: =IF(B2="","",ROW()-1) ->  | P2: =IFERROR(IF($G2="","",VLOOKUP($G2,{"سلطان","الخالدي";"البايونيه","الهاشمي";"الراكه","الهاشمي";"الجوهرة","الهديب";"ناصر","ابو سعود";"سعد","عبد الرحيم";"الدمام","عبد الرحيم";"نايف","عبد الرحيم";"الحزام","عبد الرحيم";"منوع","عبد الرحيم"},2,0)),0) -> 
A3: =IF(B3="","",ROW()-1) ->  | P3: =IFERROR(IF($G3="","",VLOOKUP($G3,{"سلطان","الخالدي";"البايونيه","الهاشمي";"الراكه","الهاشمي";"الجوهرة","الهديب";"ناصر","ابو سعود";"سعد","عبد الرحيم";"الدمام","عبد الرحيم";"نايف","عبد الرحيم";"الحزام","عبد الرحيم";"منوع","عبد الرحيم"},2,0)),0) -> 
P4: =IFERROR(IF($G4="","",VLOOKUP($G4,{"سلطان","الخالدي";"البايونيه","الهاشمي";"الراكه","الهاشمي";"الجوهرة","الهديب";"ناصر","ابو سعود";"سعد","عبد الرحيم";"الدمام","عبد الرحيم";"نايف","عبد الرحيم";"الحزام","عبد الرحيم";"منوع","عبد الرحيم"},2,0)),0) -> 
P5: =IFERROR(IF($G5="","",VLOOKUP($G5,{"سلطان","الخالدي";"البايونيه","الهاشمي";"الراكه","الهاشمي";"الجوهرة","الهديب";"ناصر","ابو سعود";"سعد","عبد الرحيم";"الدمام","عبد الرحيم";"نايف","عبد الرحيم";"الحزام","عبد الرحيم";"منوع","عبد الرحيم"},2,0)),0) -> 
P6: =IFERROR(IF($G6="","",VLOOKUP($G6,{"سلطان","الخالدي";"البايونيه","الهاشمي";"الراكه","الهاشمي";"الجوهرة","الهديب";"ناصر","ابو سعود";"سعد","عبد الرحيم";"الدمام","عبد الرحيم";"نايف","عبد الرحيم";"الحزام","عبد الرحيم";"منوع","عبد الرحيم"},2,0)),0) -> 
P7: =IFERROR(IF($G7="","",VLOOKUP($G7,{"سلطان","الخالدي";"البايونيه","الهاشمي";"الراكه","الهاشمي";"الجوهرة","الهديب";"ناصر","ابو سعود";"سعد","عبد الرحيم";"الدمام","عبد الرحيم";"نايف","عبد الرحيم";"الحزام","عبد الرحيم";"منوع","عبد الرحيم"},2,0)),0) -> 
P8: =IFERROR(IF($G8="","",VLOOKUP($G8,{"سلطان","الخالدي";"البايونيه","الهاشمي";"الراكه","الهاشمي";"الجوهرة","الهديب";"ناصر","ابو سعود";"سعد","عبد الرحيم";"الدمام","عبد الرحيم";"نايف","عبد الرحيم";"الحزام","عبد الرحيم";"منوع","عبد الرحيم"},2,0)),0) -> 
P9: =IFERROR(IF($G9="","",VLOOKUP($G9,{"سلطان","الخالدي";"البايونيه","الهاشمي";"الراكه","الهاشمي";"الجوهرة","الهديب";"ناصر","ابو سعود";"سعد","عبد الرحيم";"الدمام","عبد الرحيم";"نايف","عبد الرحيم";"الحزام","عبد الرحيم";"منوع","عبد الرحيم"},2,0)),0) -> 
P10: =IFERROR(IF($G10="","",VLOOKUP($G10,{"سلطان","الخالدي";"البايونيه","الهاشمي";"الراكه","الهاشمي";"الجوهرة","الهديب";"ناصر","ابو سعود";"سعد","عبد الرحيم";"الدمام","عبد الرحيم";"نايف","عبد الرحيم";"الحزام","عبد الرحيم";"منوع","عبد الرحيم"},2,0)),0) -> 
P11: =IFERROR(IF($G11="","",VLOOKUP($G11,{"سلطان","الخالدي";"البايونيه","الهاشمي";"الراكه","الهاشمي";"الجوهرة","الهديب";"ناصر","ابو سعود";"سعد","عبد الرحيم";"الدمام","عبد الرحيم";"نايف","عبد الرحيم";"الحزام","عبد الرحيم";"منوع","عبد الرحيم"},2,0)),0) -> 
P12: =IFERROR(IF($G12="","",VLOOKUP($G12,{"سلطان","الخالدي";"البايونيه","الهاشمي";"الراكه","الهاشمي";"الجوهرة","الهديب";"ناصر","ابو سعود";"سعد","عبد الرحيم";"الدمام","عبد الرحيم";"نايف","عبد الرحيم";"الحزام","عبد الرحيم";"منوع","عبد الرحيم"},2,0)),0) -> 
P13: =IFERROR(IF($G13="","",VLOOKUP($G13,{"سلطان","الخالدي";"البايونيه","الهاشمي";"الراكه","الهاشمي";"الجوهرة","الهديب";"ناصر","ابو سعود";"سعد","عبد الرحيم";"الدمام","عبد الرحيم";"نايف","عبد الرحيم";"الحزام","عبد الرحيم";"منوع","عبد الرحيم"},2,0)),0) -> 
P14: =IFERROR(IF($G14="","",VLOOKUP($G14,{"سلطان","الخالدي";"البايونيه","الهاشمي";"الراكه","الهاشمي";"الجوهرة","الهديب";"ناصر","ابو سعود";"سعد","عبد الرحيم";"الدمام","عبد الرحيم";"نايف","عبد الرحيم";"الحزام","عبد الرحيم";"منوع","عبد الرحيم"},2,0)),0) -> 
P15: =IFERROR(IF($G15="","",VLOOKUP($G15,{"سلطان","الخالدي";"البايونيه","الهاشمي";"الراكه","الهاشمي";"الجوهرة","الهديب";"ناصر","ابو سعود";"سعد","عبد الرحيم";"الدمام","عبد الرحيم";"نايف","عبد الرحيم";"الحزام","عبد الرحيم";"منوع","عبد الرحيم"},2,0)),0) -> 
P16: =IFERROR(IF($G16="","",VLOOKUP($G16,{"سلطان","الخالدي";"البايونيه","الهاشمي";"الراكه","الهاشمي";"الجوهرة","الهديب";"ناصر","ابو سعود";"سعد","عبد الرحيم";"الدمام","عبد الرحيم";"نايف","عبد الرحيم";"الحزام","عبد الرحيم";"منوع","عبد الرحيم"},2,0)),0) -> 
P17: =IFERROR(IF($G17="","",VLOOKUP($G17,{"سلطان","الخالدي";"البايونيه","الهاشمي";"الراكه","الهاشمي";"الجوهرة","الهديب";"ناصر","ابو سعود";"سعد","عبد الرحيم";"الدمام","عبد الرحيم";"نايف","عبد الرحيم";"الحزام","عبد الرحيم";"منوع","عبد الرحيم"},2,0)),0) -> 
P18: =IFERROR(IF($G18="","",VLOOKUP($G18,{"سلطان","الخالدي";"البايونيه","الهاشمي";"الراكه","الهاشمي";"الجوهرة","الهديب";"ناصر","ابو سعود";"سعد","عبد الرحيم";"الدمام","عبد الرحيم";"نايف","عبد الرحيم";"الحزام","عبد الرحيم";"منوع","عبد الرحيم"},2,0)),0) -> 
P19: =IFERROR(IF($G19="","",VLOOKUP($G19,{"سلطان","الخالدي";"البايونيه","الهاشمي";"الراكه","الهاشمي";"الجوهرة","الهديب";"ناصر","ابو سعود";"سعد","عبد الرحيم";"الدمام","عبد الرحيم";"نايف","عبد الرحيم";"الحزام","عبد الرحيم";"منوع","عبد الرحيم"},2,0)),0) -> 
P20: =IFERROR(IF($G20="","",VLOOKUP($G20,{"سلطان","الخالدي";"البايونيه","الهاشمي";"الراكه","الهاشمي";"الجوهرة","الهديب";"ناصر","ابو سعود";"سعد","عبد الرحيم";"الدمام","عبد الرحيم";"نايف","عبد الرحيم";"الحزام","عبد الرحيم";"منوع","عبد الرحيم"},2,0)),0) -> 
P21: =IFERROR(IF($G21="","",VLOOKUP($G21,{"سلطان","الخالدي";"البايونيه","الهاشمي";"الراكه","الهاشمي";"الجوهرة","الهديب";"ناصر","ابو سعود";"سعد","عبد الرحيم";"الدمام","عبد الرحيم";"نايف","عبد الرحيم";"الحزام","عبد الرحيم";"منوع","عبد الرحيم"},2,0)),0) -> 
P22: =IFERROR(IF($G22="","",VLOOKUP($G22,{"سلطان","الخالدي";"البايونيه","الهاشمي";"الراكه","الهاشمي";"الجوهرة","الهديب";"ناصر","ابو سعود";"سعد","عبد الرحيم";"الدمام","عبد الرحيم";"نايف","عبد الرحيم";"الحزام","عبد الرحيم";"منوع","عبد الرحيم"},2,0)),0) -> 
P23: =IFERROR(IF($G23="","",VLOOKUP($G23,{"سلطان","الخالدي";"البايونيه","الهاشمي";"الراكه","الهاشمي";"الجوهرة","الهديب";"ناصر","ابو سعود";"سعد","عبد الرحيم";"الدمام","عبد الرحيم";"نايف","عبد الرحيم";"الحزام","عبد الرحيم";"منوع","عبد الرحيم"},2,0)),0) -> 
P24: =IFERROR(IF($G24="","",VLOOKUP($G24,{"سلطان","الخالدي";"البايونيه","الهاشمي";"الراكه","الهاشمي";"الجوهرة","الهديب";"ناصر","ابو سعود";"سعد","عبد الرحيم";"الدمام","عبد الرحيم";"نايف","عبد الرحيم";"الحزام","عبد الرحيم";"منوع","عبد الرحيم"},2,0)),0) -> 
P25: =IFERROR(IF($G25="","",VLOOKUP($G25,{"سلطان","الخالدي";"البايونيه","الهاشمي";"الراكه","الهاشمي";"الجوهرة","الهديب";"ناصر","ابو سعود";"سعد","عبد الرحيم";"الدمام","عبد الرحيم";"نايف","عبد الرحيم";"الحزام","عبد الرحيم";"منوع","عبد الرحيم"},2,0)),0) -> 
P26: =IFERROR(IF($G26="","",VLOOKUP($G26,{"سلطان","الخالدي";"البايونيه","الهاشمي";"الراكه","الهاشمي";"الجوهرة","الهديب";"ناصر","ابو سعود";"سعد","عبد الرحيم";"الدمام","عبد الرحيم";"نايف","عبد الرحيم";"الحزام","عبد الرحيم";"منوع","عبد الرحيم"},2,0)),0) -> 
P27: =IFERROR(IF($G27="","",VLOOKUP($G27,{"سلطان","الخالدي";"البايونيه","الهاشمي";"الراكه","الهاشمي";"الجوهرة","الهديب";"ناصر","ابو سعود";"سعد","عبد الرحيم";"الدمام","عبد الرحيم";"نايف","عبد الرحيم";"الحزام","عبد الرحيم";"منوع","عبد الرحيم"},2,0)),0) -> 
P28: =IFERROR(IF($G28="","",VLOOKUP($G28,{"سلطان","الخالدي";"البايونيه","الهاشمي";"الراكه","الهاشمي";"الجوهرة","الهديب";"ناصر","ابو سعود";"سعد","عبد الرحيم";"الدمام","عبد الرحيم";"نايف","عبد الرحيم";"الحزام","عبد الرحيم";"منوع","عبد الرحيم"},2,0)),0) -> 
P29: =IFERROR(IF($G29="","",VLOOKUP($G29,{"سلطان","الخالدي";"البايونيه","الهاشمي";"الراكه","الهاشمي";"الجوهرة","الهديب";"ناصر","ابو سعود";"سعد","عبد الرحيم";"الدمام","عبد الرحيم";"نايف","عبد الرحيم";"الحزام","عبد الرحيم";"منوع","عبد الرحيم"},2,0)),0) -> 
P30: =IFERROR(IF($G30="","",VLOOKUP($G30,{"سلطان","الخالدي";"البايونيه","الهاشمي";"الراكه","الهاشمي";"الجوهرة","الهديب";"ناصر","ابو سعود";"سعد","عبد الرحيم";"الدمام","عبد الرحيم";"نايف","عبد الرحيم";"الحزام","عبد الرحيم";"منوع","عبد الرحيم"},2,0)),0) -> 
P31: =IFERROR(IF($G31="","",VLOOKUP($G31,{"سلطان","الخالدي";"البايونيه","الهاشمي";"الراكه","الهاشمي";"الجوهرة","الهديب";"ناصر","ابو سعود";"سعد","عبد الرحيم";"الدمام","عبد الرحيم";"نايف","عبد الرحيم";"الحزام","عبد الرحيم";"منوع","عبد الرحيم"},2,0)),0) -> 
P32: =IFERROR(IF($G32="","",VLOOKUP($G32,{"سلطان","الخالدي";"البايونيه","الهاشمي";"الراكه","الهاشمي";"الجوهرة","الهديب";"ناصر","ابو سعود";"سعد","عبد الرحيم";"الدمام","عبد الرحيم";"نايف","عبد الرحيم";"الحزام","عبد الرحيم";"منوع","عبد الرحيم"},2,0)),0) -> 
P33: =IFERROR(IF($G33="","",VLOOKUP($G33,{"سلطان","الخالدي";"البايونيه","الهاشمي";"الراكه","الهاشمي";"الجوهرة","الهديب";"ناصر","ابو سعود";"سعد","عبد الرحيم";"الدمام","عبد الرحيم";"نايف","عبد الرحيم";"الحزام","عبد الرحيم";"منوع","عبد الرحيم"},2,0)),0) -> 
P34: =IFERROR(IF($G34="","",VLOOKUP($G34,{"سلطان","الخالدي";"البايونيه","الهاشمي";"الراكه","الهاشمي";"الجوهرة","الهديب";"ناصر","ابو سعود";"سعد","عبد الرحيم";"الدمام","عبد الرحيم";"نايف","عبد الرحيم";"الحزام","عبد الرحيم";"منوع","عبد الرحيم"},2,0)),0) -> 
P35: =IFERROR(IF($G35="","",VLOOKUP($G35,{"سلطان","الخالدي";"البايونيه","الهاشمي";"الراكه","الهاشمي";"الجوهرة","الهديب";"ناصر","ابو سعود";"سعد","عبد الرحيم";"الدمام","عبد الرحيم";"نايف","عبد الرحيم";"الحزام","عبد الرحيم";"منوع","عبد الرحيم"},2,0)),0) -> 
P36: =IFERROR(IF($G36="","",VLOOKUP($G36,{"سلطان","الخالدي";"البايونيه","الهاشمي";"الراكه","الهاشمي";"الجوهرة","الهديب";"ناصر","ابو سعود";"سعد","عبد الرحيم";"الدمام","عبد الرحيم";"نايف","عبد الرحيم";"الحزام","عبد الرحيم";"منوع","عبد الرحيم"},2,0)),0) -> 
P37: =IFERROR(IF($G37="","",VLOOKUP($G37,{"سلطان","الخالدي";"البايونيه","الهاشمي";"الراكه","الهاشمي";"الجوهرة","الهديب";"ناصر","ابو سعود";"سعد","عبد الرحيم";"الدمام","عبد الرحيم";"نايف","عبد الرحيم";"الحزام","عبد الرحيم";"منوع","عبد الرحيم"},2,0)),0) -> 
P38: =IFERROR(IF($G38="","",VLOOKUP($G38,{"سلطان","الخالدي";"البايونيه","الهاشمي";"الراكه","الهاشمي";"الجوهرة","الهديب";"ناصر","ابو سعود";"سعد","عبد الرحيم";"الدمام","عبد الرحيم";"نايف","عبد الرحيم";"الحزام","عبد الرحيم";"منوع","عبد الرحيم"},2,0)),0) -> 
P39: =IFERROR(IF($G39="","",VLOOKUP($G39,{"سلطان","الخالدي";"البايونيه","الهاشمي";"الراكه","الهاشمي";"الجوهرة","الهديب";"ناصر","ابو سعود";"سعد","عبد الرحيم";"الدمام","عبد الرحيم";"نايف","عبد الرحيم";"الحزام","عبد الرحيم";"منوع","عبد الرحيم"},2,0)),0) -> 
P40: =IFERROR(IF($G40="","",VLOOKUP($G40,{"سلطان","الخالدي";"البايونيه","الهاشمي";"الراكه","الهاشمي";"الجوهرة","الهديب";"ناصر","ابو سعود";"سعد","عبد الرحيم";"الدمام","عبد الرحيم";"نايف","عبد الرحيم";"الحزام","عبد الرحيم";"منوع","عبد الرحيم"},2,0)),0) -> 
P41: =IFERROR(IF($G41="","",VLOOKUP($G41,{"سلطان","الخالدي";"البايونيه","الهاشمي";"الراكه","الهاشمي";"الجوهرة","الهديب";"ناصر","ابو سعود";"سعد","عبد الرحيم";"الدمام","عبد الرحيم";"نايف","عبد الرحيم";"الحزام","عبد الرحيم";"منوع","عبد الرحيم"},2,0)),0) -> 
P42: =IFERROR(IF($G42="","",VLOOKUP($G42,{"سلطان","الخالدي";"البايونيه","الهاشمي";"الراكه","الهاشمي";"الجوهرة","الهديب";"ناصر","ابو سعود";"سعد","عبد الرحيم";"الدمام","عبد الرحيم";"نايف","عبد الرحيم";"الحزام","عبد الرحيم";"منوع","عبد الرحيم"},2,0)),0) -> 
P43: =IFERROR(IF($G43="","",VLOOKUP($G43,{"سلطان","الخالدي";"البايونيه","الهاشمي";"الراكه","الهاشمي";"الجوهرة","الهديب";"ناصر","ابو سعود";"سعد","عبد الرحيم";"الدمام","عبد الرحيم";"نايف","عبد الرحيم";"الحزام","عبد الرحيم";"منوع","عبد الرحيم"},2,0)),0) -> 
P44: =IFERROR(IF($G44="","",VLOOKUP($G44,{"سلطان","الخالدي";"البايونيه","الهاشمي";"الراكه","الهاشمي";"الجوهرة","الهديب";"ناصر","ابو سعود";"سعد","عبد الرحيم";"الدمام","عبد الرحيم";"نايف","عبد الرحيم";"الحزام","عبد الرحيم";"منوع","عبد الرحيم"},2,0)),0) -> 
P45: =IFERROR(IF($G45="","",VLOOKUP($G45,{"سلطان","الخالدي";"البايونيه","الهاشمي";"الراكه","الهاشمي";"الجوهرة","الهديب";"ناصر","ابو سعود";"سعد","عبد الرحيم";"الدمام","عبد الرحيم";"نايف","عبد الرحيم";"الحزام","عبد الرحيم";"منوع","عبد الرحيم"},2,0)),0) -> 
P46: =IFERROR(IF($G46="","",VLOOKUP($G46,{"سلطان","الخالدي";"البايونيه","الهاشمي";"الراكه","الهاشمي";"الجوهرة","الهديب";"ناصر","ابو سعود";"سعد","عبد الرحيم";"الدمام","عبد الرحيم";"نايف","عبد الرحيم";"الحزام","عبد الرحيم";"منوع","عبد الرحيم"},2,0)),0) -> 
P47: =IFERROR(IF($G47="","",VLOOKUP($G47,{"سلطان","الخالدي";"البايونيه","الهاشمي";"الراكه","الهاشمي";"الجوهرة","الهديب";"ناصر","ابو سعود";"سعد","عبد الرحيم";"الدمام","عبد الرحيم";"نايف","عبد الرحيم";"الحزام","عبد الرحيم";"منوع","عبد الرحيم"},2,0)),0) -> 
P48: =IFERROR(IF($G48="","",VLOOKUP($G48,{"سلطان","الخالدي";"البايونيه","الهاشمي";"الراكه","الهاشمي";"الجوهرة","الهديب";"ناصر","ابو سعود";"سعد","عبد الرحيم";"الدمام","عبد الرحيم";"نايف","عبد الرحيم";"الحزام","عبد الرحيم";"منوع","عبد الرحيم"},2,0)),0) -> 
P49: =IFERROR(IF($G49="","",VLOOKUP($G49,{"سلطان","الخالدي";"البايونيه","الهاشمي";"الراكه","الهاشمي";"الجوهرة","الهديب";"ناصر","ابو سعود";"سعد","عبد الرحيم";"الدمام","عبد الرحيم";"نايف","عبد الرحيم";"الحزام","عبد الرحيم";"منوع","عبد الرحيم"},2,0)),0) -> 
P50: =IFERROR(IF($G50="","",VLOOKUP($G50,{"سلطان","الخالدي";"البايونيه","الهاشمي";"الراكه","الهاشمي";"الجوهرة","الهديب";"ناصر","ابو سعود";"سعد","عبد الرحيم";"الدمام","عبد الرحيم";"نايف","عبد الرحيم";"الحزام","عبد الرحيم";"منوع","عبد الرحيم"},2,0)),0) -> 
P51: =IFERROR(IF($G51="","",VLOOKUP($G51,{"سلطان","الخالدي";"البايونيه","الهاشمي";"الراكه","الهاشمي";"الجوهرة","الهديب";"ناصر","ابو سعود";"سعد","عبد الرحيم";"الدمام","عبد الرحيم";"نايف","عبد الرحيم";"الحزام","عبد الرحيم";"منوع","عبد الرحيم"},2,0)),0) -> 
P52: =IFERROR(IF($G52="","",VLOOKUP($G52,{"سلطان","الخالدي";"البايونيه","الهاشمي";"الراكه","الهاشمي";"الجوهرة","الهديب";"ناصر","ابو سعود";"سعد","عبد الرحيم";"الدمام","عبد الرحيم";"نايف","عبد الرحيم";"الحزام","عبد الرحيم";"منوع","عبد الرحيم"},2,0)),0) -> 
P53: =IFERROR(IF($G53="","",VLOOKUP($G53,{"سلطان","الخالدي";"البايونيه","الهاشمي";"الراكه","الهاشمي";"الجوهرة","الهديب";"ناصر","ابو سعود";"سعد","عبد الرحيم";"الدمام","عبد الرحيم";"نايف","عبد الرحيم";"الحزام","عبد الرحيم";"منوع","عبد الرحيم"},2,0)),0) -> 
P54: =IFERROR(IF($G54="","",VLOOKUP($G54,{"سلطان","الخالدي";"البايونيه","الهاشمي";"الراكه","الهاشمي";"الجوهرة","الهديب";"ناصر","ابو سعود";"سعد","عبد الرحيم";"الدمام","عبد الرحيم";"نايف","عبد الرحيم";"الحزام","عبد الرحيم";"منوع","عبد الرحيم"},2,0)),0) -> 
P55: =IFERROR(IF($G55="","",VLOOKUP($G55,{"سلطان","الخالدي";"البايونيه","الهاشمي";"الراكه","الهاشمي";"الجوهرة","الهديب";"ناصر","ابو سعود";"سعد","عبد الرحيم";"الدمام","عبد الرحيم";"نايف","عبد الرحيم";"الحزام","عبد الرحيم";"منوع","عبد الرحيم"},2,0)),0) -> 
P56: =IFERROR(IF($G56="","",VLOOKUP($G56,{"سلطان","الخالدي";"البايونيه","الهاشمي";"الراكه","الهاشمي";"الجوهرة","الهديب";"ناصر","ابو سعود";"سعد","عبد الرحيم";"الدمام","عبد الرحيم";"نايف","عبد الرحيم";"الحزام","عبد الرحيم";"منوع","عبد الرحيم"},2,0)),0) -> 
P57: =IFERROR(IF($G57="","",VLOOKUP($G57,{"سلطان","الخالدي";"البايونيه","الهاشمي";"الراكه","الهاشمي";"الجوهرة","الهديب";"ناصر","ابو سعود";"سعد","عبد الرحيم";"الدمام","عبد الرحيم";"نايف","عبد الرحيم";"الحزام","عبد الرحيم";"منوع","عبد الرحيم"},2,0)),0) -> 
P58: =IFERROR(IF($G58="","",VLOOKUP($G58,{"سلطان","الخالدي";"البايونيه","الهاشمي";"الراكه","الهاشمي";"الجوهرة","الهديب";"ناصر","ابو سعود";"سعد","عبد الرحيم";"الدمام","عبد الرحيم";"نايف","عبد الرحيم";"الحزام","عبد الرحيم";"منوع","عبد الرحيم"},2,0)),0) -> 
P59: =IFERROR(IF($G59="","",VLOOKUP($G59,{"سلطان","الخالدي";"البايونيه","الهاشمي";"الراكه","الهاشمي";"الجوهرة","الهديب";"ناصر","ابو سعود";"سعد","عبد الرحيم";"الدمام","عبد الرحيم";"نايف","عبد الرحيم";"الحزام","عبد الرحيم";"منوع","عبد الرحيم"},2,0)),0) -> 
P60: =IFERROR(IF($G60="","",VLOOKUP($G60,{"سلطان","الخالدي";"البايونيه","الهاشمي";"الراكه","الهاشمي";"الجوهرة","الهديب";"ناصر","ابو سعود";"سعد","عبد الرحيم";"الدمام","عبد الرحيم";"نايف","عبد الرحيم";"الحزام","عبد الرحيم";"منوع","عبد الرحيم"},2,0)),0) -> 
P61: =IFERROR(IF($G61="","",VLOOKUP($G61,{"سلطان","الخالدي";"البايونيه","الهاشمي";"الراكه","الهاشمي";"الجوهرة","الهديب";"ناصر","ابو سعود";"سعد","عبد الرحيم";"الدمام","عبد الرحيم";"نايف","عبد الرحيم";"الحزام","عبد الرحيم";"منوع","عبد الرحيم"},2,0)),0) -> 
P62: =IFERROR(IF($G62="","",VLOOKUP($G62,{"سلطان","الخالدي";"البايونيه","الهاشمي";"الراكه","الهاشمي";"الجوهرة","الهديب";"ناصر","ابو سعود";"سعد","عبد الرحيم";"الدمام","عبد الرحيم";"نايف","عبد الرحيم";"الحزام","عبد الرحيم";"منوع","عبد الرحيم"},2,0)),0) -> 
P63: =IFERROR(IF($G63="","",VLOOKUP($G63,{"سلطان","الخالدي";"البايونيه","الهاشمي";"الراكه","الهاشمي";"الجوهرة","الهديب";"ناصر","ابو سعود";"سعد","عبد الرحيم";"الدمام","عبد الرحيم";"نايف","عبد الرحيم";"الحزام","عبد الرحيم";"منوع","عبد الرحيم"},2,0)),0) -> 
P64: =IFERROR(IF($G64="","",VLOOKUP($G64,{"سلطان","الخالدي";"البايونيه","الهاشمي";"الراكه","الهاشمي";"الجوهرة","الهديب";"ناصر","ابو سعود";"سعد","عبد الرحيم";"الدمام","عبد الرحيم";"نايف","عبد الرحيم";"الحزام","عبد الرحيم";"منوع","عبد الرحيم"},2,0)),0) -> 
P65: =IFERROR(IF($G65="","",VLOOKUP($G65,{"سلطان","الخالدي";"البايونيه","الهاشمي";"الراكه","الهاشمي";"الجوهرة","الهديب";"ناصر","ابو سعود";"سعد","عبد الرحيم";"الدمام","عبد الرحيم";"نايف","عبد الرحيم";"الحزام","عبد الرحيم";"منوع","عبد الرحيم"},2,0)),0) -> 
P66: =IFERROR(IF($G66="","",VLOOKUP($G66,{"سلطان","الخالدي";"البايونيه","الهاشمي";"الراكه","الهاشمي";"الجوهرة","الهديب";"ناصر","ابو سعود";"سعد","عبد الرحيم";"الدمام","عبد الرحيم";"نايف","عبد الرحيم";"الحزام","عبد الرحيم";"منوع","عبد الرحيم"},2,0)),0) -> 
P67: =IFERROR(IF($G67="","",VLOOKUP($G67,{"سلطان","الخالدي";"البايونيه","الهاشمي";"الراكه","الهاشمي";"الجوهرة","الهديب";"ناصر","ابو سعود";"سعد","عبد الرحيم";"الدمام","عبد الرحيم";"نايف","عبد الرحيم";"الحزام","عبد الرحيم";"منوع","عبد الرحيم"},2,0)),0) -> 
P68: =IFERROR(IF($G68="","",VLOOKUP($G68,{"سلطان","الخالدي";"البايونيه","الهاشمي";"الراكه","الهاشمي";"الجوهرة","الهديب";"ناصر","ابو سعود";"سعد","عبد الرحيم";"الدمام","عبد الرحيم";"نايف","عبد الرحيم";"الحزام","عبد الرحيم";"منوع","عبد الرحيم"},2,0)),0) -> 
P69: =IFERROR(IF($G69="","",VLOOKUP($G69,{"سلطان","الخالدي";"البايونيه","الهاشمي";"الراكه","الهاشمي";"الجوهرة","الهديب";"ناصر","ابو سعود";"سعد","عبد الرحيم";"الدمام","عبد الرحيم";"نايف","عبد الرحيم";"الحزام","عبد الرحيم";"منوع","عبد الرحيم"},2,0)),0) -> 
P70: =IFERROR(IF($G70="","",VLOOKUP($G70,{"سلطان","الخالدي";"البايونيه","الهاشمي";"الراكه","الهاشمي";"الجوهرة","الهديب";"ناصر","ابو سعود";"سعد","عبد الرحيم";"الدمام","عبد الرحيم";"نايف","عبد الرحيم";"الحزام","عبد الرحيم";"منوع","عبد الرحيم"},2,0)),0) -> 
P71: =IFERROR(IF($G71="","",VLOOKUP($G71,{"سلطان","الخالدي";"البايونيه","الهاشمي";"الراكه","الهاشمي";"الجوهرة","الهديب";"ناصر","ابو سعود";"سعد","عبد الرحيم";"الدمام","عبد الرحيم";"نايف","عبد الرحيم";"الحزام","عبد الرحيم";"منوع","عبد الرحيم"},2,0)),0) -> 
P72: =IFERROR(IF($G72="","",VLOOKUP($G72,{"سلطان","الخالدي";"البايونيه","الهاشمي";"الراكه","الهاشمي";"الجوهرة","الهديب";"ناصر","ابو سعود";"سعد","عبد الرحيم";"الدمام","عبد الرحيم";"نايف","عبد الرحيم";"الحزام","عبد الرحيم";"منوع","عبد الرحيم"},2,0)),0) -> 
P73: =IFERROR(IF($G73="","",VLOOKUP($G73,{"سلطان","الخالدي";"البايونيه","الهاشمي";"الراكه","الهاشمي";"الجوهرة","الهديب";"ناصر","ابو سعود";"سعد","عبد الرحيم";"الدمام","عبد الرحيم";"نايف","عبد الرحيم";"الحزام","عبد الرحيم";"منوع","عبد الرحيم"},2,0)),0) -> 
P74: =IFERROR(IF($G74="","",VLOOKUP($G74,{"سلطان","الخالدي";"البايونيه","الهاشمي";"الراكه","الهاشمي";"الجوهرة","الهديب";"ناصر","ابو سعود";"سعد","عبد الرحيم";"الدمام","عبد الرحيم";"نايف","عبد الرحيم";"الحزام","عبد الرحيم";"منوع","عبد الرحيم"},2,0)),0) -> 
P75: =IFERROR(IF($G75="","",VLOOKUP($G75,{"سلطان","الخالدي";"البايونيه","الهاشمي";"الراكه","الهاشمي";"الجوهرة","الهديب";"ناصر","ابو سعود";"سعد","عبد الرحيم";"الدمام","عبد الرحيم";"نايف","عبد الرحيم";"الحزام","عبد الرحيم";"منوع","عبد الرحيم"},2,0)),0) -> 
P76: =IFERROR(IF($G76="","",VLOOKUP($G76,{"سلطان","الخالدي";"البايونيه","الهاشمي";"الراكه","الهاشمي";"الجوهرة","الهديب";"ناصر","ابو سعود";"سعد","عبد الرحيم";"الدمام","عبد الرحيم";"نايف","عبد الرحيم";"الحزام","عبد الرحيم";"منوع","عبد الرحيم"},2,0)),0) -> 
P77: =IFERROR(IF($G77="","",VLOOKUP($G77,{"سلطان","الخالدي";"البايونيه","الهاشمي";"الراكه","الهاشمي";"الجوهرة","الهديب";"ناصر","ابو سعود";"سعد","عبد الرحيم";"الدمام","عبد الرحيم";"نايف","عبد الرحيم";"الحزام","عبد الرحيم";"منوع","عبد الرحيم"},2,0)),0) -> 
P78: =IFERROR(IF($G78="","",VLOOKUP($G78,{"سلطان","الخالدي";"البايونيه","الهاشمي";"الراكه","الهاشمي";"الجوهرة","الهديب";"ناصر","ابو سعود";"سعد","عبد الرحيم";"الدمام","عبد الرحيم";"نايف","عبد الرحيم";"الحزام","عبد الرحيم";"منوع","عبد الرحيم"},2,0)),0) -> 
P79: =IFERROR(IF($G79="","",VLOOKUP($G79,{"سلطان","الخالدي";"البايونيه","الهاشمي";"الراكه","الهاشمي";"الجوهرة","الهديب";"ناصر","ابو سعود";"سعد","عبد الرحيم";"الدمام","عبد الرحيم";"نايف","عبد الرحيم";"الحزام","عبد الرحيم";"منوع","عبد الرحيم"},2,0)),0) -> 
P80: =IFERROR(IF($G80="","",VLOOKUP($G80,{"سلطان","الخالدي";"البايونيه","الهاشمي";"الراكه","الهاشمي";"الجوهرة","الهديب";"ناصر","ابو سعود";"سعد","عبد الرحيم";"الدمام","عبد الرحيم";"نايف","عبد الرحيم";"الحزام","عبد الرحيم";"منوع","عبد الرحيم"},2,0)),0) -> 
P81: =IFERROR(IF($G81="","",VLOOKUP($G81,{"سلطان","الخالدي";"البايونيه","الهاشمي";"الراكه","الهاشمي";"الجوهرة","الهديب";"ناصر","ابو سعود";"سعد","عبد الرحيم";"الدمام","عبد الرحيم";"نايف","عبد الرحيم";"الحزام","عبد الرحيم";"منوع","عبد الرحيم"},2,0)),0) -> 
P82: =IFERROR(IF($G82="","",VLOOKUP($G82,{"سلطان","الخالدي";"البايونيه","الهاشمي";"الراكه","الهاشمي";"الجوهرة","الهديب";"ناصر","ابو سعود";"سعد","عبد الرحيم";"الدمام","عبد الرحيم";"نايف","عبد الرحيم";"الحزام","عبد الرحيم";"منوع","عبد الرحيم"},2,0)),0) -> 
P83: =IFERROR(IF($G83="","",VLOOKUP($G83,{"سلطان","الخالدي";"البايونيه","الهاشمي";"الراكه","الهاشمي";"الجوهرة","الهديب";"ناصر","ابو سعود";"سعد","عبد الرحيم";"الدمام","عبد الرحيم";"نايف","عبد الرحيم";"الحزام","عبد الرحيم";"منوع","عبد الرحيم"},2,0)),0) -> 
P84: =IFERROR(IF($G84="","",VLOOKUP($G84,{"سلطان","الخالدي";"البايونيه","الهاشمي";"الراكه","الهاشمي";"الجوهرة","الهديب";"ناصر","ابو سعود";"سعد","عبد الرحيم";"الدمام","عبد الرحيم";"نايف","عبد الرحيم";"الحزام","عبد الرحيم";"منوع","عبد الرحيم"},2,0)),0) -> 
P85: =IFERROR(IF($G85="","",VLOOKUP($G85,{"سلطان","الخالدي";"البايونيه","الهاشمي";"الراكه","الهاشمي";"الجوهرة","الهديب";"ناصر","ابو سعود";"سعد","عبد الرحيم";"الدمام","عبد الرحيم";"نايف","عبد الرحيم";"الحزام","عبد الرحيم";"منوع","عبد الرحيم"},2,0)),0) -> 
P86: =IFERROR(IF($G86="","",VLOOKUP($G86,{"سلطان","الخالدي";"البايونيه","الهاشمي";"الراكه","الهاشمي";"الجوهرة","الهديب";"ناصر","ابو سعود";"سعد","عبد الرحيم";"الدمام","عبد الرحيم";"نايف","عبد الرحيم";"الحزام","عبد الرحيم";"منوع","عبد الرحيم"},2,0)),0) -> 
P87: =IFERROR(IF($G87="","",VLOOKUP($G87,{"سلطان","الخالدي";"البايونيه","الهاشمي";"الراكه","الهاشمي";"الجوهرة","الهديب";"ناصر","ابو سعود";"سعد","عبد الرحيم";"الدمام","عبد الرحيم";"نايف","عبد الرحيم";"الحزام","عبد الرحيم";"منوع","عبد الرحيم"},2,0)),0) -> 
P88: =IFERROR(IF($G88="","",VLOOKUP($G88,{"سلطان","الخالدي";"البايونيه","الهاشمي";"الراكه","الهاشمي";"الجوهرة","الهديب";"ناصر","ابو سعود";"سعد","عبد الرحيم";"الدمام","عبد الرحيم";"نايف","عبد الرحيم";"الحزام","عبد الرحيم";"منوع","عبد الرحيم"},2,0)),0) -> 
P89: =IFERROR(IF($G89="","",VLOOKUP($G89,{"سلطان","الخالدي";"البايونيه","الهاشمي";"الراكه","الهاشمي";"الجوهرة","الهديب";"ناصر","ابو سعود";"سعد","عبد الرحيم";"الدمام","عبد الرحيم";"نايف","عبد الرحيم";"الحزام","عبد الرحيم";"منوع","عبد الرحيم"},2,0)),0) -> 
P90: =IFERROR(IF($G90="","",VLOOKUP($G90,{"سلطان","الخالدي";"البايونيه","الهاشمي";"الراكه","الهاشمي";"الجوهرة","الهديب";"ناصر","ابو سعود";"سعد","عبد الرحيم";"الدمام","عبد الرحيم";"نايف","عبد الرحيم";"الحزام","عبد الرحيم";"منوع","عبد الرحيم"},2,0)),0) -> 
P91: =IFERROR(IF($G91="","",VLOOKUP($G91,{"سلطان","الخالدي";"البايونيه","الهاشمي";"الراكه","الهاشمي";"الجوهرة","الهديب";"ناصر","ابو سعود";"سعد","عبد الرحيم";"الدمام","عبد الرحيم";"نايف","عبد الرحيم";"الحزام","عبد الرحيم";"منوع","عبد الرحيم"},2,0)),0) -> 
P92: =IFERROR(IF($G92="","",VLOOKUP($G92,{"سلطان","الخالدي";"البايونيه","الهاشمي";"الراكه","الهاشمي";"الجوهرة","الهديب";"ناصر","ابو سعود";"سعد","عبد الرحيم";"الدمام","عبد الرحيم";"نايف","عبد الرحيم";"الحزام","عبد الرحيم";"منوع","عبد الرحيم"},2,0)),0) -> 
P93: =IFERROR(IF($G93="","",VLOOKUP($G93,{"سلطان","الخالدي";"البايونيه","الهاشمي";"الراكه","الهاشمي";"الجوهرة","الهديب";"ناصر","ابو سعود";"سعد","عبد الرحيم";"الدمام","عبد الرحيم";"نايف","عبد الرحيم";"الحزام","عبد الرحيم";"منوع","عبد الرحيم"},2,0)),0) -> 
P94: =IFERROR(IF($G94="","",VLOOKUP($G94,{"سلطان","الخالدي";"البايونيه","الهاشمي";"الراكه","الهاشمي";"الجوهرة","الهديب";"ناصر","ابو سعود";"سعد","عبد الرحيم";"الدمام","عبد الرحيم";"نايف","عبد الرحيم";"الحزام","عبد الرحيم";"منوع","عبد الرحيم"},2,0)),0) -> 
P95: =IFERROR(IF($G95="","",VLOOKUP($G95,{"سلطان","الخالدي";"البايونيه","الهاشمي";"الراكه","الهاشمي";"الجوهرة","الهديب";"ناصر","ابو سعود";"سعد","عبد الرحيم";"الدمام","عبد الرحيم";"نايف","عبد الرحيم";"الحزام","عبد الرحيم";"منوع","عبد الرحيم"},2,0)),0) -> 
P96: =IFERROR(IF($G96="","",VLOOKUP($G96,{"سلطان","الخالدي";"البايونيه","الهاشمي";"الراكه","الهاشمي";"الجوهرة","الهديب";"ناصر","ابو سعود";"سعد","عبد الرحيم";"الدمام","عبد الرحيم";"نايف","عبد الرحيم";"الحزام","عبد الرحيم";"منوع","عبد الرحيم"},2,0)),0) -> 
P97: =IFERROR(IF($G97="","",VLOOKUP($G97,{"سلطان","الخالدي";"البايونيه","الهاشمي";"الراكه","الهاشمي";"الجوهرة","الهديب";"ناصر","ابو سعود";"سعد","عبد الرحيم";"الدمام","عبد الرحيم";"نايف","عبد الرحيم";"الحزام","عبد الرحيم";"منوع","عبد الرحيم"},2,0)),0) -> 
P98: =IFERROR(IF($G98="","",VLOOKUP($G98,{"سلطان","الخالدي";"البايونيه","الهاشمي";"الراكه","الهاشمي";"الجوهرة","الهديب";"ناصر","ابو سعود";"سعد","عبد الرحيم";"الدمام","عبد الرحيم";"نايف","عبد الرحيم";"الحزام","عبد الرحيم";"منوع","عبد الرحيم"},2,0)),0) -> 
P99: =IFERROR(IF($G99="","",VLOOKUP($G99,{"سلطان","الخالدي";"البايونيه","الهاشمي";"الراكه","الهاشمي";"الجوهرة","الهديب";"ناصر","ابو سعود";"سعد","عبد الرحيم";"الدمام","عبد الرحيم";"نايف","عبد الرحيم";"الحزام","عبد الرحيم";"منوع","عبد الرحيم"},2,0)),0) -> 
P100: =IFERROR(IF($G100="","",VLOOKUP($G100,{"سلطان","الخالدي";"البايونيه","الهاشمي";"الراكه","الهاشمي";"الجوهرة","الهديب";"ناصر","ابو سعود";"سعد","عبد الرحيم";"الدمام","عبد الرحيم";"نايف","عبد الرحيم";"الحزام","عبد الرحيم";"منوع","عبد الرحيم"},2,0)),0) -> 
P101: =IFERROR(IF($G101="","",VLOOKUP($G101,{"سلطان","الخالدي";"البايونيه","الهاشمي";"الراكه","الهاشمي";"الجوهرة","الهديب";"ناصر","ابو سعود";"سعد","عبد الرحيم";"الدمام","عبد الرحيم";"نايف","عبد الرحيم";"الحزام","عبد الرحيم";"منوع","عبد الرحيم"},2,0)),0) -> 
P102: =IFERROR(IF($G102="","",VLOOKUP($G102,{"سلطان","الخالدي";"البايونيه","الهاشمي";"الراكه","الهاشمي";"الجوهرة","الهديب";"ناصر","ابو سعود";"سعد","عبد الرحيم";"الدمام","عبد الرحيم";"نايف","عبد الرحيم";"الحزام","عبد الرحيم";"منوع","عبد الرحيم"},2,0)),0) -> 
P103: =IFERROR(IF($G103="","",VLOOKUP($G103,{"سلطان","الخالدي";"البايونيه","الهاشمي";"الراكه","الهاشمي";"الجوهرة","الهديب";"ناصر","ابو سعود";"سعد","عبد الرحيم";"الدمام","عبد الرحيم";"نايف","عبد الرحيم";"الحزام","عبد الرحيم";"منوع","عبد الرحيم"},2,0)),0) -> 
P104: =IFERROR(IF($G104="","",VLOOKUP($G104,{"سلطان","الخالدي";"البايونيه","الهاشمي";"الراكه","الهاشمي";"الجوهرة","الهديب";"ناصر","ابو سعود";"سعد","عبد الرحيم";"الدمام","عبد الرحيم";"نايف","عبد الرحيم";"الحزام","عبد الرحيم";"منوع","عبد الرحيم"},2,0)),0) -> 
P105: =IFERROR(IF($G105="","",VLOOKUP($G105,{"سلطان","الخالدي";"البايونيه","الهاشمي";"الراكه","الهاشمي";"الجوهرة","الهديب";"ناصر","ابو سعود";"سعد","عبد الرحيم";"الدمام","عبد الرحيم";"نايف","عبد الرحيم";"الحزام","عبد الرحيم";"منوع","عبد الرحيم"},2,0)),0) -> 
P106: =IFERROR(IF($G106="","",VLOOKUP($G106,{"سلطان","الخالدي";"البايونيه","الهاشمي";"الراكه","الهاشمي";"الجوهرة","الهديب";"ناصر","ابو سعود";"سعد","عبد الرحيم";"الدمام","عبد الرحيم";"نايف","عبد الرحيم";"الحزام","عبد الرحيم";"منوع","عبد الرحيم"},2,0)),0) -> 
P107: =IFERROR(IF($G107="","",VLOOKUP($G107,{"سلطان","الخالدي";"البايونيه","الهاشمي";"الراكه","الهاشمي";"الجوهرة","الهديب";"ناصر","ابو سعود";"سعد","عبد الرحيم";"الدمام","عبد الرحيم";"نايف","عبد الرحيم";"الحزام","عبد الرحيم";"منوع","عبد الرحيم"},2,0)),0) -> 
P108: =IFERROR(IF($G108="","",VLOOKUP($G108,{"سلطان","الخالدي";"البايونيه","الهاشمي";"الراكه","الهاشمي";"الجوهرة","الهديب";"ناصر","ابو سعود";"سعد","عبد الرحيم";"الدمام","عبد الرحيم";"نايف","عبد الرحيم";"الحزام","عبد الرحيم";"منوع","عبد الرحيم"},2,0)),0) -> 
P109: =IFERROR(IF($G109="","",VLOOKUP($G109,{"سلطان","الخالدي";"البايونيه","الهاشمي";"الراكه","الهاشمي";"الجوهرة","الهديب";"ناصر","ابو سعود";"سعد","عبد الرحيم";"الدمام","عبد الرحيم";"نايف","عبد الرحيم";"الحزام","عبد الرحيم";"منوع","عبد الرحيم"},2,0)),0) -> 
P110: =IFERROR(IF($G110="","",VLOOKUP($G110,{"سلطان","الخالدي";"البايونيه","الهاشمي";"الراكه","الهاشمي";"الجوهرة","الهديب";"ناصر","ابو سعود";"سعد","عبد الرحيم";"الدمام","عبد الرحيم";"نايف","عبد الرحيم";"الحزام","عبد الرحيم";"منوع","عبد الرحيم"},2,0)),0) -> 
P111: =IFERROR(IF($G111="","",VLOOKUP($G111,{"سلطان","الخالدي";"البايونيه","الهاشمي";"الراكه","الهاشمي";"الجوهرة","الهديب";"ناصر","ابو سعود";"سعد","عبد الرحيم";"الدمام","عبد الرحيم";"نايف","عبد الرحيم";"الحزام","عبد الرحيم";"منوع","عبد الرحيم"},2,0)),0) -> 
P112: =IFERROR(IF($G112="","",VLOOKUP($G112,{"سلطان","الخالدي";"البايونيه","الهاشمي";"الراكه","الهاشمي";"الجوهرة","الهديب";"ناصر","ابو سعود";"سعد","عبد الرحيم";"الدمام","عبد الرحيم";"نايف","عبد الرحيم";"الحزام","عبد الرحيم";"منوع","عبد الرحيم"},2,0)),0) -> 
P113: =IFERROR(IF($G113="","",VLOOKUP($G113,{"سلطان","الخالدي";"البايونيه","الهاشمي";"الراكه","الهاشمي";"الجوهرة","الهديب";"ناصر","ابو سعود";"سعد","عبد الرحيم";"الدمام","عبد الرحيم";"نايف","عبد الرحيم";"الحزام","عبد الرحيم";"منوع","عبد الرحيم"},2,0)),0) -> 
P114: =IFERROR(IF($G114="","",VLOOKUP($G114,{"سلطان","الخالدي";"البايونيه","الهاشمي";"الراكه","الهاشمي";"الجوهرة","الهديب";"ناصر","ابو سعود";"سعد","عبد الرحيم";"الدمام","عبد الرحيم";"نايف","عبد الرحيم";"الحزام","عبد الرحيم";"منوع","عبد الرحيم"},2,0)),0) -> 
P115: =IFERROR(IF($G115="","",VLOOKUP($G115,{"سلطان","الخالدي";"البايونيه","الهاشمي";"الراكه","الهاشمي";"الجوهرة","الهديب";"ناصر","ابو سعود";"سعد","عبد الرحيم";"الدمام","عبد الرحيم";"نايف","عبد الرحيم";"الحزام","عبد الرحيم";"منوع","عبد الرحيم"},2,0)),0) -> 
P116: =IFERROR(IF($G116="","",VLOOKUP($G116,{"سلطان","الخالدي";"البايونيه","الهاشمي";"الراكه","الهاشمي";"الجوهرة","الهديب";"ناصر","ابو سعود";"سعد","عبد الرحيم";"الدمام","عبد الرحيم";"نايف","عبد الرحيم";"الحزام","عبد الرحيم";"منوع","عبد الرحيم"},2,0)),0) -> 
P117: =IFERROR(IF($G117="","",VLOOKUP($G117,{"سلطان","الخالدي";"البايونيه","الهاشمي";"الراكه","الهاشمي";"الجوهرة","الهديب";"ناصر","ابو سعود";"سعد","عبد الرحيم";"الدمام","عبد الرحيم";"نايف","عبد الرحيم";"الحزام","عبد الرحيم";"منوع","عبد الرحيم"},2,0)),0) -> 
P118: =IFERROR(IF($G118="","",VLOOKUP($G118,{"سلطان","الخالدي";"البايونيه","الهاشمي";"الراكه","الهاشمي";"الجوهرة","الهديب";"ناصر","ابو سعود";"سعد","عبد الرحيم";"الدمام","عبد الرحيم";"نايف","عبد الرحيم";"الحزام","عبد الرحيم";"منوع","عبد الرحيم"},2,0)),0) -> 
P119: =IFERROR(IF($G119="","",VLOOKUP($G119,{"سلطان","الخالدي";"البايونيه","الهاشمي";"الراكه","الهاشمي";"الجوهرة","الهديب";"ناصر","ابو سعود";"سعد","عبد الرحيم";"الدمام","عبد الرحيم";"نايف","عبد الرحيم";"الحزام","عبد الرحيم";"منوع","عبد الرحيم"},2,0)),0) -> 
P120: =IFERROR(IF($G120="","",VLOOKUP($G120,{"سلطان","الخالدي";"البايونيه","الهاشمي";"الراكه","الهاشمي";"الجوهرة","الهديب";"ناصر","ابو سعود";"سعد","عبد الرحيم";"الدمام","عبد الرحيم";"نايف","عبد الرحيم";"الحزام","عبد الرحيم";"منوع","عبد الرحيم"},2,0)),0) -> 
P121: =IFERROR(IF($G121="","",VLOOKUP($G121,{"سلطان","الخالدي";"البايونيه","الهاشمي";"الراكه","الهاشمي";"الجوهرة","الهديب";"ناصر","ابو سعود";"سعد","عبد الرحيم";"الدمام","عبد الرحيم";"نايف","عبد الرحيم";"الحزام","عبد الرحيم";"منوع","عبد الرحيم"},2,0)),0) -> 
P122: =IFERROR(IF($G122="","",VLOOKUP($G122,{"سلطان","الخالدي";"البايونيه","الهاشمي";"الراكه","الهاشمي";"الجوهرة","الهديب";"ناصر","ابو سعود";"سعد","عبد الرحيم";"الدمام","عبد الرحيم";"نايف","عبد الرحيم";"الحزام","عبد الرحيم";"منوع","عبد الرحيم"},2,0)),0) -> 
P123: =IFERROR(IF($G123="","",VLOOKUP($G123,{"سلطان","الخالدي";"البايونيه","الهاشمي";"الراكه","الهاشمي";"الجوهرة","الهديب";"ناصر","ابو سعود";"سعد","عبد الرحيم";"الدمام","عبد الرحيم";"نايف","عبد الرحيم";"الحزام","عبد الرحيم";"منوع","عبد الرحيم"},2,0)),0) -> 
P124: =IFERROR(IF($G124="","",VLOOKUP($G124,{"سلطان","الخالدي";"البايونيه","الهاشمي";"الراكه","الهاشمي";"الجوهرة","الهديب";"ناصر","ابو سعود";"سعد","عبد الرحيم";"الدمام","عبد الرحيم";"نايف","عبد الرحيم";"الحزام","عبد الرحيم";"منوع","عبد الرحيم"},2,0)),0) -> 
P125: =IFERROR(IF($G125="","",VLOOKUP($G125,{"سلطان","الخالدي";"البايونيه","الهاشمي";"الراكه","الهاشمي";"الجوهرة","الهديب";"ناصر","ابو سعود";"سعد","عبد الرحيم";"الدمام","عبد الرحيم";"نايف","عبد الرحيم";"الحزام","عبد الرحيم";"منوع","عبد الرحيم"},2,0)),0) -> 
P126: =IFERROR(IF($G126="","",VLOOKUP($G126,{"سلطان","الخالدي";"البايونيه","الهاشمي";"الراكه","الهاشمي";"الجوهرة","الهديب";"ناصر","ابو سعود";"سعد","عبد الرحيم";"الدمام","عبد الرحيم";"نايف","عبد الرحيم";"الحزام","عبد الرحيم";"منوع","عبد الرحيم"},2,0)),0) -> 
P127: =IFERROR(IF($G127="","",VLOOKUP($G127,{"سلطان","الخالدي";"البايونيه","الهاشمي";"الراكه","الهاشمي";"الجوهرة","الهديب";"ناصر","ابو سعود";"سعد","عبد الرحيم";"الدمام","عبد الرحيم";"نايف","عبد الرحيم";"الحزام","عبد الرحيم";"منوع","عبد الرحيم"},2,0)),0) -> 
P128: =IFERROR(IF($G128="","",VLOOKUP($G128,{"سلطان","الخالدي";"البايونيه","الهاشمي";"الراكه","الهاشمي";"الجوهرة","الهديب";"ناصر","ابو سعود";"سعد","عبد الرحيم";"الدمام","عبد الرحيم";"نايف","عبد الرحيم";"الحزام","عبد الرحيم";"منوع","عبد الرحيم"},2,0)),0) -> 
P129: =IFERROR(IF($G129="","",VLOOKUP($G129,{"سلطان","الخالدي";"البايونيه","الهاشمي";"الراكه","الهاشمي";"الجوهرة","الهديب";"ناصر","ابو سعود";"سعد","عبد الرحيم";"الدمام","عبد الرحيم";"نايف","عبد الرحيم";"الحزام","عبد الرحيم";"منوع","عبد الرحيم"},2,0)),0) -> 
P130: =IFERROR(IF($G130="","",VLOOKUP($G130,{"سلطان","الخالدي";"البايونيه","الهاشمي";"الراكه","الهاشمي";"الجوهرة","الهديب";"ناصر","ابو سعود";"سعد","عبد الرحيم";"الدمام","عبد الرحيم";"نايف","عبد الرحيم";"الحزام","عبد الرحيم";"منوع","عبد الرحيم"},2,0)),0) -> 
P131: =IFERROR(IF($G131="","",VLOOKUP($G131,{"سلطان","الخالدي";"البايونيه","الهاشمي";"الراكه","الهاشمي";"الجوهرة","الهديب";"ناصر","ابو سعود";"سعد","عبد الرحيم";"الدمام","عبد الرحيم";"نايف","عبد الرحيم";"الحزام","عبد الرحيم";"منوع","عبد الرحيم"},2,0)),0) -> 
P132: =IFERROR(IF($G132="","",VLOOKUP($G132,{"سلطان","الخالدي";"البايونيه","الهاشمي";"الراكه","الهاشمي";"الجوهرة","الهديب";"ناصر","ابو سعود";"سعد","عبد الرحيم";"الدمام","عبد الرحيم";"نايف","عبد الرحيم";"الحزام","عبد الرحيم";"منوع","عبد الرحيم"},2,0)),0) -> 
P133: =IFERROR(IF($G133="","",VLOOKUP($G133,{"سلطان","الخالدي";"البايونيه","الهاشمي";"الراكه","الهاشمي";"الجوهرة","الهديب";"ناصر","ابو سعود";"سعد","عبد الرحيم";"الدمام","عبد الرحيم";"نايف","عبد الرحيم";"الحزام","عبد الرحيم";"منوع","عبد الرحيم"},2,0)),0) -> 
P134: =IFERROR(IF($G134="","",VLOOKUP($G134,{"سلطان","الخالدي";"البايونيه","الهاشمي";"الراكه","الهاشمي";"الجوهرة","الهديب";"ناصر","ابو سعود";"سعد","عبد الرحيم";"الدمام","عبد الرحيم";"نايف","عبد الرحيم";"الحزام","عبد الرحيم";"منوع","عبد الرحيم"},2,0)),0) -> 
P135: =IFERROR(IF($G135="","",VLOOKUP($G135,{"سلطان","الخالدي";"البايونيه","الهاشمي";"الراكه","الهاشمي";"الجوهرة","الهديب";"ناصر","ابو سعود";"سعد","عبد الرحيم";"الدمام","عبد الرحيم";"نايف","عبد الرحيم";"الحزام","عبد الرحيم";"منوع","عبد الرحيم"},2,0)),0) -> 
P136: =IFERROR(IF($G136="","",VLOOKUP($G136,{"سلطان","الخالدي";"البايونيه","الهاشمي";"الراكه","الهاشمي";"الجوهرة","الهديب";"ناصر","ابو سعود";"سعد","عبد الرحيم";"الدمام","عبد الرحيم";"نايف","عبد الرحيم";"الحزام","عبد الرحيم";"منوع","عبد الرحيم"},2,0)),0) -> 
P137: =IFERROR(IF($G137="","",VLOOKUP($G137,{"سلطان","الخالدي";"البايونيه","الهاشمي";"الراكه","الهاشمي";"الجوهرة","الهديب";"ناصر","ابو سعود";"سعد","عبد الرحيم";"الدمام","عبد الرحيم";"نايف","عبد الرحيم";"الحزام","عبد الرحيم";"منوع","عبد الرحيم"},2,0)),0) -> 
P138: =IFERROR(IF($G138="","",VLOOKUP($G138,{"سلطان","الخالدي";"البايونيه","الهاشمي";"الراكه","الهاشمي";"الجوهرة","الهديب";"ناصر","ابو سعود";"سعد","عبد الرحيم";"الدمام","عبد الرحيم";"نايف","عبد الرحيم";"الحزام","عبد الرحيم";"منوع","عبد الرحيم"},2,0)),0) -> 
P139: =IFERROR(IF($G139="","",VLOOKUP($G139,{"سلطان","الخالدي";"البايونيه","الهاشمي";"الراكه","الهاشمي";"الجوهرة","الهديب";"ناصر","ابو سعود";"سعد","عبد الرحيم";"الدمام","عبد الرحيم";"نايف","عبد الرحيم";"الحزام","عبد الرحيم";"منوع","عبد الرحيم"},2,0)),0) -> 
P140: =IFERROR(IF($G140="","",VLOOKUP($G140,{"سلطان","الخالدي";"البايونيه","الهاشمي";"الراكه","الهاشمي";"الجوهرة","الهديب";"ناصر","ابو سعود";"سعد","عبد الرحيم";"الدمام","عبد الرحيم";"نايف","عبد الرحيم";"الحزام","عبد الرحيم";"منوع","عبد الرحيم"},2,0)),0) -> 
P141: =IFERROR(IF($G141="","",VLOOKUP($G141,{"سلطان","الخالدي";"البايونيه","الهاشمي";"الراكه","الهاشمي";"الجوهرة","الهديب";"ناصر","ابو سعود";"سعد","عبد الرحيم";"الدمام","عبد الرحيم";"نايف","عبد الرحيم";"الحزام","عبد الرحيم";"منوع","عبد الرحيم"},2,0)),0) -> 
P142: =IFERROR(IF($G142="","",VLOOKUP($G142,{"سلطان","الخالدي";"البايونيه","الهاشمي";"الراكه","الهاشمي";"الجوهرة","الهديب";"ناصر","ابو سعود";"سعد","عبد الرحيم";"الدمام","عبد الرحيم";"نايف","عبد الرحيم";"الحزام","عبد الرحيم";"منوع","عبد الرحيم"},2,0)),0) -> 
P143: =IFERROR(IF($G143="","",VLOOKUP($G143,{"سلطان","الخالدي";"البايونيه","الهاشمي";"الراكه","الهاشمي";"الجوهرة","الهديب";"ناصر","ابو سعود";"سعد","عبد الرحيم";"الدمام","عبد الرحيم";"نايف","عبد الرحيم";"الحزام","عبد الرحيم";"منوع","عبد الرحيم"},2,0)),0) -> 
P144: =IFERROR(IF($G144="","",VLOOKUP($G144,{"سلطان","الخالدي";"البايونيه","الهاشمي";"الراكه","الهاشمي";"الجوهرة","الهديب";"ناصر","ابو سعود";"سعد","عبد الرحيم";"الدمام","عبد الرحيم";"نايف","عبد الرحيم";"الحزام","عبد الرحيم";"منوع","عبد الرحيم"},2,0)),0) -> 
P145: =IFERROR(IF($G145="","",VLOOKUP($G145,{"سلطان","الخالدي";"البايونيه","الهاشمي";"الراكه","الهاشمي";"الجوهرة","الهديب";"ناصر","ابو سعود";"سعد","عبد الرحيم";"الدمام","عبد الرحيم";"نايف","عبد الرحيم";"الحزام","عبد الرحيم";"منوع","عبد الرحيم"},2,0)),0) -> 
P146: =IFERROR(IF($G146="","",VLOOKUP($G146,{"سلطان","الخالدي";"البايونيه","الهاشمي";"الراكه","الهاشمي";"الجوهرة","الهديب";"ناصر","ابو سعود";"سعد","عبد الرحيم";"الدمام","عبد الرحيم";"نايف","عبد الرحيم";"الحزام","عبد الرحيم";"منوع","عبد الرحيم"},2,0)),0) -> 
P147: =IFERROR(IF($G147="","",VLOOKUP($G147,{"سلطان","الخالدي";"البايونيه","الهاشمي";"الراكه","الهاشمي";"الجوهرة","الهديب";"ناصر","ابو سعود";"سعد","عبد الرحيم";"الدمام","عبد الرحيم";"نايف","عبد الرحيم";"الحزام","عبد الرحيم";"منوع","عبد الرحيم"},2,0)),0) -> 
P148: =IFERROR(IF($G148="","",VLOOKUP($G148,{"سلطان","الخالدي";"البايونيه","الهاشمي";"الراكه","الهاشمي";"الجوهرة","الهديب";"ناصر","ابو سعود";"سعد","عبد الرحيم";"الدمام","عبد الرحيم";"نايف","عبد الرحيم";"الحزام","عبد الرحيم";"منوع","عبد الرحيم"},2,0)),0) -> 
P149: =IFERROR(IF($G149="","",VLOOKUP($G149,{"سلطان","الخالدي";"البايونيه","الهاشمي";"الراكه","الهاشمي";"الجوهرة","الهديب";"ناصر","ابو سعود";"سعد","عبد الرحيم";"الدمام","عبد الرحيم";"نايف","عبد الرحيم";"الحزام","عبد الرحيم";"منوع","عبد الرحيم"},2,0)),0) -> 
P150: =IFERROR(IF($G150="","",VLOOKUP($G150,{"سلطان","الخالدي";"البايونيه","الهاشمي";"الراكه","الهاشمي";"الجوهرة","الهديب";"ناصر","ابو سعود";"سعد","عبد الرحيم";"الدمام","عبد الرحيم";"نايف","عبد الرحيم";"الحزام","عبد الرحيم";"منوع","عبد الرحيم"},2,0)),0) -> 
P151: =IFERROR(IF($G151="","",VLOOKUP($G151,{"سلطان","الخالدي";"البايونيه","الهاشمي";"الراكه","الهاشمي";"الجوهرة","الهديب";"ناصر","ابو سعود";"سعد","عبد الرحيم";"الدمام","عبد الرحيم";"نايف","عبد الرحيم";"الحزام","عبد الرحيم";"منوع","عبد الرحيم"},2,0)),0) -> 
P152: =IFERROR(IF($G152="","",VLOOKUP($G152,{"سلطان","الخالدي";"البايونيه","الهاشمي";"الراكه","الهاشمي";"الجوهرة","الهديب";"ناصر","ابو سعود";"سعد","عبد الرحيم";"الدمام","عبد الرحيم";"نايف","عبد الرحيم";"الحزام","عبد الرحيم";"منوع","عبد الرحيم"},2,0)),0) -> 
P153: =IFERROR(IF($G153="","",VLOOKUP($G153,{"سلطان","الخالدي";"البايونيه","الهاشمي";"الراكه","الهاشمي";"الجوهرة","الهديب";"ناصر","ابو سعود";"سعد","عبد الرحيم";"الدمام","عبد الرحيم";"نايف","عبد الرحيم";"الحزام","عبد الرحيم";"منوع","عبد الرحيم"},2,0)),0) -> 
P154: =IFERROR(IF($G154="","",VLOOKUP($G154,{"سلطان","الخالدي";"البايونيه","الهاشمي";"الراكه","الهاشمي";"الجوهرة","الهديب";"ناصر","ابو سعود";"سعد","عبد الرحيم";"الدمام","عبد الرحيم";"نايف","عبد الرحيم";"الحزام","عبد الرحيم";"منوع","عبد الرحيم"},2,0)),0) -> 
P155: =IFERROR(IF($G155="","",VLOOKUP($G155,{"سلطان","الخالدي";"البايونيه","الهاشمي";"الراكه","الهاشمي";"الجوهرة","الهديب";"ناصر","ابو سعود";"سعد","عبد الرحيم";"الدمام","عبد الرحيم";"نايف","عبد الرحيم";"الحزام","عبد الرحيم";"منوع","عبد الرحيم"},2,0)),0) -> 
P156: =IFERROR(IF($G156="","",VLOOKUP($G156,{"سلطان","الخالدي";"البايونيه","الهاشمي";"الراكه","الهاشمي";"الجوهرة","الهديب";"ناصر","ابو سعود";"سعد","عبد الرحيم";"الدمام","عبد الرحيم";"نايف","عبد الرحيم";"الحزام","عبد الرحيم";"منوع","عبد الرحيم"},2,0)),0) -> 
P157: =IFERROR(IF($G157="","",VLOOKUP($G157,{"سلطان","الخالدي";"البايونيه","الهاشمي";"الراكه","الهاشمي";"الجوهرة","الهديب";"ناصر","ابو سعود";"سعد","عبد الرحيم";"الدمام","عبد الرحيم";"نايف","عبد الرحيم";"الحزام","عبد الرحيم";"منوع","عبد الرحيم"},2,0)),0) -> 
P158: =IFERROR(IF($G158="","",VLOOKUP($G158,{"سلطان","الخالدي";"البايونيه","الهاشمي";"الراكه","الهاشمي";"الجوهرة","الهديب";"ناصر","ابو سعود";"سعد","عبد الرحيم";"الدمام","عبد الرحيم";"نايف","عبد الرحيم";"الحزام","عبد الرحيم";"منوع","عبد الرحيم"},2,0)),0) -> 
P159: =IFERROR(IF($G159="","",VLOOKUP($G159,{"سلطان","الخالدي";"البايونيه","الهاشمي";"الراكه","الهاشمي";"الجوهرة","الهديب";"ناصر","ابو سعود";"سعد","عبد الرحيم";"الدمام","عبد الرحيم";"نايف","عبد الرحيم";"الحزام","عبد الرحيم";"منوع","عبد الرحيم"},2,0)),0) -> 
P160: =IFERROR(IF($G160="","",VLOOKUP($G160,{"سلطان","الخالدي";"البايونيه","الهاشمي";"الراكه","الهاشمي";"الجوهرة","الهديب";"ناصر","ابو سعود";"سعد","عبد الرحيم";"الدمام","عبد الرحيم";"نايف","عبد الرحيم";"الحزام","عبد الرحيم";"منوع","عبد الرحيم"},2,0)),0) -> 
P161: =IFERROR(IF($G161="","",VLOOKUP($G161,{"سلطان","الخالدي";"البايونيه","الهاشمي";"الراكه","الهاشمي";"الجوهرة","الهديب";"ناصر","ابو سعود";"سعد","عبد الرحيم";"الدمام","عبد الرحيم";"نايف","عبد الرحيم";"الحزام","عبد الرحيم";"منوع","عبد الرحيم"},2,0)),0) -> 
P162: =IFERROR(IF($G162="","",VLOOKUP($G162,{"سلطان","الخالدي";"البايونيه","الهاشمي";"الراكه","الهاشمي";"الجوهرة","الهديب";"ناصر","ابو سعود";"سعد","عبد الرحيم";"الدمام","عبد الرحيم";"نايف","عبد الرحيم";"الحزام","عبد الرحيم";"منوع","عبد الرحيم"},2,0)),0) -> 
P163: =IFERROR(IF($G163="","",VLOOKUP($G163,{"سلطان","الخالدي";"البايونيه","الهاشمي";"الراكه","الهاشمي";"الجوهرة","الهديب";"ناصر","ابو سعود";"سعد","عبد الرحيم";"الدمام","عبد الرحيم";"نايف","عبد الرحيم";"الحزام","عبد الرحيم";"منوع","عبد الرحيم"},2,0)),0) -> 
P164: =IFERROR(IF($G164="","",VLOOKUP($G164,{"سلطان","الخالدي";"البايونيه","الهاشمي";"الراكه","الهاشمي";"الجوهرة","الهديب";"ناصر","ابو سعود";"سعد","عبد الرحيم";"الدمام","عبد الرحيم";"نايف","عبد الرحيم";"الحزام","عبد الرحيم";"منوع","عبد الرحيم"},2,0)),0) -> 
P165: =IFERROR(IF($G165="","",VLOOKUP($G165,{"سلطان","الخالدي";"البايونيه","الهاشمي";"الراكه","الهاشمي";"الجوهرة","الهديب";"ناصر","ابو سعود";"سعد","عبد الرحيم";"الدمام","عبد الرحيم";"نايف","عبد الرحيم";"الحزام","عبد الرحيم";"منوع","عبد الرحيم"},2,0)),0) -> 
P166: =IFERROR(IF($G166="","",VLOOKUP($G166,{"سلطان","الخالدي";"البايونيه","الهاشمي";"الراكه","الهاشمي";"الجوهرة","الهديب";"ناصر","ابو سعود";"سعد","عبد الرحيم";"الدمام","عبد الرحيم";"نايف","عبد الرحيم";"الحزام","عبد الرحيم";"منوع","عبد الرحيم"},2,0)),0) -> 
P167: =IFERROR(IF($G167="","",VLOOKUP($G167,{"سلطان","الخالدي";"البايونيه","الهاشمي";"الراكه","الهاشمي";"الجوهرة","الهديب";"ناصر","ابو سعود";"سعد","عبد الرحيم";"الدمام","عبد الرحيم";"نايف","عبد الرحيم";"الحزام","عبد الرحيم";"منوع","عبد الرحيم"},2,0)),0) -> 
P168: =IFERROR(IF($G168="","",VLOOKUP($G168,{"سلطان","الخالدي";"البايونيه","الهاشمي";"الراكه","الهاشمي";"الجوهرة","الهديب";"ناصر","ابو سعود";"سعد","عبد الرحيم";"الدمام","عبد الرحيم";"نايف","عبد الرحيم";"الحزام","عبد الرحيم";"منوع","عبد الرحيم"},2,0)),0) -> 
P169: =IFERROR(IF($G169="","",VLOOKUP($G169,{"سلطان","الخالدي";"البايونيه","الهاشمي";"الراكه","الهاشمي";"الجوهرة","الهديب";"ناصر","ابو سعود";"سعد","عبد الرحيم";"الدمام","عبد الرحيم";"نايف","عبد الرحيم";"الحزام","عبد الرحيم";"منوع","عبد الرحيم"},2,0)),0) -> 
P170: =IFERROR(IF($G170="","",VLOOKUP($G170,{"سلطان","الخالدي";"البايونيه","الهاشمي";"الراكه","الهاشمي";"الجوهرة","الهديب";"ناصر","ابو سعود";"سعد","عبد الرحيم";"الدمام","عبد الرحيم";"نايف","عبد الرحيم";"الحزام","عبد الرحيم";"منوع","عبد الرحيم"},2,0)),0) -> 
P171: =IFERROR(IF($G171="","",VLOOKUP($G171,{"سلطان","الخالدي";"البايونيه","الهاشمي";"الراكه","الهاشمي";"الجوهرة","الهديب";"ناصر","ابو سعود";"سعد","عبد الرحيم";"الدمام","عبد الرحيم";"نايف","عبد الرحيم";"الحزام","عبد الرحيم";"منوع","عبد الرحيم"},2,0)),0) -> 
P172: =IFERROR(IF($G172="","",VLOOKUP($G172,{"سلطان","الخالدي";"البايونيه","الهاشمي";"الراكه","الهاشمي";"الجوهرة","الهديب";"ناصر","ابو سعود";"سعد","عبد الرحيم";"الدمام","عبد الرحيم";"نايف","عبد الرحيم";"الحزام","عبد الرحيم";"منوع","عبد الرحيم"},2,0)),0) -> 
P173: =IFERROR(IF($G173="","",VLOOKUP($G173,{"سلطان","الخالدي";"البايونيه","الهاشمي";"الراكه","الهاشمي";"الجوهرة","الهديب";"ناصر","ابو سعود";"سعد","عبد الرحيم";"الدمام","عبد الرحيم";"نايف","عبد الرحيم";"الحزام","عبد الرحيم";"منوع","عبد الرحيم"},2,0)),0) -> 
P174: =IFERROR(IF($G174="","",VLOOKUP($G174,{"سلطان","الخالدي";"البايونيه","الهاشمي";"الراكه","الهاشمي";"الجوهرة","الهديب";"ناصر","ابو سعود";"سعد","عبد الرحيم";"الدمام","عبد الرحيم";"نايف","عبد الرحيم";"الحزام","عبد الرحيم";"منوع","عبد الرحيم"},2,0)),0) -> 
P175: =IFERROR(IF($G175="","",VLOOKUP($G175,{"سلطان","الخالدي";"البايونيه","الهاشمي";"الراكه","الهاشمي";"الجوهرة","الهديب";"ناصر","ابو سعود";"سعد","عبد الرحيم";"الدمام","عبد الرحيم";"نايف","عبد الرحيم";"الحزام","عبد الرحيم";"منوع","عبد الرحيم"},2,0)),0) -> 
P176: =IFERROR(IF($G176="","",VLOOKUP($G176,{"سلطان","الخالدي";"البايونيه","الهاشمي";"الراكه","الهاشمي";"الجوهرة","الهديب";"ناصر","ابو سعود";"سعد","عبد الرحيم";"الدمام","عبد الرحيم";"نايف","عبد الرحيم";"الحزام","عبد الرحيم";"منوع","عبد الرحيم"},2,0)),0) -> 
P177: =IFERROR(IF($G177="","",VLOOKUP($G177,{"سلطان","الخالدي";"البايونيه","الهاشمي";"الراكه","الهاشمي";"الجوهرة","الهديب";"ناصر","ابو سعود";"سعد","عبد الرحيم";"الدمام","عبد الرحيم";"نايف","عبد الرحيم";"الحزام","عبد الرحيم";"منوع","عبد الرحيم"},2,0)),0) -> 
P178: =IFERROR(IF($G178="","",VLOOKUP($G178,{"سلطان","الخالدي";"البايونيه","الهاشمي";"الراكه","الهاشمي";"الجوهرة","الهديب";"ناصر","ابو سعود";"سعد","عبد الرحيم";"الدمام","عبد الرحيم";"نايف","عبد الرحيم";"الحزام","عبد الرحيم";"منوع","عبد الرحيم"},2,0)),0) -> 
P179: =IFERROR(IF($G179="","",VLOOKUP($G179,{"سلطان","الخالدي";"البايونيه","الهاشمي";"الراكه","الهاشمي";"الجوهرة","الهديب";"ناصر","ابو سعود";"سعد","عبد الرحيم";"الدمام","عبد الرحيم";"نايف","عبد الرحيم";"الحزام","عبد الرحيم";"منوع","عبد الرحيم"},2,0)),0) -> 
P180: =IFERROR(IF($G180="","",VLOOKUP($G180,{"سلطان","الخالدي";"البايونيه","الهاشمي";"الراكه","الهاشمي";"الجوهرة","الهديب";"ناصر","ابو سعود";"سعد","عبد الرحيم";"الدمام","عبد الرحيم";"نايف","عبد الرحيم";"الحزام","عبد الرحيم";"منوع","عبد الرحيم"},2,0)),0) -> 
P181: =IFERROR(IF($G181="","",VLOOKUP($G181,{"سلطان","الخالدي";"البايونيه","الهاشمي";"الراكه","الهاشمي";"الجوهرة","الهديب";"ناصر","ابو سعود";"سعد","عبد الرحيم";"الدمام","عبد الرحيم";"نايف","عبد الرحيم";"الحزام","عبد الرحيم";"منوع","عبد الرحيم"},2,0)),0) -> 
P182: =IFERROR(IF($G182="","",VLOOKUP($G182,{"سلطان","الخالدي";"البايونيه","الهاشمي";"الراكه","الهاشمي";"الجوهرة","الهديب";"ناصر","ابو سعود";"سعد","عبد الرحيم";"الدمام","عبد الرحيم";"نايف","عبد الرحيم";"الحزام","عبد الرحيم";"منوع","عبد الرحيم"},2,0)),0) -> 
P183: =IFERROR(IF($G183="","",VLOOKUP($G183,{"سلطان","الخالدي";"البايونيه","الهاشمي";"الراكه","الهاشمي";"الجوهرة","الهديب";"ناصر","ابو سعود";"سعد","عبد الرحيم";"الدمام","عبد الرحيم";"نايف","عبد الرحيم";"الحزام","عبد الرحيم";"منوع","عبد الرحيم"},2,0)),0) -> 
P184: =IFERROR(IF($G184="","",VLOOKUP($G184,{"سلطان","الخالدي";"البايونيه","الهاشمي";"الراكه","الهاشمي";"الجوهرة","الهديب";"ناصر","ابو سعود";"سعد","عبد الرحيم";"الدمام","عبد الرحيم";"نايف","عبد الرحيم";"الحزام","عبد الرحيم";"منوع","عبد الرحيم"},2,0)),0) -> 
P185: =IFERROR(IF($G185="","",VLOOKUP($G185,{"سلطان","الخالدي";"البايونيه","الهاشمي";"الراكه","الهاشمي";"الجوهرة","الهديب";"ناصر","ابو سعود";"سعد","عبد الرحيم";"الدمام","عبد الرحيم";"نايف","عبد الرحيم";"الحزام","عبد الرحيم";"منوع","عبد الرحيم"},2,0)),0) -> 
P186: =IFERROR(IF($G186="","",VLOOKUP($G186,{"سلطان","الخالدي";"البايونيه","الهاشمي";"الراكه","الهاشمي";"الجوهرة","الهديب";"ناصر","ابو سعود";"سعد","عبد الرحيم";"الدمام","عبد الرحيم";"نايف","عبد الرحيم";"الحزام","عبد الرحيم";"منوع","عبد الرحيم"},2,0)),0) -> 
P187: =IFERROR(IF($G187="","",VLOOKUP($G187,{"سلطان","الخالدي";"البايونيه","الهاشمي";"الراكه","الهاشمي";"الجوهرة","الهديب";"ناصر","ابو سعود";"سعد","عبد الرحيم";"الدمام","عبد الرحيم";"نايف","عبد الرحيم";"الحزام","عبد الرحيم";"منوع","عبد الرحيم"},2,0)),0) -> 
P188: =IFERROR(IF($G188="","",VLOOKUP($G188,{"سلطان","الخالدي";"البايونيه","الهاشمي";"الراكه","الهاشمي";"الجوهرة","الهديب";"ناصر","ابو سعود";"سعد","عبد الرحيم";"الدمام","عبد الرحيم";"نايف","عبد الرحيم";"الحزام","عبد الرحيم";"منوع","عبد الرحيم"},2,0)),0) -> 
P189: =IFERROR(IF($G189="","",VLOOKUP($G189,{"سلطان","الخالدي";"البايونيه","الهاشمي";"الراكه","الهاشمي";"الجوهرة","الهديب";"ناصر","ابو سعود";"سعد","عبد الرحيم";"الدمام","عبد الرحيم";"نايف","عبد الرحيم";"الحزام","عبد الرحيم";"منوع","عبد الرحيم"},2,0)),0) -> 
P190: =IFERROR(IF($G190="","",VLOOKUP($G190,{"سلطان","الخالدي";"البايونيه","الهاشمي";"الراكه","الهاشمي";"الجوهرة","الهديب";"ناصر","ابو سعود";"سعد","عبد الرحيم";"الدمام","عبد الرحيم";"نايف","عبد الرحيم";"الحزام","عبد الرحيم";"منوع","عبد الرحيم"},2,0)),0) -> 
P191: =IFERROR(IF($G191="","",VLOOKUP($G191,{"سلطان","الخالدي";"البايونيه","الهاشمي";"الراكه","الهاشمي";"الجوهرة","الهديب";"ناصر","ابو سعود";"سعد","عبد الرحيم";"الدمام","عبد الرحيم";"نايف","عبد الرحيم";"الحزام","عبد الرحيم";"منوع","عبد الرحيم"},2,0)),0) -> 
P192: =IFERROR(IF($G192="","",VLOOKUP($G192,{"سلطان","الخالدي";"البايونيه","الهاشمي";"الراكه","الهاشمي";"الجوهرة","الهديب";"ناصر","ابو سعود";"سعد","عبد الرحيم";"الدمام","عبد الرحيم";"نايف","عبد الرحيم";"الحزام","عبد الرحيم";"منوع","عبد الرحيم"},2,0)),0) -> 
P193: =IFERROR(IF($G193="","",VLOOKUP($G193,{"سلطان","الخالدي";"البايونيه","الهاشمي";"الراكه","الهاشمي";"الجوهرة","الهديب";"ناصر","ابو سعود";"سعد","عبد الرحيم";"الدمام","عبد الرحيم";"نايف","عبد الرحيم";"الحزام","عبد الرحيم";"منوع","عبد الرحيم"},2,0)),0) -> 
P194: =IFERROR(IF($G194="","",VLOOKUP($G194,{"سلطان","الخالدي";"البايونيه","الهاشمي";"الراكه","الهاشمي";"الجوهرة","الهديب";"ناصر","ابو سعود";"سعد","عبد الرحيم";"الدمام","عبد الرحيم";"نايف","عبد الرحيم";"الحزام","عبد الرحيم";"منوع","عبد الرحيم"},2,0)),0) -> 
P195: =IFERROR(IF($G195="","",VLOOKUP($G195,{"سلطان","الخالدي";"البايونيه","الهاشمي";"الراكه","الهاشمي";"الجوهرة","الهديب";"ناصر","ابو سعود";"سعد","عبد الرحيم";"الدمام","عبد الرحيم";"نايف","عبد الرحيم";"الحزام","عبد الرحيم";"منوع","عبد الرحيم"},2,0)),0) -> 
P196: =IFERROR(IF($G196="","",VLOOKUP($G196,{"سلطان","الخالدي";"البايونيه","الهاشمي";"الراكه","الهاشمي";"الجوهرة","الهديب";"ناصر","ابو سعود";"سعد","عبد الرحيم";"الدمام","عبد الرحيم";"نايف","عبد الرحيم";"الحزام","عبد الرحيم";"منوع","عبد الرحيم"},2,0)),0) -> 
P197: =IFERROR(IF($G197="","",VLOOKUP($G197,{"سلطان","الخالدي";"البايونيه","الهاشمي";"الراكه","الهاشمي";"الجوهرة","الهديب";"ناصر","ابو سعود";"سعد","عبد الرحيم";"الدمام","عبد الرحيم";"نايف","عبد الرحيم";"الحزام","عبد الرحيم";"منوع","عبد الرحيم"},2,0)),0) -> 
P198: =IFERROR(IF($G198="","",VLOOKUP($G198,{"سلطان","الخالدي";"البايونيه","الهاشمي";"الراكه","الهاشمي";"الجوهرة","الهديب";"ناصر","ابو سعود";"سعد","عبد الرحيم";"الدمام","عبد الرحيم";"نايف","عبد الرحيم";"الحزام","عبد الرحيم";"منوع","عبد الرحيم"},2,0)),0) -> 
P199: =IFERROR(IF($G199="","",VLOOKUP($G199,{"سلطان","الخالدي";"البايونيه","الهاشمي";"الراكه","الهاشمي";"الجوهرة","الهديب";"ناصر","ابو سعود";"سعد","عبد الرحيم";"الدمام","عبد الرحيم";"نايف","عبد الرحيم";"الحزام","عبد الرحيم";"منوع","عبد الرحيم"},2,0)),0) -> 
P200: =IFERROR(IF($G200="","",VLOOKUP($G200,{"سلطان","الخالدي";"البايونيه","الهاشمي";"الراكه","الهاشمي";"الجوهرة","الهديب";"ناصر","ابو سعود";"سعد","عبد الرحيم";"الدمام","عبد الرحيم";"نايف","عبد الرحيم";"الحزام","عبد الرحيم";"منوع","عبد الرحيم"},2,0)),0) -> 
... 1193 more rows

Sheet المتأخرين
B3: 2018-03-12 | C3: تاريخ الهجري | F3: 1 | H3: سلطان | P3: الشقق الفارغه | Q3: 12
B4: 2018-03-12 | C4: الموافق | J4: جوال= | P4: المحلات الفارغه
B5: تأمين | C5: رقم الجوال | D5: عدد أيام تأخير | E5: ملاحظات | F5: المدفوع | G5: تاريخ الانتهاء | H5: تاريخ ابتداءالايجار | I5: طريقة الدفع | J5: الباقي | K5: المطلوب | L5: الإجمالي | M5: ماء | N5: ألأيجار | O5: رقم الشقة | P5: اسم المستأجر | Q5: الرقم
B6: مع المالك | D6: 53 | G6: 2018-01-18 | H6: 2017-08-23 | I6: 6 | J6: 6300 | K6: 6300 | L6: 12600 | M6: 600 | N6: 12000 | O6: 3 | P6: عصام الجمل | Q6: 3 | R6: 3
D7: 43171 | J7: 0 | K7: 0 | L7: 0 | O7: 4 | P7: فاضي | Q7: 4 | R7: 4
B8: مع المالك | D8: 36 | G8: 2018-02-04 | H8: 2017-11-07 | I8: 3 | J8: 13575 | K8: 4525 | L8: 18100 | M8: 600 | N8: 17500 | O8: 5 | P8: محمد جليل احمد | Q8: 5 | R8: 5
D9: 43171 | J9: 18100 | K9: 0 | L9: 18100 | M9: 600 | N9: 17500 | O9: 6 | P9: فاضي | Q9: 6 | R9: 6
D10: 43171 | J10: 0 | K10: 0 | L10: 0 | O10: 10 | P10: فاضي | Q10: 10 | R10: 10
D11: 43171 | J11: 0 | K11: 0 | L11: 0 | O11: 11 | P11: فاضي | Q11: 11 | R11: 11
B12: مع المالك | D12: 6 | G12: 2018-03-06 | H12: 2017-12-06 | I12: 3 | J12: 12450 | K12: 4150 | L12: 16600 | M12: 600 | N12: 16000 | O12: 12 | P12: حماد صالح | Q12: 12 | R12: 12
B13: مع المالك | D13: 24 | E13: باقي 2700 | G13: 2018-02-16 | H13: 2017-08-23 | I13: 3 | J13: 13950 | K13: 4650 | L13: 18600 | M13: 600 | N13: 18000 | O13: 14 | P13: شريف السيد متولى عدوى | Q13: 14 | R13: 14
B14: مع المالك | D14: 10 | G14: 2018-03-02 | H14: 2017-09-05 | I14: 6 | J14: 9050 | K14: 9050 | L14: 18100 | M14: 600 | N14: 17500 | O14: 16 | P14: محمد مزار الدين | Q14: 16 | R14: 16
B15: مع المالك | D15: 23 | G15: 2018-02-17 | H15: 2017-11-19 | I15: 3 | J15: 13950 | K15: 4650 | L15: 18600 | M15: 600 | N15: 18000 | O15: 17 | P15: اقبال احمد سيد | Q15: 17 | R15: 17
D16: 43171 | J16: 0 | K16: 0 | L16: 0 | O16: 18 | P16: فاضي | Q16: 18 | R16: 18
D17: 43171 | J17: 0 | K17: 0 | L17: 0 | O17: 19 | P17: فاضي | Q17: 19 | R17: 19
D18: 43171 | J18: 0 | K18: 0 | L18: 0 | O18: M1 | P18: فاضي | Q18: 22 | R18: M1
B19: مع المالك | D19: 55 | G19: 2018-01-16 | H19: 2017-07-23 | I19: 6 | J19: 30000 | K19: 30000 | L19: 60000 | N19: 60000 | O19: M3 | P19: سليمان بن ابراهيم بن محمد الرميخاني | Q19: 24 | R19: M3
B20: مع المالك | D20: 83 | G20: 2017-12-19 | H20: 2017-06-25 | I20: 6 | J20: 31000 | K20: 31000 | L20: 62000 | M20: 2000 | N20: 60000 | O20: M4 | P20: عصام الجمل | Q20: 25 | R20: M4
B21: مع المالك | D21: 55 | G21: 2018-01-16 | H21: 2017-07-23 | I21: 6 | J21: 36000 | K21: 36000 | L21: 72000 | M21: 2000 | N21: 70000 | O21: M5 | P21: عبدالعزيز عبدالله الغفيلي | Q21: 26 | R21: M5
B22: مع المالك | D22: 471 | E22: معلق ايجارة | G22: 2016-11-26 | H22: 2016-08-29 | I22: 3 | J22: 15000 | K22: 5000 | L22: 20000 | N22: 20000 | O22: M7 | P22: يوسف عبدالله علي اليوسف | Q22: 28 | R22: M7
B23: مع المالك | D23: 55 | E23: باقي1500 | G23: 2018-01-16 | H23: 2017-10-19 | I23: 3 | J23: 15000 | K23: 5000 | L23: 20000 | N23: 20000 | O23: M8 | P23: هاشم عبدالله الناصر | Q23: 29 | R23: M8
J24: 214375 | K24: 140325 | L24: 354700 | M24: 8200 | N24: 346500 | R24: 0
B55: 2018-03-12 | C55: تاريخ الهجري | H55: الجوهرة | P55: الشقق الفارغه | Q55: 12
B56: 2018-03-12 | C56: الموافق | F56: 2 | J56: جوال= | P56: المحلات الفارغه
B57: تأمين | C57: رقم الجوال | D57: عدد أيام تأخير | E57: ملاحظات | F57: المدفوع | G57: تاريخ الانتهاء | H57: تاريخ ابتداءالايجار | I57: طريقة الدفع | J57: الباقي | K57: المطلوب | L57: الإجمالي | M57: ماء | N57: ألأيجار | O57: رقم الشقة | P57: اسم المستأجر | Q57: الرقم
B58: 1000 | D58: 4 | G58: 2018-03-08 | H58: 2017-09-12 | I58: 6 | J58: 13250 | K58: 13250 | L58: 26500 | M58: 500 | N58: 26000 | O58: 105 | P58: عادل ابوبكر الحيدري | Q58: 5
B59: 1000 | D59: 46 | G59: 2018-01-25 | H59: 2017-08-01 | I59: 6 | J59: 16250 | K59: 16250 | L59: 32500 | M59: 500 | N59: 32000 | O59: 107 | P59: سهيل يحي بحمد | Q59: 7
D60: 43171 | E60: مع سهيل | I60: 6 | J60: 16250 | K60: 16250 | L60: 32500 | M60: 500 | N60: 32000 | O60: 202 | P60: ماريون تيجاني | Q60: 10
B61: 1000 | D61: 46 | G61: 2018-01-25 | H61: 2017-08-01 | I61: 6 | J61: 16250 | K61: 16250 | L61: 32500 | M61: 500 | N61: 32000 | O61: 203 | P61: طارق دسوقى بكر درويش | Q61: 11
B62: 1000 | D62: 11 | G62: 2018-03-01 | H62: 2017-09-05 | I62: 6 | J62: 13250 | K62: 13250 | L62: 26500 | M62: 500 | N62: 26000 | O62: 205 | P62: سالم توفيق علي الخالدي | Q62: 13
D63: 43171 | E63: مع سهيل | I63: 6 | J63: 13250 | K63: 13250 | L63: 26500 | M63: 500 | N63: 26000 | O63: 208 | P63: اريك فرجر | Q63: 16
B64: 1000 | D64: 15 | G64: 2018-02-25 | H64: 2017-09-01 | I64: 6 | J64: 16250 | K64: 16250 | L64: 32500 | M64: 500 | N64: 32000 | O64: 302 | P64: وليد حمدى حامد عبدالغفار | Q64: 18
D65: 43171 | J65: 0 | K65: 0 | L65: 0 | O65: 305 | P65: فاضي | Q65: 21
D66: 43171 | H66: 2017-12-25 | I66: 6 | J66: 16250 | K66: 16250 | L66: 32500 | M66: 500 | N66: 32000 | O66: 307 | P66: فاضي | Q66: 23
D67: 43171 | E67: مع سهيل | I67: 6 | J67: 16000 | K67: 16000 | L67: 32000 | N67: 32000 | O67: 402 | P67: محمد محمود الحاج | Q67: 26
J68: 137000 | K68: 137000 | L68: 274000 | M68: 4000 | N68: 270000
B105: 2018-03-12 | C105: تاريخ الهجري | H105: البايونيه | P105: الشقق الفارغه | Q105: 12
B106: 2018-03-12 | C106: الموافق | F106: 3 | J106: جوال= | P106: المحلات الفارغه
B107: تأمين | C107: رقم الجوال | D107: عدد أيام تأخير | E107: ملاحظات | F107: المدفوع | G107: تاريخ الانتهاء | H107: تاريخ ابتداءالايجار | I107: طريقة الدفع | J107: الباقي | K107: المطلوب | L107: الإجمالي | M107: ماء | N107: ألأيجار | O107: رقم الشقة | P107: اسم المستأجر | Q107: الرقم
B108: بدون تأمين | D108: 251 | G108: 2017-07-04 | I108: 12 | J108: 0 | K108: 13200 | L108: 13200 | M108: 200 | N108: 13000 | O108: 5 | P108: صديق مباكران | Q108: 5
D109: 43171 | J109: 0 | K109: 0 | L109: 0 | O109: M1 | P109: فاضي | Q109: 9
D110: 43171 | J110: 0 | K110: 0 | L110: 0 | O110: M2 | P110: فاضي | Q110: 10
B111: بدون تأمين | D111: 11 | E111: يتحمل جميع الخدمات | G111: 2018-03-01 | H111: 2017-09-01 | I111: 6 | J111: 78000 | K111: 78000 | L111: 156000 | N111: 156000 | O111: الثقبه | P111: شركة سارة المتحدة(يحيي السخاوي) | Q111: 11
K112: 91200 | L112: 169200 | M112: 200 | N112: 169000
B155: 2018-03-12 | C155: تاريخ الهجري | H155: الراكه | P155: الشقق الفارغه | Q155: 12
B156: 2018-03-12 | C156: الموافق | F156: 3 | J156: جوال= | P156: المحلات الفارغه
B157: تأمين | C157: رقم الجوال | D157: عدد أيام تأخير | E157: ملاحظات | F157: المدفوع | G157: تاريخ الانتهاء | H157: تاريخ ابتداءالايجار | I157: طريقة الدفع | J157: الباقي | K157: المطلوب | L157: الإجمالي | M157: ماء | N157: ألأيجار | O157: رقم الشقة | P157: اسم المستأجر | Q157: الرقم
D158: 11 | G158: 2018-03-01 | I158: 12 | J158: 0 | K158: 22600 | L158: 22600 | M158: 600 | N158: 22000 | O158: 1 | P158: إبراهيم المهنا | Q158: 1
D159: 54 | G159: 2018-01-17 | I159: 12 | J159: 0 | K159: 23300 | L159: 23300 | M159: 300 | N159: 23000 | O159: 4 | P159: ناصر مروان حمود | Q159: 4
D160: 43171 | J160: 0 | K160: 0 | L160: 0 | Q160: 10
D161: 43171 | J161: 0 | K161: 0 | L161: 0 | Q161: 11
K162: 45900 | L162: 45900 | M162: 900 | N162: 45000
B206: 2018-03-12 | C206: تاريخ الهجري | H206: سعد | P206: الشقق الفارغه | Q206: 12
B207: 2018-03-12 | C207: الموافق | F207: 5 | J207: جوال= | P207: المحلات الفارغه
B208: تأمين | C208: رقم الجوال | D208: عدد أيام تأخير | E208: ملاحظات | F208: المدفوع | G208: تاريخ الانتهاء | H208: تاريخ ابتداءالايجار | I208: طريقة الدفع | J208: الباقي | K208: المطلوب | L208: الإجمالي | M208: ماء | N208: ألأيجار | O208: رقم الشقة | P208: اسم المستأجر | Q208: الرقم
B209: 1000 | D209: 15 | G209: 2018-02-25 | H209: 2017-11-28 | I209: 3 | J209: 9975 | K209: 3325 | L209: 13300 | M209: 300 | N209: 13000 | O209: 101 | P209: ابنوسيدبين مسحليحات | Q209: 1
D210: 1 | G210: 2018-03-11 | H210: 2017-03-23 | I210: 12 | J210: 0 | K210: 17000 | L210: 17000 | N210: 17000 | O210: 102 | P210: احمد عبد الرحيم | Q210: 2
B211: 1000 | D211: 6 | G211: 2018-03-06 | H211: 2017-12-07 | I211: 3 | J211: 16125 | K211: 5375 | L211: 21500 | M211: 500 | N211: 21000 | O211: 103 | P211: المريت ديلا نافاريت | Q211: 3
B212: 1000 | D212: 32 | G212: 2018-02-08 | H212: 2017-11-11 | I212: 3 | J212: 10500 | K212: 3500 | L212: 14000 | N212: 14000 | O212: 104 | P212: فيسينت مير جاميو | Q212: 4
D213: 43171 | J213: 0 | K213: 0 | L213: 0 | O213: 202 | P213: l b c express | Q213: 10
D214: 43171 | J214: 0 | K214: 0 | L214: 0 | O214: 203 | P214: فاضي | Q214: 11
B215: 500 | D215: 1 | G215: 2018-03-11 | H215: 2017-09-14 | I215: 3 | J215: 7650 | K215: 2550 | L215: 10200 | M215: 200 | N215: 10000 | O215: 204 | P215: جاريل ماني كادو استاسيو | Q215: 12
D216: 43171 | I216: 3 | J216: 0 | K216: 0 | L216: 0 | O216: 206 | P216: فاضي | Q216: 14
G217: 2018-03-11 | H217: 2017-03-23 | I217: 12 | J217: 0 | K217: 17000 | L217: 17000 | M217: 0 | N217: 17000 | O217: 207 | P217: احمد عبد الرحيم | Q217: 15
D218: 43171 | J218: 0 | K218: 0 | L218: 0 | M218: 0 | O218: 301 | P218: فاضي | Q218: 17
D219: 94 | G219: 2017-12-08 | H219: 2017-09-11 | I219: 3 | J219: 9225 | K219: 3075 | L219: 12300 | M219: 300 | N219: 12000 | O219: 302 | P219: راشد غفور | Q219: 18
D220: 51825 | K220: 51825 | L220: 105300 | M220: 1300 | N220: 104000
B255: 2018-03-12 | C255: تاريخ الهجري | H255: نايف | P255: الشقق الفارغه | Q255: 12
B256: 2018-03-12 | C256: الموافق | F256: 6 | J256: جوال= | P256: المحلات الفارغه
B257: تأمين | C257: رقم الجوال | D257: عدد أيام تأخير | E257: ملاحظات | F257: المدفوع | G257: تاريخ الانتهاء | H257: تاريخ ابتداءالايجار | I257: طريقة الدفع | J257: الباقي | K257: المطلوب | L257: الإجمالي | M257: ماء | N257: ألأيجار | O257: رقم الشقة | P257: اسم المستأجر | Q257: الرقم
D258: 49 | E258: باقي 300 | G258: 2018-01-22 | H258: 2017-09-25 | I258: 1 | J258: 7150 | K258: 650 | L258: 7800 | N258: 7800 | O258: 3 | P258: دبيدار زايد | Q258: 3
D259: 5 | G259: 2018-03-07 | H259: 2018-02-05 | I259: 1 | J259: 7700 | K259: 700 | L259: 8400 | N259: 8400 | O259: 4 | P259: محمد عقيل ناشر | Q259: 4
D260: 36 | G260: 2018-02-04 | H260: 2018-01-05 | I260: 1 | J260: 8800 | K260: 800 | L260: 9600 | N260: 9600 | O260: 5 | P260: حنيف الله سيد جان | Q260: 5
D261: 12 | G261: 2018-02-28 | H261: 2018-01-30 | I261: 1 | J261: 7700 | K261: 700 | L261: 8400 | N261: 8400 | O261: 9 | P261: علوي محمد حسن مديحج | Q261: 9
D262: 43171 | I262: 1 | J262: 7700 | K262: 700 | L262: 8400 | N262: 8400 | O262: 10 | P262: فاضي | Q262: 10
D263: 53 | G263: 2018-01-18 | H263: 2017-10-21 | I263: 3 | J263: 5400 | K263: 1800 | L263: 7200 | N263: 7200 | O263: 12 | P263: تانوير عباس | Q263: 12
D264: 8 | G264: 2018-03-04 | H264: 2018-02-02 | I264: 1 | J264: 4950 | K264: 450 | L264: 5400 | N264: 5400 | O264: 17 | P264: محمد عوض القرادي | Q264: 17
D265: 23 | G265: 2018-02-17 | H265: 2018-01-18 | I265: 1 | J265: 8800 | K265: 800 | L265: 9600 | N265: 9600 | O265: 18 | P265: سيرتين بيرتين جان سيروموني | Q265: 18
D266: 38 | E266: بدون كهرباء | G266: 2018-02-02 | H266: 2018-01-03 | I266: 1 | J266: 9900 | K266: 900 | L266: 10800 | N266: 10800 | O266: 19 | P266: جوني جوزيف راج | Q266: 19
D267: 13 | E267: بدون كهرباء | F267: 750 شهريا | G267: 2018-02-27 | H267: 2017-12-28 | I267: 1 | J267: 8800 | K267: 800 | L267: 9600 | N267: 9600 | O267: 20 | P267: جوس راجبان راجبان | Q267: 20
D268: 23 | G268: 2018-02-17 | H268: 2017-10-29 | I268: 1 | J268: 5500 | K268: 500 | L268: 6000 | N268: 6000 | O268: 21 | P268: عوض الله بن مرزوق | Q268: 21
D269: 68 | G269: 2018-01-03 | H269: 2017-12-04 | I269: 1 | J269: 5500 | K269: 500 | L269: 6000 | N269: 6000 | O269: 22 | P269: محمد بن مزين غنام السبيعي | Q269: 22
D270: 289 | G270: 2017-05-27 | H270: 2017-04-27 | I270: 1 | J270: 8800 | K270: 800 | L270: 9600 | N270: 9600 | O270: 23 | P270: حلمي عبدالقوي صالح بن هرهره | Q270: 23
D271: 104 | E271: باقي 220 | G271: 2017-11-28 | H271: 2017-10-30 | I271: 1 | J271: 12833.33333 | K271: 1166.666667 | L271: 14000 | N271: 14000 | O271: M1 | P271: علي بن مشلح بن مقحم الصعيري المطيري | Q271: 24
K272: 11266.66667 | L272: 120800 | M272: 0 | N272: 120800
B305: 2018-03-12 | C305: تاريخ الهجري | H305: ناصر | P305: الشقق الفارغه | Q305: 12
B306: 2018-03-12 | C306: الموافق | F306: 9 | J306: جوال= | P306: المحلات الفارغه
B307: تأمين | C307: رقم الجوال | D307: عدد أيام تأخير | E307: ملاحظات | F307: المدفوع | G307: تاريخ الانتهاء | H307: تاريخ ابتداءالايجار | I307: طريقة الدفع | J307: الباقي | K307: المطلوب | L307: الإجمالي | M307: ماء | N307: ألأيجار | O307: رقم الشقة | P307: اسم المستأجر | Q307: الرقم
B308: 1000 | D308: 30 | G308: 2018-02-10 | H308: 2017-08-16 | I308: 6 | J308: 10250 | K308: 10250 | L308: 20500 | M308: 500 | N308: 20000 | O308: 1 | P308: فيجا يا كومارسوبر اما نيان | Q308: 1
B309: 1000 | D309: 32 | G309: 2018-02-08 | H309: 2017-08-14 | I309: 6 | J309: 8750 | K309: 8750 | L309: 17500 | M309: 500 | N309: 17000 | O309: 4 | P309: سوبراتو ادهيكاري | Q309: 4
B310: 1000 | D310: 20 | G310: 2018-02-20 | H310: 2017-08-26 | I310: 6 | J310: 10250 | K310: 10250 | L310: 20500 | M310: 500 | N310: 20000 | O310: 5 | P310: نيهرو سيغالي نيتاجي | Q310: 5
D311: 43171 | J311: 0 | K311: 0 | L311: 0 | O311: 6 | P311: فاضي | Q311: 6
B312: 1000 | D312: 30 | G312: 2018-02-10 | H312: 2017-08-16 | I312: 6 | J312: 11250 | K312: 11250 | L312: 22500 | M312: 500 | N312: 22000 | O312: 7 | P312: جيش غوبتا سومش | Q312: 7
D313: 43171 | J313: 500 | K313: 0 | L313: 500 | M313: 500 | O313: 8 | P313: فاضي | Q313: 8
D314: 43171 | J314: 0 | K314: 0 | L314: 0 | O314: 9 | P314: فاضي | Q314: 10
D315: 43171 | J315: 0 | K315: 0 | L315: 0 | O315: 10 | P315: فاضي | Q315: 11
B316: بدون | D316: 53 | G316: 2018-01-18 | H316: 2017-07-24 | I316: 6 | J316: 20000 | K316: 20000 | L316: 40000 | M316: 0 | N316: 40000 | O316: M1 | P316: محمودعبدالله الحجازي | Q316: 13
D317: 43171 | J317: 0 | K317: 0 | L317: 0 | O317: M2 | P317: فاضي | Q317: 14
D318: 43171 | J318: 0 | K318: 0 | L318: 0 | O318: M3 | P318: فاضي | Q318: 15
D319: 43171 | J319: 0 | K319: 0 | L319: 0 | O319: M4 | P319: فاضي | Q319: 16
D320: 172 | G320: 2017-09-21 | H320: 2017-03-28 | I320: 6 | J320: 17500 | K320: 17500 | L320: 35000 | M320: 0 | N320: 35000 | O320: M5 | P320: أحمد محمد العميري | Q320: 17
K321: 78000 | L321: 156500 | M321: 2500 | N321: 154000
